Workbook

Sheet Security (hidden)
G3: All Sheets Protected.

Sheet FX (hidden)
B1: Cty Code | C1: Country | D1: Currency Name | E1: Cty Code2 | F1: Curr Code | G1: 2016 Rate $1 = | I1: Country | J1: Currency | K1: Local Currency | L1: Jan-2015 | M1: Feb-2015
B2: USA | C2: United States | D2: US Dollar | E2: USA | F2: USD | G2: 1 | I2: UAE | J2: Emirati Dirham | K2: AED | L2: 3.673 | M2: 3.673
B3: CAN | C3: Canada | D3: Canadian Dollar | E3: CAN | F3: CAD | G3: 1.3905 | I3: Malaysia | J3: Malaysian Ringgit | K3: MYR | L3: 3.6172 | M3: 3.6205
B4: MEX | C4: Mexico | D4: Mexican Peso | E4: MEX | F4: MXN | G4: 17.2421 | I4: India | J4: Indian Rupee | K4: INR | L4: 61.6375 | M4: 62.3413
B5: BRA | C5: Brazil | D5: Brazilian Real | E5: BRA | F5: BRL | G5: 3.8592 | I5: Eurozone | J5: Euro | K5: EUR | L5: 0.8613264 | M5: 0.8774239
B6: ARG | C6: Argentina | D6: Argentine Peso | E6: ARG | F6: ARS | G6: 12.9924 | I6: UK | J6: British Pound | K6: GBP | L6: 0.6604147 | M6: 0.6478362
B7: CHL | C7: Chile | D7: Chilean Peso | E7: CHL | F7: CLP | G7: 707.8 | I7: Czech Republic | J7: Czech Republic Koruna | K7: CZK | L7: 24.0821 | M7: 23.9042
B8: PER | C8: Peru | D8: Peruvian Nuevo Sol | E8: PER | F8: PEN | G8: 3.405 | I8: Denmark | J8: Danish Krone | K8: DKK | L8: 6.404 | M8: 6.5325
B9: VEN | C9: Venezuela | D9: Venezuelan Bolivar | E9: VEN | F9: VEB | G9: 6292.1 | I9: Hungary | J9: Hungarian Forint | K9: HUF | L9: 271.58 | M9: 268.41
B10: AUS | C10: Austalia | D10: Australian Dollar | E10: AUS | F10: AUD | G10: 1.3795006 | I10: Norway | J10: Norwegian Krone | K10: NOK | L10: 7.5884 | M10: 7.5275
B11: NZL | C11: New Zealand | D11: New Zealand Dollar | E11: NZL | F11: NZD | G11: 1.4604936 | I11: Poland | J11: Polish Zloty | K11: PLN | L11: 3.704 | M11: 3.671
B12: JPN | C12: Japan | D12: Japanese Yen | E12: JPN | F12: JPY | G12: 120.4 | I12: South Africa | J12: South African Rand | K12: ZAR | L12: 11.5136 | M12: 11.6003
B13: KOR | C13: South Korea | D13: South Korean Won | E13: KOR | F13: KRW | G13: 1165.34 | I13: Switzerland | J13: Swiss Franc | K13: CHF | L13: 0.8602 | M13: 0.9422
B14: SGP | C14: Singapore | D14: Singapore Dollar (SGD) | E14: SGP | F14: SGD | G14: 1.4057 | I14: Romania | J14: Romanian Leu | K14: RON | L14: 3.878 | M14: 3.9038
B15: THA | C15: Thailand | D15: Thai Bhat | E15: THA | F15: THB | G15: 36.083 | I15: China | J15: Chinese Yuan Renminbi | K15: CNY | L15: 6.2123 | M15: 6.2554
B16: MYS | C16: Malaysia | D16: Malaysian Ringgit | E16: MYS | F16: MYR | G16: 4.2984 | I16: Taiwan | J16: New Taiwan Dollar | K16: TWD | L16: 31.516 | M16: 31.66
B17: CHN | C17: China | D17: Chinese Yuan Renminbi | E17: CHN | F17: CNY | G17: 6.4873 | I17: Thailand | J17: Thai Bhat | K17: THB | L17: 32.581 | M17: 32.57
B18: HKG | C18: Hong Kong | D18: Hong Kong Dollar | E18: HKG | F18: HKD | G18: 7.7505 | I18: Singapore | J18: Singapore Dollar (SGD) | K18: SID | L18: 1.3348 | M18: 1.3558
B19: TWN | C19: Taiwan | D19: New Taiwan Dollar | E19: TWN | F19: TWD | G19: 32.855 | I19: South Korea | J19: South Korean Won | K19: KRW | L19: 1083.3 | M19: 1110.52
B20: IDN | C20: Indonesia | D20: Indonesian Rupiah | E20: IDN | F20: IDR | G20: 13647 | I20: Japan | J20: Japanese Yen | K20: YEN | L20: 117.97 | M20: 118.79
B21: KAZ | C21: Kazakhistan | D21: Kazakhstani Tenge | E21: KAZ | F21: KZT | G21: 333.01 | I21: Canada | J21: Canadian Dollar | K21: CND | L21: 1.234 | M21: 1.2455
B22: PHL | C22: Philippines | D22: Philippine Peso | E22: PHL | F22: PHP | G22: 47.16 | I22: Peru | J22: Peruvian Nuevo Sol | K22: PEN | L22: 3.0075 | M22: 3.0855
B23: RUS | C23: Russia | D23: Russian Ruble | E23: RUS | F23: RUR | G23: 72.2294 | I23: Argentina | J23: Argentine Peso | K23: ARS | L23: 8.6167 | M23: 8.689
B24: TUR | C24: Turkey | D24: Turkish Lira | E24: TUR | F24: TRY | G24: 2.9061 | I24: Chile | J24: Chilean Peso | K24: CLP | L24: 628.04 | M24: 621.79
B25: IND | C25: India | D25: Indian Rupee | E25: IND | F25: INR | G25: 66.1975 | I25: Mexico | J25: Mexican Peso | K25: MEX | L25: 14.7544 | M25: 14.8631
B26: UAE | C26: UAE (USD standard) | D26: Emirati Dirham | E26: UAE | F26: USD | G26: 1 | I26: Brazil | J26: Brazilian Real | K26: BRL | L26: 2.601 | M26: 2.839
B27: ISR | C27: Israel | D27: Israeli New Sheqel | E27: ISR | F27: ILS | G27: 3.8845 | I27: Austalia | J27: Australian Dollar | K27: AUD | L27: 1.2368584 | M27: 1.2802458
B28: SAU | C28: Saudi Arabia | D28: Saudi Riyal | E28: SAU | F28: SAR | G28: 3.7518 | I28: New Zealand | J28: New Zealand Dollar | K28: NZD | L28: 1.3241525 | M28: 1.3260841
B29: DEU | C29: Germany (Eurozone) | D29: Deutsche Mark (Now Euro) | E29: DEU | F29: EUR | G29: 0.9117433 | I29: Venezuela | J29: Venezuelan Bolivar | K29: VEB | L29: 6292.1 | M29: 6292.1
B30: FRA | C30: France(Eurozone) | D30: France (Now Euro) | E30: FRA | F30: EUR | G30: 0.9117433 | I30: Belgium (Eurozone) | J30: Belgian Franc (Now Euro) | K30: BFR | L30: 0.8613264 | M30: 0.8774239
B31: NLD | C31: Netherlands (Eurozone) | D31: Euro | E31: NLD | F31: EUR | G31: 0.9117433 | K31: BRLSPECIAL | L31: 2.601 | M31: 2.839
B32: IRL | C32: Ireland | D32: Irish Pound (Now Euro) | E32: IRL | F32: EUR | G32: 0.9117433 | I32: Turkey | J32: Turkish Lira | K32: TRY | L32: 2.3503 | M32: 2.4436
B33: BEL | C33: Belgium (Eurozone) | D33: Belgian Franc (Now Euro) | E33: BEL | F33: EUR | G33: 0.9117433 | K33: TWDSPECIAL | L33: 31.737 | M33: 31.516
B34: ITA | C34: Italy (Eurozone) | D34: Italian Lira (Now Euro) | E34: ITA | F34: EUR | G34: 0.9117433 | K34: CNY_SPECIAL | L34: 6.213 | M34: 6.2123
B35: GBR | C35: UK | D35: British Pound | E35: GBR | F35: GBP | G35: 0.672043 | I35: Hong Kong | J35: Hong Kong Dollar | K35: HKD | L35: 7.7507 | M35: 7.7585
B36: NOR | C36: Norway Krone | D36: Norway | E36: NOR | F36: NOK | G36: 8.7012 | I36: Russia | J36: Russian Ruble | K36: RUR | L36: 65.2003 | M36: 61.5649
B37: ESP | C37: Spain (Eurozone) | E37: ESP | F37: EUR | G37: 0.9117433 | I37: Slovakia | J37: Slovak Koruna | K37: SKK | L37: 25.949 | M37: 26.4323
B38: POL | C38: Poland (Eurozone) | D38: Poland Zloty | E38: POL | F38: EUR | G38: 0.9117433 | I38: Kazakhistan | J38: Kazakhstani Tenge | K38: KZT | L38: 184.22 | M38: 185.06
B39: ZAF | C39: Sout Africa | D39: South Africa Rand | E39: ZAF | F39: ZAR | G39: 15.31 | I39: Philippines | J39: Philippine Peso | K39: PHP | L39: 44.4 | M39: 44.252
B40: CHE | C40: Switzerland | D40: Swiss Franc | E40: CHE | F40: CHF | G40: 0.9882 | I40: Sweden | J40: Swedish Krona | K40: SKR | L40: 8.173 | M40: 8.3635
B41: CZE | C41: Czech Republic (Eurozone) | D41: Czech Republic Koruna | E41: CZE | F41: EUR | G41: 0.9117433 | I41: Italy (Eurozone) | J41: Italian Lira (Now Euro) | K41: ITL | L41: 0.8613264 | M41: 0.8774239
B42: DNK | C42: Denmark | D42: Danish Krone | E42: DNK | F42: EUR | G42: 0.9117433 | I42: Israel | J42: Israeli New Sheqel | K42: ILS | L42: 3.942 | M42: 3.8514
B43: HUN | C43: Hungary (Eurozone) | D43: Hungarian Forint | E43: HUN | F43: EUR | G43: 0.9117433 | I43: France (Eurozone) | J43: French Franc (Now Euro) | K43: FFR | L43: 0.8613264 | M43: 0.8774239
B44: ROU | C44: Romania | D44: Romanian Leu | E44: ROU | F44: RON | G44: 4.1268 | I44: Germany (Eurozone) | J44: Deutsche Mark (Now Euro) | K44: DEM | L44: 0.8613264 | M44: 0.8774239
B45: SVK | C45: Slovakia | D45: Slovak Koruna | E45: SVK | F45: SKK | G45: 27.4612 | I45: Indonesia | J45: Indonesian Rupiah | K45: IDR | L45: 12481 | M45: 12870
B46: SWE | C46: Sweden | D46: Swedish Krona | E46: SWE | F46: SKR | G46: 8.3726 | I46: Saudi Arabia | J46: Saudi Riyal | K46: SAR | L46: 3.7567 | M46: 3.7513
B47: KES | C47: Kenya | D47: Kenyan Shilling | E47: KES | F47: KES | G47: 102.25 | I47: United States | J47: US Dollar | K47: USD | L47: 1 | M47: 1

Sheet CF (hidden)
B1: Factors
A2: Country | B2: Valve | C2: Options & Accessories
A3: USA | B3: 1 | C3: 1
A4: AUS | B4: 1 | C4: 1
A5: UK | B5: 1 | C5: 1
A6: CAN | B6: 1 | C6: 1

Sheet SAP VC (hidden)
A1: PRV2SIZE Model # | B1: Product Group | C1: SAP Only Characteristic | D1: Characteristic Name 1 | E1: Characteristic Name 2 | F1: Characteristic Name 3 | G1: Characteristic Name 4 | H1: Characteristic Name 5 | I1: Characteristic Name 6 | J1: Characteristic Name 7 | K1: Characteristic Name 8 | L1: Characteristic Name 9 | M1: Characteristic Name 10 | N1: Min Operator | O1: Min Set Press psig | P1: Min Set Press inwc | Q1: Max Set Press psig | R1: Max Set Press inwc | S1: Max Operator | T1: SAP Variant Name | U1: Pricing ERP Code | V1: Current List Price USD | W1: Description | X1: BI Price Group | Y1: 4/1/2018 List Price USD | Z1: 10/1/2017 (F.0) List Price USD | AA1: 2015 (D.0) List Price USD | AB1: 2015 (C.0) List Price USD | AC1: 1/1/2014 USD LP | AD1: 2012 (B.0) List Price USD | AE1: Active PB List Price | AF1: ZILL USA USD | AG1: ZILL Australia AUD | AH1: ZILL UK GBP | AI1: ZILL CAN CAD | AJ1: VALVE SIZE (VS) | AK1: BODY MATERIAL (BM) | AL1: PRESSURE CLASS (PC) | AM1: BACK PRESSURE REGULATOR DP (BPRpr) | AN1: END CONNECTIONS (EC) | AO1: INLET & OUTLET CONNECTIONS (IO) | AP1: BYPASS CONNECTION (BC) | AQ1: VALVE DISC (VD) | AR1: BYPASS TRIM STAGES (BPS) | AS1: TRIM STAGES (TS) | AT1: GASKET/SNUBBER SEAL MAT'L (SM) | AU1: ORIFICE SEAL MATERIAL (OSM) | AV1: BYPASS CASCADE SEAL MATERIAL (BPSM) | AW1: LOW TEMP (LT) | AX1: SPRING TYPE (ST) | AY1: DISC TRIM STYLE (DT) | AZ1: Low Temp (LT) | BA1: FLOW CONDITIONER (FC) | BB1: FLANGE FACE STYLE (FF) | BC1: MAIN Cv (MCV) | BD1: BYPASS Cv (BCV) | BE1: ORIFICE (ORF) | BF1: FLOW ELEMENT (FE) | BG1: ORIENTATION (OR) | BH1: INSERT (IN) | BI1: NACE (NC) | BJ1: BYPASS REGULATOR CV (BCV) | BK1: STYLE (ST) | BL1: LOCATION (LOC) | BM1: Standard Costs (FY20) | BO1: 0.042 | BP1: 0.045 | BR1: 0.042 | BS1: Rounded up | BT1: 0.045 | BU1: Rounded up | BW1: Column V | BX1: 0.042 | BY1: Increase Oct 1st 2021 (effective Oct 1 2021) Rounded up | BZ1: 0.04 | CA1: Increase Dec 9 2021 (effective Feb 1 2022) | CB1: Increase Dec 9 2021 Roundedup | CC1: 0.093 | CD1: Increase Oct 1st 2022 (effective Oct 1 2022) Rounded up | CE1: Increase Oct 1st 2022 Rounded up | CF1: Increase Oct 1st 2023 Rounded up
B2: MOD:Y53 | D2: VS:B | E2: IO:A | F2: BM:0 | T2: YA_5300_0001 | V2: =AE2 -> 139862 | W2: CS (WCB) | Y2: =IFERROR(Z2*1,"POA") -> 107308 | Z2: =ROUND(IFERROR(AA2*1.03,"POA"),0) -> 107308 | AA2: 104183 | AB2: 104183 | AC2: 101149 | AD2: 98203 | AE2: =CG2 -> 139862 | AF2: =ROUNDUP($V2*FX!$G$2*CF!$B$3,0) -> 139862 | AG2: =ROUNDUP($V2*FX!$G$10*CF!$B$4,0) -> 192940 | AH2: =ROUNDUP($V2*FX!$G$35*CF!$B$5,0) -> 93994 | AI2: =ROUNDUP($V2*FX!$G$3*CF!$B$6,0) -> 194479 | BO2: =ROUNDUP(($AE2+($AE2*$BO$1)),0) -> 145737 | BR2: 111815.978 | BS2: =ROUNDUP(BR2,0) -> 111816 | BU2: =ROUNDUP(BT2,0) -> 0 | BW2: 107308.49 | BX2: =ROUNDUP(($BW2+($BX$1*$BW2)),0) -> 111816 | BY2: =ROUNDUP(BX2,0) -> 111816 | BZ2: =BY2+(BY2*$BZ$1) -> 116288.64 | CA2: 116288.64 | CB2: =ROUNDUP(CA2,0) -> 116289 | CC2: =CB2+(CB2*$CC$1) -> 127103.877 | CD2: 127103.877 | CE2: =ROUNDUP(CD2,0) -> 127104 | CF2: =IF(CE2="POA","POA", ROUNDUP(CE2*1.055,0)) -> 134095 | CG2: =IF(CF2="POA","POA", ROUNDUP(CF2*1.043,0)) -> 139862
B3: MOD:Y53 | D3: VS:C | E3: IO:A | F3: BM:0 | T3: YA_5300_0002 | V3: 146106 | W3: CS (WCB) | Y3: =IFERROR(Z3*1,"POA") -> 112099 | Z3: =ROUND(IFERROR(AA3*1.03,"POA"),0) -> 112099 | AA3: 108834 | AB3: 108834 | AC3: 105664 | AD3: 102586 | AE3: =CG3 -> 146106 | AF3: =ROUNDUP($V3*FX!$G$2*CF!$B$3,0) -> 146106 | AG3: =ROUNDUP($V3*FX!$G$10*CF!$B$4,0) -> 201554 | AH3: =ROUNDUP($V3*FX!$G$35*CF!$B$5,0) -> 98190 | AI3: =ROUNDUP($V3*FX!$G$3*CF!$B$6,0) -> 203161 | BO3: =ROUNDUP(($AE3+($AE3*$BO$1)),0) -> 152243 | BR3: 116808.2 | BS3: =ROUNDUP(BR3,0) -> 116809 | BU3: =ROUNDUP(BT3,0) -> 0 | BW3: 112099.02 | BX3: =ROUNDUP(($BW3+($BX$1*$BW3)),0) -> 116808 | BY3: =ROUNDUP(BX3,0) -> 116808 | BZ3: =BY3+(BY3*$BZ$1) -> 121480.32 | CA3: 121480.32 | CB3: =ROUNDUP(CA3,0) -> 121481 | CC3: =CB3+(CB3*$CC$1) -> 132778.733 | CD3: 132778.733 | CE3: =ROUNDUP(CD3,0) -> 132779 | CF3: 140082 | CG3: =IF(CF3="POA","POA", ROUNDUP(CF3*1.043,0)) -> 146106
B4: MOD:Y53 | D4: VS:D | E4: IO:A | F4: BM:0 | T4: YA_5300_0003 | V4: 169212 | W4: CS (WCB) | Y4: 129826 | Z4: =ROUND(IFERROR(AA4*1.03,"POA"),0) -> 129826 | AA4: 126045 | AB4: 126045 | AC4: 122374 | AD4: 118810 | AE4: 169212 | AF4: =ROUNDUP($V4*FX!$G$2*CF!$B$3,0) -> 169212 | AG4: =ROUNDUP($V4*FX!$G$10*CF!$B$4,0) -> 233429 | AH4: =ROUNDUP($V4*FX!$G$35*CF!$B$5,0) -> 113718 | AI4: =ROUNDUP($V4*FX!$G$3*CF!$B$6,0) -> 235290 | BO4: 176319 | BR4: 135279.734 | BS4: 135280 | BU4: 0 | BW4: 129826.35 | BX4: 135280 | BY4: 135280 | BZ4: 140691.2 | CA4: 140691.2 | CB4: 140692 | CC4: 153776.356 | CD4: 153776.356 | CE4: 153777 | CF4: 162235 | CG4: 169212
B5: MOD:Y53 | D5: VS:E | E5: IO:A | F5: BM:0 | T5: YA_5300_0004 | V5: 203799 | W5: CS (WCB) | Y5: 156364 | Z5: 156364 | AA5: 151810 | AB5: 151810 | AC5: 147388 | AD5: 143095 | AE5: 203799 | AF5: =ROUNDUP($V5*FX!$G$2*CF!$B$3,0) -> 203799 | AG5: =ROUNDUP($V5*FX!$G$10*CF!$B$4,0) -> 281141 | AH5: =ROUNDUP($V5*FX!$G$35*CF!$B$5,0) -> 136962 | AI5: =ROUNDUP($V5*FX!$G$3*CF!$B$6,0) -> 283383 | BO5: 212359 | BR5: 162932.33 | BS5: 162933 | BU5: 0 | BW5: 156364.3 | BX5: 162932 | BY5: 162932 | BZ5: 169449.28 | CA5: 169449.28 | CB5: 169450 | CC5: 185208.85 | CD5: 185208.85 | CE5: 185209 | CF5: 195396 | CG5: 203799
B6: MOD:Y53 | D6: VS:B | E6: IO:A | F6: BM:1 | T6: YA_5300_0005 | V6: POA | W6: SS (CF8M) | Y6: POA | Z6: =IFERROR(AA6*1.03,"POA") -> POA | AA6: POA | AB6: POA | AC6: POA | AD6: POA | AE6: POA | AF6: =ROUNDUP($V6*FX!$G$2*CF!$B$3,0) ->  | AG6: =ROUNDUP($V6*FX!$G$10*CF!$B$4,0) ->  | AH6: =ROUNDUP($V6*FX!$G$35*CF!$B$5,0) ->  | AI6: =ROUNDUP($V6*FX!$G$3*CF!$B$6,0) ->  | BS6: =AE6 -> POA | BU6: 0 | BW6: POA | BX6: POA | BY6: POA | BZ6: POA | CA6: POA | CB6: POA | CC6: POA | CD6: POA | CE6: POA | CF6: POA | CG6: POA
B7: MOD:Y53 | D7: VS:C | E7: IO:A | F7: BM:1 | T7: YA_5300_0006 | V7: POA | W7: SS (CF8M) | Y7: POA | Z7: POA | AA7: POA | AB7: POA | AC7: POA | AD7: POA | AE7: POA | AF7: =ROUNDUP($V7*FX!$G$2*CF!$B$3,0) ->  | AG7: =ROUNDUP($V7*FX!$G$10*CF!$B$4,0) ->  | AH7: =ROUNDUP($V7*FX!$G$35*CF!$B$5,0) ->  | AI7: =ROUNDUP($V7*FX!$G$3*CF!$B$6,0) ->  | BS7: =AE7 -> POA | BU7: 0 | BW7: POA | BX7: POA | BY7: POA | BZ7: POA | CA7: POA | CB7: POA | CC7: POA | CD7: POA | CE7: POA | CF7: POA | CG7: POA
B8: MOD:Y53 | D8: VS:D | E8: IO:A | F8: BM:1 | T8: YA_5300_0007 | V8: POA | W8: SS (CF8M) | Y8: POA | Z8: POA | AA8: POA | AB8: POA | AC8: POA | AD8: POA | AE8: POA | AF8: =ROUNDUP($V8*FX!$G$2*CF!$B$3,0) ->  | AG8: =ROUNDUP($V8*FX!$G$10*CF!$B$4,0) ->  | AH8: =ROUNDUP($V8*FX!$G$35*CF!$B$5,0) ->  | AI8: =ROUNDUP($V8*FX!$G$3*CF!$B$6,0) ->  | BS8: =AE8 -> POA | BU8: 0 | BW8: POA | BX8: POA | BY8: POA | BZ8: POA | CA8: POA | CB8: POA | CC8: POA | CD8: POA | CE8: POA | CF8: POA | CG8: POA
B9: MOD:Y53 | D9: VS:E | E9: IO:A | F9: BM:1 | T9: YA_5300_0008 | V9: POA | W9: SS (CF8M) | Y9: POA | Z9: POA | AA9: POA | AB9: POA | AC9: POA | AD9: POA | AE9: POA | AF9: =ROUNDUP($V9*FX!$G$2*CF!$B$3,0) ->  | AG9: =ROUNDUP($V9*FX!$G$10*CF!$B$4,0) ->  | AH9: =ROUNDUP($V9*FX!$G$35*CF!$B$5,0) ->  | AI9: =ROUNDUP($V9*FX!$G$3*CF!$B$6,0) ->  | BS9: =AE9 -> POA | BU9: 0 | BW9: POA | BX9: POA | BY9: POA | BZ9: POA | CA9: POA | CB9: POA | CC9: POA | CD9: POA | CE9: POA | CF9: POA | CG9: POA
B10: MOD:Y53 | D10: VS:B | E10: IO:B | F10: BM:0 | T10: YA_5300_0009 | V10: 144524 | W10: CS (WCB) | Y10: 110886 | Z10: =ROUND(IFERROR(AA10*1.03,"POA"),0) -> 110886 | AA10: 107656 | AB10: 107656 | AC10: 104520 | AD10: 101476 | AE10: 144524 | AF10: =ROUNDUP($V10*FX!$G$2*CF!$B$3,0) -> 144524 | AG10: =ROUNDUP($V10*FX!$G$10*CF!$B$4,0) -> 199371 | AH10: =ROUNDUP($V10*FX!$G$35*CF!$B$5,0) -> 97127 | AI10: =ROUNDUP($V10*FX!$G$3*CF!$B$6,0) -> 200961 | BO10: 150595 | BR10: 115543.212 | BS10: =ROUNDUP(BR10,0) -> 115544 | BU10: 0 | BW10: 110885.68 | BX10: =ROUNDUP(($BW10+($BX$1*$BW10)),0) -> 115543 | BY10: 115543 | BZ10: =BY10+(BY10*$BZ$1) -> 120164.72 | CA10: 120164.72 | CB10: 120165 | CC10: 131340.345 | CD10: 131340.345 | CE10: =ROUNDUP(CD10,0) -> 131341 | CF10: 138565 | CG10: 144524
B11: MOD:Y53 | D11: VS:C | E11: IO:B | F11: BM:0 | T11: YA_5300_0010 | V11: 151144 | W11: CS (WCB) | Y11: 115964 | Z11: 115964 | AA11: 112586 | AB11: 112586 | AC11: 109307 | AD11: 106123 | AE11: 151144 | AF11: =ROUNDUP($V11*FX!$G$2*CF!$B$3,0) -> 151144 | AG11: =ROUNDUP($V11*FX!$G$10*CF!$B$4,0) -> 208504 | AH11: =ROUNDUP($V11*FX!$G$35*CF!$B$5,0) -> 101576 | AI11: =ROUNDUP($V11*FX!$G$3*CF!$B$6,0) -> 210166 | BO11: 157493 | BR11: 120834.488 | BS11: 120835 | BU11: 0 | BW11: 115963.58 | BX11: 120835 | BY11: 120835 | BZ11: 125668.4 | CA11: 125668.4 | CB11: 125669 | CC11: 137356.217 | CD11: 137356.217 | CE11: 137357 | CF11: 144912 | CG11: 151144
B12: MOD:Y53 | D12: VS:D | E12: IO:B | F12: BM:0 | T12: YA_5300_0011 | V12: 175045 | W12: CS (WCB) | Y12: 134303 | Z12: 134303 | AA12: 130391 | AB12: 130391 | AC12: 126593 | AD12: 122906 | AE12: 175045 | AF12: =ROUNDUP($V12*FX!$G$2*CF!$B$3,0) -> 175045 | AG12: =ROUNDUP($V12*FX!$G$10*CF!$B$4,0) -> 241475 | AH12: =ROUNDUP($V12*FX!$G$35*CF!$B$5,0) -> 117638 | AI12: =ROUNDUP($V12*FX!$G$3*CF!$B$6,0) -> 243401 | BO12: 182397 | BR12: 139943.726 | BS12: 139944 | BU12: 0 | BW12: 134302.73 | BX12: 139944 | BY12: 139944 | BZ12: 145541.76 | CA12: 145541.76 | CB12: 145542 | CC12: 159077.406 | CD12: 159077.406 | CE12: 159078 | CF12: 167828 | CG12: 175045
B13: MOD:Y53 | D13: VS:E | E13: IO:B | F13: BM:0 | T13: YA_5300_0012 | V13: 210827 | W13: CS (WCB) | Y13: 161756 | Z13: 161756 | AA13: 157045 | AB13: 157045 | AC13: 152471 | AD13: 148030 | AE13: 210827 | AF13: =ROUNDUP($V13*FX!$G$2*CF!$B$3,0) -> 210827 | AG13: =ROUNDUP($V13*FX!$G$10*CF!$B$4,0) -> 290836 | AH13: =ROUNDUP($V13*FX!$G$35*CF!$B$5,0) -> 141685 | AI13: =ROUNDUP($V13*FX!$G$3*CF!$B$6,0) -> 293155 | BO13: 219682 | BR13: 168550.794 | BS13: 168551 | BU13: 0 | BW13: 161756.35 | BX13: 168551 | BY13: 168551 | BZ13: 175293.04 | CA13: 175293.04 | CB13: 175294 | CC13: 191596.342 | CD13: 191596.342 | CE13: 191597 | CF13: 202135 | CG13: 210827
B14: MOD:Y53 | D14: VS:B | E14: IO:B | F14: BM:1 | T14: YA_5300_0013 | V14: POA | W14: SS (CF8M) | Y14: POA | Z14: POA | AA14: POA | AB14: POA | AC14: POA | AD14: POA | AE14: POA | AF14: =ROUNDUP($V14*FX!$G$2*CF!$B$3,0) ->  | AG14: =ROUNDUP($V14*FX!$G$10*CF!$B$4,0) ->  | AH14: =ROUNDUP($V14*FX!$G$35*CF!$B$5,0) ->  | AI14: =ROUNDUP($V14*FX!$G$3*CF!$B$6,0) ->  | BS14: =AE14 -> POA | BU14: 0 | BW14: POA | BX14: POA | BY14: POA | BZ14: POA | CA14: POA | CB14: POA | CC14: POA | CD14: POA | CE14: POA | CF14: POA | CG14: POA
B15: MOD:Y53 | D15: VS:C | E15: IO:B | F15: BM:1 | T15: YA_5300_0014 | V15: POA | W15: SS (CF8M) | Y15: POA | Z15: POA | AA15: POA | AB15: POA | AC15: POA | AD15: POA | AE15: POA | AF15: =ROUNDUP($V15*FX!$G$2*CF!$B$3,0) ->  | AG15: =ROUNDUP($V15*FX!$G$10*CF!$B$4,0) ->  | AH15: =ROUNDUP($V15*FX!$G$35*CF!$B$5,0) ->  | AI15: =ROUNDUP($V15*FX!$G$3*CF!$B$6,0) ->  | BS15: =AE15 -> POA | BU15: 0 | BW15: POA | BX15: POA | BY15: POA | BZ15: POA | CA15: POA | CB15: POA | CC15: POA | CD15: POA | CE15: POA | CF15: POA | CG15: POA
B16: MOD:Y53 | D16: VS:D | E16: IO:B | F16: BM:1 | T16: YA_5300_0015 | V16: POA | W16: SS (CF8M) | Y16: POA | Z16: POA | AA16: POA | AB16: POA | AC16: POA | AD16: POA | AE16: POA | AF16: =ROUNDUP($V16*FX!$G$2*CF!$B$3,0) ->  | AG16: =ROUNDUP($V16*FX!$G$10*CF!$B$4,0) ->  | AH16: =ROUNDUP($V16*FX!$G$35*CF!$B$5,0) ->  | AI16: =ROUNDUP($V16*FX!$G$3*CF!$B$6,0) ->  | BS16: =AE16 -> POA | BU16: 0 | BW16: POA | BX16: POA | BY16: POA | BZ16: POA | CA16: POA | CB16: POA | CC16: POA | CD16: POA | CE16: POA | CF16: POA | CG16: POA
B17: MOD:Y53 | D17: VS:E | E17: IO:B | F17: BM:1 | T17: YA_5300_0016 | V17: POA | W17: SS (CF8M) | Y17: POA | Z17: POA | AA17: POA | AB17: POA | AC17: POA | AD17: POA | AE17: POA | AF17: =ROUNDUP($V17*FX!$G$2*CF!$B$3,0) ->  | AG17: =ROUNDUP($V17*FX!$G$10*CF!$B$4,0) ->  | AH17: =ROUNDUP($V17*FX!$G$35*CF!$B$5,0) ->  | AI17: =ROUNDUP($V17*FX!$G$3*CF!$B$6,0) ->  | BS17: =AE17 -> POA | BU17: 0 | BW17: POA | BX17: POA | BY17: POA | BZ17: POA | CA17: POA | CB17: POA | CC17: POA | CD17: POA | CE17: POA | CF17: POA | CG17: POA
B18: MOD:Y53 | D18: VS:B | E18: IO:C | F18: BM:0 | T18: YA_5300_0017 | V18: 146975 | W18: CS (WCB) | Y18: 112765 | Z18: =ROUND(IFERROR(AA18*1.03,"POA"),0) -> 112765 | AA18: 109481 | AB18: 109481 | AC18: 106292 | AD18: 103196 | AE18: 146975 | AF18: =ROUNDUP($V18*FX!$G$2*CF!$B$3,0) -> 146975 | AG18: =ROUNDUP($V18*FX!$G$10*CF!$B$4,0) -> 202753 | AH18: =ROUNDUP($V18*FX!$G$35*CF!$B$5,0) -> 98774 | AI18: =ROUNDUP($V18*FX!$G$3*CF!$B$6,0) -> 204369 | BO18: 153148 | BR18: 117502.172 | BS18: =ROUNDUP(BR18,0) -> 117503 | BU18: 0 | BW18: 112765.43 | BX18: =ROUNDUP(($BW18+($BX$1*$BW18)),0) -> 117502 | BY18: 117502 | BZ18: =BY18+(BY18*$BZ$1) -> 122202.08 | CA18: 122202.08 | CB18: 122203 | CC18: 133567.879 | CD18: 133567.879 | CE18: =ROUNDUP(CD18,0) -> 133568 | CF18: 140915 | CG18: 146975
B19: MOD:Y53 | D19: VS:C | E19: IO:C | F19: BM:0 | T19: YA_5300_0018 | V19: 153796 | W19: CS (WCB) | Y19: 117999 | Z19: 117999 | AA19: 114562 | AB19: 114562 | AC19: 111225 | AD19: 107985 | AE19: 153796 | AF19: =ROUNDUP($V19*FX!$G$2*CF!$B$3,0) -> 153796 | AG19: =ROUNDUP($V19*FX!$G$10*CF!$B$4,0) -> 212162 | AH19: =ROUNDUP($V19*FX!$G$35*CF!$B$5,0) -> 103358 | AI19: =ROUNDUP($V19*FX!$G$3*CF!$B$6,0) -> 213854 | BO19: 160256 | BR19: 122954.958 | BS19: 122955 | BU19: 0 | BW19: 117998.86 | BX19: 122955 | BY19: 122955 | BZ19: 127873.2 | CA19: 127873.2 | CB19: 127874 | CC19: 139766.282 | CD19: 139766.282 | CE19: 139767 | CF19: 147455 | CG19: 153796
B20: MOD:Y53 | D20: VS:D | E20: IO:C | F20: BM:0 | T20: YA_5300_0019 | V20: 178116 | W20: CS (WCB) | Y20: 136659 | Z20: 136659 | AA20: 132679 | AB20: 132679 | AC20: 128815 | AD20: 125063 | AE20: 178116 | AF20: =ROUNDUP($V20*FX!$G$2*CF!$B$3,0) -> 178116 | AG20: =ROUNDUP($V20*FX!$G$10*CF!$B$4,0) -> 245712 | AH20: =ROUNDUP($V20*FX!$G$35*CF!$B$5,0) -> 119702 | AI20: =ROUNDUP($V20*FX!$G$3*CF!$B$6,0) -> 247671 | BO20: 185597 | BR20: 142399.72 | BS20: 142400 | BU20: 0 | BW20: 136659.37 | BX20: 142400 | BY20: 142400 | BZ20: 148096 | CA20: 148096 | CB20: 148096 | CC20: 161868.928 | CD20: 161868.928 | CE20: 161869 | CF20: 170772 | CG20: 178116
B21: MOD:Y53 | D21: VS:E | E21: IO:C | F21: BM:0 | T21: YA_5300_0020 | V21: 214525 | W21: CS (WCB) | Y21: 164594 | Z21: 164594 | AA21: 159800 | AB21: 159800 | AC21: 155146 | AD21: 150627 | AE21: 214525 | AF21: =ROUNDUP($V21*FX!$G$2*CF!$B$3,0) -> 214525 | AG21: =ROUNDUP($V21*FX!$G$10*CF!$B$4,0) -> 295938 | AH21: =ROUNDUP($V21*FX!$G$35*CF!$B$5,0) -> 144171 | AI21: =ROUNDUP($V21*FX!$G$3*CF!$B$6,0) -> 298298 | BO21: 223536 | BR21: 171506.948 | BS21: 171507 | BU21: 0 | BW21: 164594 | BX21: 171507 | BY21: 171507 | BZ21: 178367.28 | CA21: 178367.28 | CB21: 178368 | CC21: 194956.224 | CD21: 194956.224 | CE21: 194957 | CF21: 205680 | CG21: 214525
B22: MOD:Y53 | D22: VS:B | E22: IO:C | F22: BM:1 | T22: YA_5300_0021 | V22: POA | W22: SS (CF8M) | Y22: POA | Z22: POA | AA22: POA | AB22: POA | AC22: POA | AD22: POA | AE22: POA | AF22: =ROUNDUP($V22*FX!$G$2*CF!$B$3,0) ->  | AG22: =ROUNDUP($V22*FX!$G$10*CF!$B$4,0) ->  | AH22: =ROUNDUP($V22*FX!$G$35*CF!$B$5,0) ->  | AI22: =ROUNDUP($V22*FX!$G$3*CF!$B$6,0) ->  | BS22: =AE22 -> POA | BU22: 0 | BW22: POA | BX22: POA | BY22: POA | BZ22: POA | CA22: POA | CB22: POA | CC22: POA | CD22: POA | CE22: POA | CF22: POA | CG22: POA
B23: MOD:Y53 | D23: VS:C | E23: IO:C | F23: BM:1 | T23: YA_5300_0022 | V23: POA | W23: SS (CF8M) | Y23: POA | Z23: POA | AA23: POA | AB23: POA | AC23: POA | AD23: POA | AE23: POA | AF23: =ROUNDUP($V23*FX!$G$2*CF!$B$3,0) ->  | AG23: =ROUNDUP($V23*FX!$G$10*CF!$B$4,0) ->  | AH23: =ROUNDUP($V23*FX!$G$35*CF!$B$5,0) ->  | AI23: =ROUNDUP($V23*FX!$G$3*CF!$B$6,0) ->  | BS23: POA | BU23: 0 | BW23: POA | BX23: POA | BY23: POA | BZ23: POA | CA23: POA | CB23: POA | CC23: POA | CD23: POA | CE23: POA | CF23: POA | CG23: POA
B24: MOD:Y53 | D24: VS:D | E24: IO:C | F24: BM:1 | T24: YA_5300_0023 | V24: POA | W24: SS (CF8M) | Y24: POA | Z24: POA | AA24: POA | AB24: POA | AC24: POA | AD24: POA | AE24: POA | AF24: =ROUNDUP($V24*FX!$G$2*CF!$B$3,0) ->  | AG24: =ROUNDUP($V24*FX!$G$10*CF!$B$4,0) ->  | AH24: =ROUNDUP($V24*FX!$G$35*CF!$B$5,0) ->  | AI24: =ROUNDUP($V24*FX!$G$3*CF!$B$6,0) ->  | BS24: POA | BU24: 0 | BW24: POA | BX24: POA | BY24: POA | BZ24: POA | CA24: POA | CB24: POA | CC24: POA | CD24: POA | CE24: POA | CF24: POA | CG24: POA
B25: MOD:Y53 | D25: VS:E | E25: IO:C | F25: BM:1 | T25: YA_5300_0024 | V25: POA | W25: SS (CF8M) | Y25: POA | Z25: POA | AA25: POA | AB25: POA | AC25: POA | AD25: POA | AE25: POA | AF25: =ROUNDUP($V25*FX!$G$2*CF!$B$3,0) ->  | AG25: =ROUNDUP($V25*FX!$G$10*CF!$B$4,0) ->  | AH25: =ROUNDUP($V25*FX!$G$35*CF!$B$5,0) ->  | AI25: =ROUNDUP($V25*FX!$G$3*CF!$B$6,0) ->  | BS25: POA | BU25: 0 | BW25: POA | BX25: POA | BY25: POA | BZ25: POA | CA25: POA | CB25: POA | CC25: POA | CD25: POA | CE25: POA | CF25: POA | CG25: POA
B26: MOD:Y53 | D26: VS:B | E26: IO:D | F26: BM:0 | T26: YA_5300_0025 | V26: POA | W26: CS (WCB) | Y26: POA | Z26: POA | AA26: POA | AB26: POA | AC26: POA | AD26: POA | AE26: POA | AF26: =ROUNDUP($V26*FX!$G$2*CF!$B$3,0) ->  | AG26: =ROUNDUP($V26*FX!$G$10*CF!$B$4,0) ->  | AH26: =ROUNDUP($V26*FX!$G$35*CF!$B$5,0) ->  | AI26: =ROUNDUP($V26*FX!$G$3*CF!$B$6,0) ->  | BS26: POA | BU26: 0 | BW26: POA | BX26: POA | BY26: POA | BZ26: POA | CA26: POA | CB26: POA | CC26: POA | CD26: POA | CE26: POA | CF26: POA | CG26: POA
B27: MOD:Y53 | D27: VS:C | E27: IO:D | F27: BM:0 | T27: YA_5300_0026 | V27: POA | W27: CS (WCB) | Y27: POA | Z27: POA | AA27: POA | AB27: POA | AC27: POA | AD27: POA | AE27: POA | AF27: =ROUNDUP($V27*FX!$G$2*CF!$B$3,0) ->  | AG27: =ROUNDUP($V27*FX!$G$10*CF!$B$4,0) ->  | AH27: =ROUNDUP($V27*FX!$G$35*CF!$B$5,0) ->  | AI27: =ROUNDUP($V27*FX!$G$3*CF!$B$6,0) ->  | BS27: POA | BU27: 0 | BW27: POA | BX27: POA | BY27: POA | BZ27: POA | CA27: POA | CB27: POA | CC27: POA | CD27: POA | CE27: POA | CF27: POA | CG27: POA
B28: MOD:Y53 | D28: VS:D | E28: IO:D | F28: BM:0 | T28: YA_5300_0027 | V28: POA | W28: CS (WCB) | Y28: POA | Z28: POA | AA28: POA | AB28: POA | AC28: POA | AD28: POA | AE28: POA | AF28: =ROUNDUP($V28*FX!$G$2*CF!$B$3,0) ->  | AG28: =ROUNDUP($V28*FX!$G$10*CF!$B$4,0) ->  | AH28: =ROUNDUP($V28*FX!$G$35*CF!$B$5,0) ->  | AI28: =ROUNDUP($V28*FX!$G$3*CF!$B$6,0) ->  | BS28: POA | BU28: 0 | BW28: POA | BX28: POA | BY28: POA | BZ28: POA | CA28: POA | CB28: POA | CC28: POA | CD28: POA | CE28: POA | CF28: POA | CG28: POA
B29: MOD:Y53 | D29: VS:E | E29: IO:D | F29: BM:0 | T29: YA_5300_0028 | V29: POA | W29: CS (WCB) | Y29: POA | Z29: POA | AA29: POA | AB29: POA | AC29: POA | AD29: POA | AE29: POA | AF29: =ROUNDUP($V29*FX!$G$2*CF!$B$3,0) ->  | AG29: =ROUNDUP($V29*FX!$G$10*CF!$B$4,0) ->  | AH29: =ROUNDUP($V29*FX!$G$35*CF!$B$5,0) ->  | AI29: =ROUNDUP($V29*FX!$G$3*CF!$B$6,0) ->  | BS29: POA | BU29: 0 | BW29: POA | BX29: POA | BY29: POA | BZ29: POA | CA29: POA | CB29: POA | CC29: POA | CD29: POA | CE29: POA | CF29: POA | CG29: POA
B30: MOD:Y53 | D30: VS:B | E30: IO:D | F30: BM:1 | T30: YA_5300_0029 | V30: POA | W30: SS (CF8M) | Y30: POA | Z30: POA | AA30: POA | AB30: POA | AC30: POA | AD30: POA | AE30: POA | AF30: =ROUNDUP($V30*FX!$G$2*CF!$B$3,0) ->  | AG30: =ROUNDUP($V30*FX!$G$10*CF!$B$4,0) ->  | AH30: =ROUNDUP($V30*FX!$G$35*CF!$B$5,0) ->  | AI30: =ROUNDUP($V30*FX!$G$3*CF!$B$6,0) ->  | BS30: POA | BU30: 0 | BW30: POA | BX30: POA | BY30: POA | BZ30: POA | CA30: POA | CB30: POA | CC30: POA | CD30: POA | CE30: POA | CF30: POA | CG30: POA
B31: MOD:Y53 | D31: VS:C | E31: IO:D | F31: BM:1 | T31: YA_5300_0030 | V31: POA | W31: SS (CF8M) | Y31: POA | Z31: POA | AA31: POA | AB31: POA | AC31: POA | AD31: POA | AE31: POA | AF31: =ROUNDUP($V31*FX!$G$2*CF!$B$3,0) ->  | AG31: =ROUNDUP($V31*FX!$G$10*CF!$B$4,0) ->  | AH31: =ROUNDUP($V31*FX!$G$35*CF!$B$5,0) ->  | AI31: =ROUNDUP($V31*FX!$G$3*CF!$B$6,0) ->  | BS31: POA | BU31: 0 | BW31: POA | BX31: POA | BY31: POA | BZ31: POA | CA31: POA | CB31: POA | CC31: POA | CD31: POA | CE31: POA | CF31: POA | CG31: POA
B32: MOD:Y53 | D32: VS:D | E32: IO:D | F32: BM:1 | T32: YA_5300_0031 | V32: POA | W32: SS (CF8M) | Y32: POA | Z32: POA | AA32: POA | AB32: POA | AC32: POA | AD32: POA | AE32: POA | AF32: =ROUNDUP($V32*FX!$G$2*CF!$B$3,0) ->  | AG32: =ROUNDUP($V32*FX!$G$10*CF!$B$4,0) ->  | AH32: =ROUNDUP($V32*FX!$G$35*CF!$B$5,0) ->  | AI32: =ROUNDUP($V32*FX!$G$3*CF!$B$6,0) ->  | BS32: POA | BU32: 0 | BW32: POA | BX32: POA | BY32: POA | BZ32: POA | CA32: POA | CB32: POA | CC32: POA | CD32: POA | CE32: POA | CF32: POA | CG32: POA
B33: MOD:Y53 | D33: VS:E | E33: IO:D | F33: BM:1 | T33: YA_5300_0032 | V33: POA | W33: SS (CF8M) | Y33: POA | Z33: POA | AA33: POA | AB33: POA | AC33: POA | AD33: POA | AE33: POA | AF33: =ROUNDUP($V33*FX!$G$2*CF!$B$3,0) ->  | AG33: =ROUNDUP($V33*FX!$G$10*CF!$B$4,0) ->  | AH33: =ROUNDUP($V33*FX!$G$35*CF!$B$5,0) ->  | AI33: =ROUNDUP($V33*FX!$G$3*CF!$B$6,0) ->  | BS33: POA | BU33: 0 | BW33: POA | BX33: POA | BY33: POA | BZ33: POA | CA33: POA | CB33: POA | CC33: POA | CD33: POA | CE33: POA | CF33: POA | CG33: POA
B34: MOD:Y53 | D34: VS:B | E34: IO:E | F34: BM:0 | T34: YA_5300_0033 | V34: POA | W34: CS (WCB) | Y34: POA | Z34: POA | AA34: POA | AB34: POA | AC34: POA | AD34: POA | AE34: POA | AF34: =ROUNDUP($V34*FX!$G$2*CF!$B$3,0) ->  | AG34: =ROUNDUP($V34*FX!$G$10*CF!$B$4,0) ->  | AH34: =ROUNDUP($V34*FX!$G$35*CF!$B$5,0) ->  | AI34: =ROUNDUP($V34*FX!$G$3*CF!$B$6,0) ->  | BS34: POA | BU34: 0 | BW34: POA | BX34: POA | BY34: POA | BZ34: POA | CA34: POA | CB34: POA | CC34: POA | CD34: POA | CE34: POA | CF34: POA | CG34: POA
B35: MOD:Y53 | D35: VS:C | E35: IO:E | F35: BM:0 | T35: YA_5300_0034 | V35: POA | W35: CS (WCB) | Y35: POA | Z35: POA | AA35: POA | AB35: POA | AC35: POA | AD35: POA | AE35: POA | AF35: =ROUNDUP($V35*FX!$G$2*CF!$B$3,0) ->  | AG35: =ROUNDUP($V35*FX!$G$10*CF!$B$4,0) ->  | AH35: =ROUNDUP($V35*FX!$G$35*CF!$B$5,0) ->  | AI35: =ROUNDUP($V35*FX!$G$3*CF!$B$6,0) ->  | BS35: POA | BU35: 0 | BW35: POA | BX35: POA | BY35: POA | BZ35: POA | CA35: POA | CB35: POA | CC35: POA | CD35: POA | CE35: POA | CF35: POA | CG35: POA
B36: MOD:Y53 | D36: VS:D | E36: IO:E | F36: BM:0 | T36: YA_5300_0035 | V36: POA | W36: CS (WCB) | Y36: POA | Z36: POA | AA36: POA | AB36: POA | AC36: POA | AD36: POA | AE36: POA | AF36: =ROUNDUP($V36*FX!$G$2*CF!$B$3,0) ->  | AG36: =ROUNDUP($V36*FX!$G$10*CF!$B$4,0) ->  | AH36: =ROUNDUP($V36*FX!$G$35*CF!$B$5,0) ->  | AI36: =ROUNDUP($V36*FX!$G$3*CF!$B$6,0) ->  | BS36: POA | BU36: 0 | BW36: POA | BX36: POA | BY36: POA | BZ36: POA | CA36: POA | CB36: POA | CC36: POA | CD36: POA | CE36: POA | CF36: POA | CG36: POA
B37: MOD:Y53 | D37: VS:E | E37: IO:E | F37: BM:0 | T37: YA_5300_0036 | V37: POA | W37: CS (WCB) | Y37: POA | Z37: POA | AA37: POA | AB37: POA | AC37: POA | AD37: POA | AE37: POA | AF37: =ROUNDUP($V37*FX!$G$2*CF!$B$3,0) ->  | AG37: =ROUNDUP($V37*FX!$G$10*CF!$B$4,0) ->  | AH37: =ROUNDUP($V37*FX!$G$35*CF!$B$5,0) ->  | AI37: =ROUNDUP($V37*FX!$G$3*CF!$B$6,0) ->  | BS37: POA | BU37: 0 | BW37: POA | BX37: POA | BY37: POA | BZ37: POA | CA37: POA | CB37: POA | CC37: POA | CD37: POA | CE37: POA | CF37: POA | CG37: POA
B38: MOD:Y53 | D38: VS:B | E38: IO:E | F38: BM:1 | T38: YA_5300_0037 | V38: POA | W38: SS (CF8M) | Y38: POA | Z38: POA | AA38: POA | AB38: POA | AC38: POA | AD38: POA | AE38: POA | AF38: =ROUNDUP($V38*FX!$G$2*CF!$B$3,0) ->  | AG38: =ROUNDUP($V38*FX!$G$10*CF!$B$4,0) ->  | AH38: =ROUNDUP($V38*FX!$G$35*CF!$B$5,0) ->  | AI38: =ROUNDUP($V38*FX!$G$3*CF!$B$6,0) ->  | BS38: POA | BU38: 0 | BW38: POA | BX38: POA | BY38: POA | BZ38: POA | CA38: POA | CB38: POA | CC38: POA | CD38: POA | CE38: POA | CF38: POA | CG38: POA
B39: MOD:Y53 | D39: VS:C | E39: IO:E | F39: BM:1 | T39: YA_5300_0038 | V39: POA | W39: SS (CF8M) | Y39: POA | Z39: POA | AA39: POA | AB39: POA | AC39: POA | AD39: POA | AE39: POA | AF39: =ROUNDUP($V39*FX!$G$2*CF!$B$3,0) ->  | AG39: =ROUNDUP($V39*FX!$G$10*CF!$B$4,0) ->  | AH39: =ROUNDUP($V39*FX!$G$35*CF!$B$5,0) ->  | AI39: =ROUNDUP($V39*FX!$G$3*CF!$B$6,0) ->  | BS39: POA | BU39: 0 | BW39: POA | BX39: POA | BY39: POA | BZ39: POA | CA39: POA | CB39: POA | CC39: POA | CD39: POA | CE39: POA | CF39: POA | CG39: POA
B40: MOD:Y53 | D40: VS:D | E40: IO:E | F40: BM:1 | T40: YA_5300_0039 | V40: POA | W40: SS (CF8M) | Y40: POA | Z40: POA | AA40: POA | AB40: POA | AC40: POA | AD40: POA | AE40: POA | AF40: =ROUNDUP($V40*FX!$G$2*CF!$B$3,0) ->  | AG40: =ROUNDUP($V40*FX!$G$10*CF!$B$4,0) ->  | AH40: =ROUNDUP($V40*FX!$G$35*CF!$B$5,0) ->  | AI40: =ROUNDUP($V40*FX!$G$3*CF!$B$6,0) ->  | BS40: POA | BU40: 0 | BW40: POA | BX40: POA | BY40: POA | BZ40: POA | CA40: POA | CB40: POA | CC40: POA | CD40: POA | CE40: POA | CF40: POA | CG40: POA
B41: MOD:Y53 | D41: VS:E | E41: IO:E | F41: BM:1 | T41: YA_5300_0040 | V41: POA | W41: SS (CF8M) | Y41: POA | Z41: POA | AA41: POA | AB41: POA | AC41: POA | AD41: POA | AE41: POA | AF41: =ROUNDUP($V41*FX!$G$2*CF!$B$3,0) ->  | AG41: =ROUNDUP($V41*FX!$G$10*CF!$B$4,0) ->  | AH41: =ROUNDUP($V41*FX!$G$35*CF!$B$5,0) ->  | AI41: =ROUNDUP($V41*FX!$G$3*CF!$B$6,0) ->  | BS41: POA | BU41: 0 | BW41: POA | BX41: POA | BY41: POA | BZ41: POA | CA41: POA | CB41: POA | CC41: POA | CD41: POA | CE41: POA | CF41: POA | CG41: POA
B42: MOD:Y53 | D42: VS:B | E42: IO:F | F42: BM:0 | T42: YA_5300_0041 | V42: POA | W42: CS (WCB) | Y42: POA | Z42: POA | AA42: POA | AB42: POA | AC42: POA | AD42: POA | AE42: POA | AF42: =ROUNDUP($V42*FX!$G$2*CF!$B$3,0) ->  | AG42: =ROUNDUP($V42*FX!$G$10*CF!$B$4,0) ->  | AH42: =ROUNDUP($V42*FX!$G$35*CF!$B$5,0) ->  | AI42: =ROUNDUP($V42*FX!$G$3*CF!$B$6,0) ->  | BS42: POA | BU42: 0 | BW42: POA | BX42: POA | BY42: POA | BZ42: POA | CA42: POA | CB42: POA | CC42: POA | CD42: POA | CE42: POA | CF42: POA | CG42: POA
B43: MOD:Y53 | D43: VS:C | E43: IO:F | F43: BM:0 | T43: YA_5300_0042 | V43: POA | W43: CS (WCB) | Y43: POA | Z43: POA | AA43: POA | AB43: POA | AC43: POA | AD43: POA | AE43: POA | AF43: =ROUNDUP($V43*FX!$G$2*CF!$B$3,0) ->  | AG43: =ROUNDUP($V43*FX!$G$10*CF!$B$4,0) ->  | AH43: =ROUNDUP($V43*FX!$G$35*CF!$B$5,0) ->  | AI43: =ROUNDUP($V43*FX!$G$3*CF!$B$6,0) ->  | BS43: POA | BU43: 0 | BW43: POA | BX43: POA | BY43: POA | BZ43: POA | CA43: POA | CB43: POA | CC43: POA | CD43: POA | CE43: POA | CF43: POA | CG43: POA
B44: MOD:Y53 | D44: VS:D | E44: IO:F | F44: BM:0 | T44: YA_5300_0043 | V44: POA | W44: CS (WCB) | Y44: POA | Z44: POA | AA44: POA | AB44: POA | AC44: POA | AD44: POA | AE44: POA | AF44: =ROUNDUP($V44*FX!$G$2*CF!$B$3,0) ->  | AG44: =ROUNDUP($V44*FX!$G$10*CF!$B$4,0) ->  | AH44: =ROUNDUP($V44*FX!$G$35*CF!$B$5,0) ->  | AI44: =ROUNDUP($V44*FX!$G$3*CF!$B$6,0) ->  | BS44: POA | BU44: 0 | BW44: POA | BX44: POA | BY44: POA | BZ44: POA | CA44: POA | CB44: POA | CC44: POA | CD44: POA | CE44: POA | CF44: POA | CG44: POA
B45: MOD:Y53 | D45: VS:E | E45: IO:F | F45: BM:0 | T45: YA_5300_0044 | V45: POA | W45: CS (WCB) | Y45: POA | Z45: POA | AA45: POA | AB45: POA | AC45: POA | AD45: POA | AE45: POA | AF45: =ROUNDUP($V45*FX!$G$2*CF!$B$3,0) ->  | AG45: =ROUNDUP($V45*FX!$G$10*CF!$B$4,0) ->  | AH45: =ROUNDUP($V45*FX!$G$35*CF!$B$5,0) ->  | AI45: =ROUNDUP($V45*FX!$G$3*CF!$B$6,0) ->  | BS45: POA | BU45: 0 | BW45: POA | BX45: POA | BY45: POA | BZ45: POA | CA45: POA | CB45: POA | CC45: POA | CD45: POA | CE45: POA | CF45: POA | CG45: POA
B46: MOD:Y53 | D46: VS:B | E46: IO:F | F46: BM:1 | T46: YA_5300_0045 | V46: POA | W46: SS (CF8M) | Y46: POA | Z46: POA | AA46: POA | AB46: POA | AC46: POA | AD46: POA | AE46: POA | AF46: =ROUNDUP($V46*FX!$G$2*CF!$B$3,0) ->  | AG46: =ROUNDUP($V46*FX!$G$10*CF!$B$4,0) ->  | AH46: =ROUNDUP($V46*FX!$G$35*CF!$B$5,0) ->  | AI46: =ROUNDUP($V46*FX!$G$3*CF!$B$6,0) ->  | BS46: POA | BU46: 0 | BW46: POA | BX46: POA | BY46: POA | BZ46: POA | CA46: POA | CB46: POA | CC46: POA | CD46: POA | CE46: POA | CF46: POA | CG46: POA
B47: MOD:Y53 | D47: VS:C | E47: IO:F | F47: BM:1 | T47: YA_5300_0046 | V47: POA | W47: SS (CF8M) | Y47: POA | Z47: POA | AA47: POA | AB47: POA | AC47: POA | AD47: POA | AE47: POA | AF47: =ROUNDUP($V47*FX!$G$2*CF!$B$3,0) ->  | AG47: =ROUNDUP($V47*FX!$G$10*CF!$B$4,0) ->  | AH47: =ROUNDUP($V47*FX!$G$35*CF!$B$5,0) ->  | AI47: =ROUNDUP($V47*FX!$G$3*CF!$B$6,0) ->  | BS47: POA | BU47: 0 | BW47: POA | BX47: POA | BY47: POA | BZ47: POA | CA47: POA | CB47: POA | CC47: POA | CD47: POA | CE47: POA | CF47: POA | CG47: POA
B48: MOD:Y53 | D48: VS:D | E48: IO:F | F48: BM:1 | T48: YA_5300_0047 | V48: POA | W48: SS (CF8M) | Y48: POA | Z48: POA | AA48: POA | AB48: POA | AC48: POA | AD48: POA | AE48: POA | AF48: =ROUNDUP($V48*FX!$G$2*CF!$B$3,0) ->  | AG48: =ROUNDUP($V48*FX!$G$10*CF!$B$4,0) ->  | AH48: =ROUNDUP($V48*FX!$G$35*CF!$B$5,0) ->  | AI48: =ROUNDUP($V48*FX!$G$3*CF!$B$6,0) ->  | BS48: POA | BU48: 0 | BW48: POA | BX48: POA | BY48: POA | BZ48: POA | CA48: POA | CB48: POA | CC48: POA | CD48: POA | CE48: POA | CF48: POA | CG48: POA
B49: MOD:Y53 | D49: VS:E | E49: IO:F | F49: BM:1 | T49: YA_5300_0048 | V49: POA | W49: SS (CF8M) | Y49: POA | Z49: POA | AA49: POA | AB49: POA | AC49: POA | AD49: POA | AE49: POA | AF49: =ROUNDUP($V49*FX!$G$2*CF!$B$3,0) ->  | AG49: =ROUNDUP($V49*FX!$G$10*CF!$B$4,0) ->  | AH49: =ROUNDUP($V49*FX!$G$35*CF!$B$5,0) ->  | AI49: =ROUNDUP($V49*FX!$G$3*CF!$B$6,0) ->  | BS49: POA | BU49: 0 | BW49: POA | BX49: POA | BY49: POA | BZ49: POA | CA49: POA | CB49: POA | CC49: POA | CD49: POA | CE49: POA | CF49: POA | CG49: POA
B50: MOD:Y53 | D50: VS:B | E50: IO:G | F50: BM:0 | T50: YA_5300_0049 | V50: POA | W50: CS (WCB) | Y50: POA | Z50: POA | AA50: POA | AB50: POA | AC50: POA | AD50: POA | AE50: POA | AF50: =ROUNDUP($V50*FX!$G$2*CF!$B$3,0) ->  | AG50: =ROUNDUP($V50*FX!$G$10*CF!$B$4,0) ->  | AH50: =ROUNDUP($V50*FX!$G$35*CF!$B$5,0) ->  | AI50: =ROUNDUP($V50*FX!$G$3*CF!$B$6,0) ->  | BS50: POA | BU50: 0 | BW50: POA | BX50: POA | BY50: POA | BZ50: POA | CA50: POA | CB50: POA | CC50: POA | CD50: POA | CE50: POA | CF50: POA | CG50: POA
B51: MOD:Y53 | D51: VS:C | E51: IO:G | F51: BM:0 | T51: YA_5300_0050 | V51: POA | W51: CS (WCB) | Y51: POA | Z51: POA | AA51: POA | AB51: POA | AC51: POA | AD51: POA | AE51: POA | AF51: =ROUNDUP($V51*FX!$G$2*CF!$B$3,0) ->  | AG51: =ROUNDUP($V51*FX!$G$10*CF!$B$4,0) ->  | AH51: =ROUNDUP($V51*FX!$G$35*CF!$B$5,0) ->  | AI51: =ROUNDUP($V51*FX!$G$3*CF!$B$6,0) ->  | BS51: POA | BU51: 0 | BW51: POA | BX51: POA | BY51: POA | BZ51: POA | CA51: POA | CB51: POA | CC51: POA | CD51: POA | CE51: POA | CF51: POA | CG51: POA
B52: MOD:Y53 | D52: VS:D | E52: IO:G | F52: BM:0 | T52: YA_5300_0051 | V52: POA | W52: CS (WCB) | Y52: POA | Z52: POA | AA52: POA | AB52: POA | AC52: POA | AD52: POA | AE52: POA | AF52: =ROUNDUP($V52*FX!$G$2*CF!$B$3,0) ->  | AG52: =ROUNDUP($V52*FX!$G$10*CF!$B$4,0) ->  | AH52: =ROUNDUP($V52*FX!$G$35*CF!$B$5,0) ->  | AI52: =ROUNDUP($V52*FX!$G$3*CF!$B$6,0) ->  | BS52: POA | BU52: 0 | BW52: POA | BX52: POA | BY52: POA | BZ52: POA | CA52: POA | CB52: POA | CC52: POA | CD52: POA | CE52: POA | CF52: POA | CG52: POA
B53: MOD:Y53 | D53: VS:E | E53: IO:G | F53: BM:0 | T53: YA_5300_0052 | V53: POA | W53: CS (WCB) | Y53: POA | Z53: POA | AA53: POA | AB53: POA | AC53: POA | AD53: POA | AE53: POA | AF53: =ROUNDUP($V53*FX!$G$2*CF!$B$3,0) ->  | AG53: =ROUNDUP($V53*FX!$G$10*CF!$B$4,0) ->  | AH53: =ROUNDUP($V53*FX!$G$35*CF!$B$5,0) ->  | AI53: =ROUNDUP($V53*FX!$G$3*CF!$B$6,0) ->  | BS53: POA | BU53: 0 | BW53: POA | BX53: POA | BY53: POA | BZ53: POA | CA53: POA | CB53: POA | CC53: POA | CD53: POA | CE53: POA | CF53: POA | CG53: POA
B54: MOD:Y53 | D54: VS:B | E54: IO:G | F54: BM:1 | T54: YA_5300_0053 | V54: POA | W54: SS (CF8M) | Y54: POA | Z54: POA | AA54: POA | AB54: POA | AC54: POA | AD54: POA | AE54: POA | AF54: =ROUNDUP($V54*FX!$G$2*CF!$B$3,0) ->  | AG54: =ROUNDUP($V54*FX!$G$10*CF!$B$4,0) ->  | AH54: =ROUNDUP($V54*FX!$G$35*CF!$B$5,0) ->  | AI54: =ROUNDUP($V54*FX!$G$3*CF!$B$6,0) ->  | BS54: =AE54 -> POA | BU54: 0 | BW54: POA | BX54: POA | BY54: POA | BZ54: POA | CA54: POA | CB54: POA | CC54: POA | CD54: POA | CE54: POA | CF54: POA | CG54: POA
B55: MOD:Y53 | D55: VS:C | E55: IO:G | F55: BM:1 | T55: YA_5300_0054 | V55: POA | W55: SS (CF8M) | Y55: POA | Z55: POA | AA55: POA | AB55: POA | AC55: POA | AD55: POA | AE55: POA | AF55: =ROUNDUP($V55*FX!$G$2*CF!$B$3,0) ->  | AG55: =ROUNDUP($V55*FX!$G$10*CF!$B$4,0) ->  | AH55: =ROUNDUP($V55*FX!$G$35*CF!$B$5,0) ->  | AI55: =ROUNDUP($V55*FX!$G$3*CF!$B$6,0) ->  | BS55: POA | BU55: 0 | BW55: POA | BX55: POA | BY55: POA | BZ55: POA | CA55: POA | CB55: POA | CC55: POA | CD55: POA | CE55: POA | CF55: POA | CG55: POA
B56: MOD:Y53 | D56: VS:D | E56: IO:G | F56: BM:1 | T56: YA_5300_0055 | V56: POA | W56: SS (CF8M) | Y56: POA | Z56: POA | AA56: POA | AB56: POA | AC56: POA | AD56: POA | AE56: POA | AF56: =ROUNDUP($V56*FX!$G$2*CF!$B$3,0) ->  | AG56: =ROUNDUP($V56*FX!$G$10*CF!$B$4,0) ->  | AH56: =ROUNDUP($V56*FX!$G$35*CF!$B$5,0) ->  | AI56: =ROUNDUP($V56*FX!$G$3*CF!$B$6,0) ->  | BS56: POA | BU56: 0 | BW56: POA | BX56: POA | BY56: POA | BZ56: POA | CA56: POA | CB56: POA | CC56: POA | CD56: POA | CE56: POA | CF56: POA | CG56: POA
B57: MOD:Y53 | D57: VS:E | E57: IO:G | F57: BM:1 | T57: YA_5300_0056 | V57: POA | W57: SS (CF8M) | Y57: POA | Z57: POA | AA57: POA | AB57: POA | AC57: POA | AD57: POA | AE57: POA | AF57: =ROUNDUP($V57*FX!$G$2*CF!$B$3,0) ->  | AG57: =ROUNDUP($V57*FX!$G$10*CF!$B$4,0) ->  | AH57: =ROUNDUP($V57*FX!$G$35*CF!$B$5,0) ->  | AI57: =ROUNDUP($V57*FX!$G$3*CF!$B$6,0) ->  | BS57: POA | BU57: 0 | BW57: POA | BX57: POA | BY57: POA | BZ57: POA | CA57: POA | CB57: POA | CC57: POA | CD57: POA | CE57: POA | CF57: POA | CG57: POA
B58: MOD:Y53 | D58: VS:B | E58: IO:H | F58: BM:0 | T58: YA_5300_0057 | V58: POA | W58: CS (WCB) | Y58: POA | Z58: POA | AA58: POA | AB58: POA | AC58: POA | AD58: POA | AE58: POA | AF58: =ROUNDUP($V58*FX!$G$2*CF!$B$3,0) ->  | AG58: =ROUNDUP($V58*FX!$G$10*CF!$B$4,0) ->  | AH58: =ROUNDUP($V58*FX!$G$35*CF!$B$5,0) ->  | AI58: =ROUNDUP($V58*FX!$G$3*CF!$B$6,0) ->  | BS58: POA | BU58: 0 | BW58: POA | BX58: POA | BY58: POA | BZ58: POA | CA58: POA | CB58: POA | CC58: POA | CD58: POA | CE58: POA | CF58: POA | CG58: POA
B59: MOD:Y53 | D59: VS:C | E59: IO:H | F59: BM:0 | T59: YA_5300_0058 | V59: POA | W59: CS (WCB) | Y59: POA | Z59: POA | AA59: POA | AB59: POA | AC59: POA | AD59: POA | AE59: POA | AF59: =ROUNDUP($V59*FX!$G$2*CF!$B$3,0) ->  | AG59: =ROUNDUP($V59*FX!$G$10*CF!$B$4,0) ->  | AH59: =ROUNDUP($V59*FX!$G$35*CF!$B$5,0) ->  | AI59: =ROUNDUP($V59*FX!$G$3*CF!$B$6,0) ->  | BS59: POA | BU59: 0 | BW59: POA | BX59: POA | BY59: POA | BZ59: POA | CA59: POA | CB59: POA | CC59: POA | CD59: POA | CE59: POA | CF59: POA | CG59: POA
B60: MOD:Y53 | D60: VS:D | E60: IO:H | F60: BM:0 | T60: YA_5300_0059 | V60: POA | W60: CS (WCB) | Y60: POA | Z60: POA | AA60: POA | AB60: POA | AC60: POA | AD60: POA | AE60: POA | AF60: =ROUNDUP($V60*FX!$G$2*CF!$B$3,0) ->  | AG60: =ROUNDUP($V60*FX!$G$10*CF!$B$4,0) ->  | AH60: =ROUNDUP($V60*FX!$G$35*CF!$B$5,0) ->  | AI60: =ROUNDUP($V60*FX!$G$3*CF!$B$6,0) ->  | BS60: POA | BU60: 0 | BW60: POA | BX60: POA | BY60: POA | BZ60: POA | CA60: POA | CB60: POA | CC60: POA | CD60: POA | CE60: POA | CF60: POA | CG60: POA
B61: MOD:Y53 | D61: VS:E | E61: IO:H | F61: BM:0 | T61: YA_5300_0060 | V61: POA | W61: CS (WCB) | Y61: POA | Z61: POA | AA61: POA | AB61: POA | AC61: POA | AD61: POA | AE61: POA | AF61: =ROUNDUP($V61*FX!$G$2*CF!$B$3,0) ->  | AG61: =ROUNDUP($V61*FX!$G$10*CF!$B$4,0) ->  | AH61: =ROUNDUP($V61*FX!$G$35*CF!$B$5,0) ->  | AI61: =ROUNDUP($V61*FX!$G$3*CF!$B$6,0) ->  | BS61: POA | BU61: 0 | BW61: POA | BX61: POA | BY61: POA | BZ61: POA | CA61: POA | CB61: POA | CC61: POA | CD61: POA | CE61: POA | CF61: POA | CG61: POA
B62: MOD:Y53 | D62: VS:B | E62: IO:H | F62: BM:1 | T62: YA_5300_0061 | V62: POA | W62: SS (CF8M) | Y62: POA | Z62: POA | AA62: POA | AB62: POA | AC62: POA | AD62: POA | AE62: POA | AF62: =ROUNDUP($V62*FX!$G$2*CF!$B$3,0) ->  | AG62: =ROUNDUP($V62*FX!$G$10*CF!$B$4,0) ->  | AH62: =ROUNDUP($V62*FX!$G$35*CF!$B$5,0) ->  | AI62: =ROUNDUP($V62*FX!$G$3*CF!$B$6,0) ->  | BS62: POA | BU62: 0 | BW62: POA | BX62: POA | BY62: POA | BZ62: POA | CA62: POA | CB62: POA | CC62: POA | CD62: POA | CE62: POA | CF62: POA | CG62: POA
B63: MOD:Y53 | D63: VS:C | E63: IO:H | F63: BM:1 | T63: YA_5300_0062 | V63: POA | W63: SS (CF8M) | Y63: POA | Z63: POA | AA63: POA | AB63: POA | AC63: POA | AD63: POA | AE63: POA | AF63: =ROUNDUP($V63*FX!$G$2*CF!$B$3,0) ->  | AG63: =ROUNDUP($V63*FX!$G$10*CF!$B$4,0) ->  | AH63: =ROUNDUP($V63*FX!$G$35*CF!$B$5,0) ->  | AI63: =ROUNDUP($V63*FX!$G$3*CF!$B$6,0) ->  | BS63: POA | BU63: 0 | BW63: POA | BX63: POA | BY63: POA | BZ63: POA | CA63: POA | CB63: POA | CC63: POA | CD63: POA | CE63: POA | CF63: POA | CG63: POA
B64: MOD:Y53 | D64: VS:D | E64: IO:H | F64: BM:1 | T64: YA_5300_0063 | V64: POA | W64: SS (CF8M) | Y64: POA | Z64: POA | AA64: POA | AB64: POA | AC64: POA | AD64: POA | AE64: POA | AF64: =ROUNDUP($V64*FX!$G$2*CF!$B$3,0) ->  | AG64: =ROUNDUP($V64*FX!$G$10*CF!$B$4,0) ->  | AH64: =ROUNDUP($V64*FX!$G$35*CF!$B$5,0) ->  | AI64: =ROUNDUP($V64*FX!$G$3*CF!$B$6,0) ->  | BS64: POA | BU64: 0 | BW64: POA | BX64: POA | BY64: POA | BZ64: POA | CA64: POA | CB64: POA | CC64: POA | CD64: POA | CE64: POA | CF64: POA | CG64: POA
B65: MOD:Y53 | D65: VS:E | E65: IO:H | F65: BM:1 | T65: YA_5300_0064 | V65: POA | W65: SS (CF8M) | Y65: POA | Z65: POA | AA65: POA | AB65: POA | AC65: POA | AD65: POA | AE65: POA | AF65: =ROUNDUP($V65*FX!$G$2*CF!$B$3,0) ->  | AG65: =ROUNDUP($V65*FX!$G$10*CF!$B$4,0) ->  | AH65: =ROUNDUP($V65*FX!$G$35*CF!$B$5,0) ->  | AI65: =ROUNDUP($V65*FX!$G$3*CF!$B$6,0) ->  | BS65: POA | BU65: 0 | BW65: POA | BX65: POA | BY65: POA | BZ65: POA | CA65: POA | CB65: POA | CC65: POA | CD65: POA | CE65: POA | CF65: POA | CG65: POA
B66: MOD:Y53 | D66: VS:B | E66: IO:I | F66: BM:0 | T66: YA_5300_0065 | V66: =AE66 -> POA | W66: CS (WCB) | Y66: POA | Z66: =IFERROR(AA66*1.03,"POA") -> POA | AA66: POA | AB66: POA | AC66: POA | AD66: POA | AE66: POA | AF66: =ROUNDUP($V66*FX!$G$2*CF!$B$3,0) ->  | AG66: =ROUNDUP($V66*FX!$G$10*CF!$B$4,0) ->  | AH66: =ROUNDUP($V66*FX!$G$35*CF!$B$5,0) ->  | AI66: =ROUNDUP($V66*FX!$G$3*CF!$B$6,0) ->  | BS66: POA | BU66: 0 | BW66: POA | BX66: POA | BY66: POA | BZ66: POA | CA66: POA | CB66: POA | CC66: POA | CD66: POA | CE66: POA | CF66: =IF(CE66="POA","POA", ROUNDUP(CE66*1.055,0)) -> POA | CG66: POA
B67: MOD:Y53 | D67: VS:C | E67: IO:I | F67: BM:0 | T67: YA_5300_0066 | V67: POA | W67: CS (WCB) | Y67: =IFERROR(Z67*1,"POA") -> POA | Z67: POA | AA67: POA | AB67: POA | AC67: POA | AD67: POA | AE67: =CG67 -> POA | AF67: =ROUNDUP($V67*FX!$G$2*CF!$B$3,0) ->  | AG67: =ROUNDUP($V67*FX!$G$10*CF!$B$4,0) ->  | AH67: =ROUNDUP($V67*FX!$G$35*CF!$B$5,0) ->  | AI67: =ROUNDUP($V67*FX!$G$3*CF!$B$6,0) ->  | BO67: =ROUNDUP(($AE67+($AE67*$BO$1)),0) ->  | BS67: POA | BU67: =ROUNDUP(BT67,0) -> 0 | BW67: POA | BX67: POA | BY67: POA | BZ67: POA | CA67: POA | CB67: POA | CC67: POA | CD67: POA | CE67: POA | CF67: POA | CG67: =IF(CF67="POA","POA", ROUNDUP(CF67*1.043,0)) -> POA
B68: MOD:Y53 | D68: VS:D | E68: IO:I | F68: BM:0 | T68: YA_5300_0067 | V68: POA | W68: CS (WCB) | Y68: POA | Z68: POA | AA68: POA | AB68: POA | AC68: POA | AD68: POA | AE68: POA | AF68: =ROUNDUP($V68*FX!$G$2*CF!$B$3,0) ->  | AG68: =ROUNDUP($V68*FX!$G$10*CF!$B$4,0) ->  | AH68: =ROUNDUP($V68*FX!$G$35*CF!$B$5,0) ->  | AI68: =ROUNDUP($V68*FX!$G$3*CF!$B$6,0) ->  | BS68: POA | BU68: 0 | BW68: POA | BX68: POA | BY68: POA | BZ68: POA | CA68: POA | CB68: POA | CC68: POA | CD68: POA | CE68: POA | CF68: POA | CG68: POA
B69: MOD:Y53 | D69: VS:E | E69: IO:I | F69: BM:0 | T69: YA_5300_0068 | V69: POA | W69: CS (WCB) | Y69: POA | Z69: POA | AA69: POA | AB69: POA | AC69: POA | AD69: POA | AE69: POA | AF69: =ROUNDUP($V69*FX!$G$2*CF!$B$3,0) ->  | AG69: =ROUNDUP($V69*FX!$G$10*CF!$B$4,0) ->  | AH69: =ROUNDUP($V69*FX!$G$35*CF!$B$5,0) ->  | AI69: =ROUNDUP($V69*FX!$G$3*CF!$B$6,0) ->  | BS69: POA | BU69: 0 | BW69: POA | BX69: POA | BY69: POA | BZ69: POA | CA69: POA | CB69: POA | CC69: POA | CD69: POA | CE69: POA | CF69: POA | CG69: POA
B70: MOD:Y53 | D70: VS:B | E70: IO:I | F70: BM:1 | T70: YA_5300_0069 | V70: POA | W70: SS (CF8M) | Y70: POA | Z70: POA | AA70: POA | AB70: POA | AC70: POA | AD70: POA | AE70: POA | AF70: =ROUNDUP($V70*FX!$G$2*CF!$B$3,0) ->  | AG70: =ROUNDUP($V70*FX!$G$10*CF!$B$4,0) ->  | AH70: =ROUNDUP($V70*FX!$G$35*CF!$B$5,0) ->  | AI70: =ROUNDUP($V70*FX!$G$3*CF!$B$6,0) ->  | BS70: POA | BU70: 0 | BW70: POA | BX70: POA | BY70: POA | BZ70: POA | CA70: POA | CB70: POA | CC70: POA | CD70: POA | CE70: POA | CF70: POA | CG70: POA
B71: MOD:Y53 | D71: VS:C | E71: IO:I | F71: BM:1 | T71: YA_5300_0070 | V71: POA | W71: SS (CF8M) | Y71: POA | Z71: POA | AA71: POA | AB71: POA | AC71: POA | AD71: POA | AE71: POA | AF71: =ROUNDUP($V71*FX!$G$2*CF!$B$3,0) ->  | AG71: =ROUNDUP($V71*FX!$G$10*CF!$B$4,0) ->  | AH71: =ROUNDUP($V71*FX!$G$35*CF!$B$5,0) ->  | AI71: =ROUNDUP($V71*FX!$G$3*CF!$B$6,0) ->  | BS71: POA | BU71: 0 | BW71: POA | BX71: POA | BY71: POA | BZ71: POA | CA71: POA | CB71: POA | CC71: POA | CD71: POA | CE71: POA | CF71: POA | CG71: POA
B72: MOD:Y53 | D72: VS:D | E72: IO:I | F72: BM:1 | T72: YA_5300_0071 | V72: POA | W72: SS (CF8M) | Y72: POA | Z72: POA | AA72: POA | AB72: POA | AC72: POA | AD72: POA | AE72: POA | AF72: =ROUNDUP($V72*FX!$G$2*CF!$B$3,0) ->  | AG72: =ROUNDUP($V72*FX!$G$10*CF!$B$4,0) ->  | AH72: =ROUNDUP($V72*FX!$G$35*CF!$B$5,0) ->  | AI72: =ROUNDUP($V72*FX!$G$3*CF!$B$6,0) ->  | BS72: POA | BU72: 0 | BW72: POA | BX72: POA | BY72: POA | BZ72: POA | CA72: POA | CB72: POA | CC72: POA | CD72: POA | CE72: POA | CF72: POA | CG72: POA
B73: MOD:Y53 | D73: VS:E | E73: IO:I | F73: BM:1 | T73: YA_5300_0072 | V73: POA | W73: SS (CF8M) | Y73: POA | Z73: POA | AA73: POA | AB73: POA | AC73: POA | AD73: POA | AE73: POA | AF73: =ROUNDUP($V73*FX!$G$2*CF!$B$3,0) ->  | AG73: =ROUNDUP($V73*FX!$G$10*CF!$B$4,0) ->  | AH73: =ROUNDUP($V73*FX!$G$35*CF!$B$5,0) ->  | AI73: =ROUNDUP($V73*FX!$G$3*CF!$B$6,0) ->  | BS73: POA | BU73: 0 | BW73: POA | BX73: POA | BY73: POA | BZ73: POA | CA73: POA | CB73: POA | CC73: POA | CD73: POA | CE73: POA | CF73: POA | CG73: POA
B74: MOD:Y53 | D74: IO:A | E74: BC:A | T74: YA_5300_0073 | V74: 0 | W74: 900# RF | Y74: 0 | Z74: =ROUND(IFERROR(AA74*1.03,"POA"),0) -> 0 | AA74: 0 | AB74: 0 | AC74: 0 | AD74: 0 | AE74: 0 | AF74: =ROUNDUP($V74*FX!$G$2*CF!$B$3,0) -> 0 | AG74: =ROUNDUP($V74*FX!$G$10*CF!$B$4,0) -> 0 | AH74: =ROUNDUP($V74*FX!$G$35*CF!$B$5,0) -> 0 | AI74: =ROUNDUP($V74*FX!$G$3*CF!$B$6,0) -> 0 | BO74: 0 | BR74: 0 | BS74: =ROUNDUP(BR74,0) -> 0 | BU74: 0 | BW74: 0 | BX74: =ROUNDUP(($BW74+($BX$1*$BW74)),0) -> 0 | BY74: =ROUNDUP(BX74,0) -> 0 | BZ74: =BY74+(BY74*$BZ$1) -> 0 | CA74: 0 | CB74: =ROUNDUP(CA74,0) -> 0 | CC74: =CB74+(CB74*$CC$1) -> 0 | CD74: 0 | CE74: =ROUNDUP(CD74,0) -> 0 | CF74: 0 | CG74: 0
B75: MOD:Y53 | D75: IO:B | E75: BC:B | T75: YA_5300_0074 | V75: 0 | W75: 1500# RF | Y75: 0 | Z75: 0 | AA75: 0 | AB75: 0 | AC75: 0 | AD75: 0 | AE75: 0 | AF75: =ROUNDUP($V75*FX!$G$2*CF!$B$3,0) -> 0 | AG75: =ROUNDUP($V75*FX!$G$10*CF!$B$4,0) -> 0 | AH75: =ROUNDUP($V75*FX!$G$35*CF!$B$5,0) -> 0 | AI75: =ROUNDUP($V75*FX!$G$3*CF!$B$6,0) -> 0 | BO75: 0 | BR75: 0 | BS75: 0 | BU75: 0 | BW75: 0 | BX75: 0 | BY75: 0 | BZ75: 0 | CA75: 0 | CB75: 0 | CC75: 0 | CD75: 0 | CE75: 0 | CF75: 0 | CG75: 0
B76: MOD:Y53 | D76: IO:C | E76: BC:C | T76: YA_5300_0075 | V76: 0 | W76: 2500# RF | Y76: 0 | Z76: 0 | AA76: 0 | AB76: 0 | AC76: 0 | AD76: 0 | AE76: 0 | AF76: =ROUNDUP($V76*FX!$G$2*CF!$B$3,0) -> 0 | AG76: =ROUNDUP($V76*FX!$G$10*CF!$B$4,0) -> 0 | AH76: =ROUNDUP($V76*FX!$G$35*CF!$B$5,0) -> 0 | AI76: =ROUNDUP($V76*FX!$G$3*CF!$B$6,0) -> 0 | BO76: 0 | BR76: 0 | BS76: 0 | BU76: 0 | BW76: 0 | BX76: 0 | BY76: 0 | BZ76: 0 | CA76: 0 | CB76: 0 | CC76: 0 | CD76: 0 | CE76: 0 | CF76: 0 | CG76: 0
B77: MOD:Y53 | D77: IO:D | E77: BC:D | T77: YA_5300_0076 | V77: 0 | W77: 900# RTJ | Y77: 0 | Z77: 0 | AA77: 0 | AB77: 0 | AC77: 0 | AD77: 0 | AE77: 0 | AF77: =ROUNDUP($V77*FX!$G$2*CF!$B$3,0) -> 0 | AG77: =ROUNDUP($V77*FX!$G$10*CF!$B$4,0) -> 0 | AH77: =ROUNDUP($V77*FX!$G$35*CF!$B$5,0) -> 0 | AI77: =ROUNDUP($V77*FX!$G$3*CF!$B$6,0) -> 0 | BO77: 0 | BR77: 0 | BS77: 0 | BU77: 0 | BW77: 0 | BX77: 0 | BY77: 0 | BZ77: 0 | CA77: 0 | CB77: 0 | CC77: 0 | CD77: 0 | CE77: 0 | CF77: 0 | CG77: 0
B78: MOD:Y53 | D78: IO:E | E78: BC:E | T78: YA_5300_0077 | V78: 0 | W78: 1500# RTJ | Y78: 0 | Z78: 0 | AA78: 0 | AB78: 0 | AC78: 0 | AD78: 0 | AE78: 0 | AF78: =ROUNDUP($V78*FX!$G$2*CF!$B$3,0) -> 0 | AG78: =ROUNDUP($V78*FX!$G$10*CF!$B$4,0) -> 0 | AH78: =ROUNDUP($V78*FX!$G$35*CF!$B$5,0) -> 0 | AI78: =ROUNDUP($V78*FX!$G$3*CF!$B$6,0) -> 0 | BO78: 0 | BR78: 0 | BS78: 0 | BU78: 0 | BW78: 0 | BX78: 0 | BY78: 0 | BZ78: 0 | CA78: 0 | CB78: 0 | CC78: 0 | CD78: 0 | CE78: 0 | CF78: 0 | CG78: 0
B79: MOD:Y53 | D79: IO:F | E79: BC:F | T79: YA_5300_0078 | V79: 0 | W79: 2500# RTJ | Y79: 0 | Z79: 0 | AA79: 0 | AB79: 0 | AC79: 0 | AD79: 0 | AE79: 0 | AF79: =ROUNDUP($V79*FX!$G$2*CF!$B$3,0) -> 0 | AG79: =ROUNDUP($V79*FX!$G$10*CF!$B$4,0) -> 0 | AH79: =ROUNDUP($V79*FX!$G$35*CF!$B$5,0) -> 0 | AI79: =ROUNDUP($V79*FX!$G$3*CF!$B$6,0) -> 0 | BO79: 0 | BR79: 0 | BS79: 0 | BU79: 0 | BW79: 0 | BX79: 0 | BY79: 0 | BZ79: 0 | CA79: 0 | CB79: 0 | CC79: 0 | CD79: 0 | CE79: 0 | CF79: 0 | CG79: 0
B80: MOD:Y53 | D80: IO:G | E80: BC:A,D | T80: YA_5300_0079 | V80: 0 | W80: 900# BWE Sch 80 | Y80: 0 | Z80: 0 | AA80: 0 | AB80: 0 | AC80: 0 | AD80: 0 | AE80: 0 | AF80: =ROUNDUP($V80*FX!$G$2*CF!$B$3,0) -> 0 | AG80: =ROUNDUP($V80*FX!$G$10*CF!$B$4,0) -> 0 | AH80: =ROUNDUP($V80*FX!$G$35*CF!$B$5,0) -> 0 | AI80: =ROUNDUP($V80*FX!$G$3*CF!$B$6,0) -> 0 | BO80: 0 | BR80: 0 | BS80: 0 | BU80: 0 | BW80: 0 | BX80: 0 | BY80: 0 | BZ80: 0 | CA80: 0 | CB80: 0 | CC80: 0 | CD80: 0 | CE80: 0 | CF80: 0 | CG80: 0
B81: MOD:Y53 | D81: IO:H | E81: BC:B,E | T81: YA_5300_0080 | V81: 0 | W81: 1500# BWE Sch 160 | Y81: 0 | Z81: 0 | AA81: 0 | AB81: 0 | AC81: 0 | AD81: 0 | AE81: 0 | AF81: =ROUNDUP($V81*FX!$G$2*CF!$B$3,0) -> 0 | AG81: =ROUNDUP($V81*FX!$G$10*CF!$B$4,0) -> 0 | AH81: =ROUNDUP($V81*FX!$G$35*CF!$B$5,0) -> 0 | AI81: =ROUNDUP($V81*FX!$G$3*CF!$B$6,0) -> 0 | BO81: 0 | BR81: 0 | BS81: 0 | BU81: 0 | BW81: 0 | BX81: 0 | BY81: 0 | BZ81: 0 | CA81: 0 | CB81: 0 | CC81: 0 | CD81: 0 | CE81: 0 | CF81: 0 | CG81: 0
B82: MOD:Y53 | D82: IO:I | E82: BC:C,F | T82: YA_5300_0081 | V82: 0 | W82: 2500# BWE Sch XXS | Y82: 0 | Z82: 0 | AA82: 0 | AB82: 0 | AC82: 0 | AD82: 0 | AE82: 0 | AF82: =ROUNDUP($V82*FX!$G$2*CF!$B$3,0) -> 0 | AG82: =ROUNDUP($V82*FX!$G$10*CF!$B$4,0) -> 0 | AH82: =ROUNDUP($V82*FX!$G$35*CF!$B$5,0) -> 0 | AI82: =ROUNDUP($V82*FX!$G$3*CF!$B$6,0) -> 0 | BO82: 0 | BR82: 0 | BS82: 0 | BU82: 0 | BW82: 0 | BX82: 0 | BY82: 0 | BZ82: 0 | CA82: 0 | CB82: 0 | CC82: 0 | CD82: 0 | CE82: 0 | CF82: 0 | CG82: 0
B83: MOD:Y53 | D83: IO:A,G | E83: BC:A | T83: YA_5300_0082 | V83: 0 | W83: 900# RF | Y83: 0 | Z83: 0 | AA83: 0 | AB83: 0 | AC83: 0 | AD83: 0 | AE83: 0 | AF83: =ROUNDUP($V83*FX!$G$2*CF!$B$3,0) -> 0 | AG83: =ROUNDUP($V83*FX!$G$10*CF!$B$4,0) -> 0 | AH83: =ROUNDUP($V83*FX!$G$35*CF!$B$5,0) -> 0 | AI83: =ROUNDUP($V83*FX!$G$3*CF!$B$6,0) -> 0 | BO83: 0 | BR83: 0 | BS83: 0 | BU83: 0 | BW83: 0 | BX83: 0 | BY83: 0 | BZ83: 0 | CA83: 0 | CB83: 0 | CC83: 0 | CD83: 0 | CE83: 0 | CF83: 0 | CG83: 0
B84: MOD:Y53 | D84: IO:B,H | E84: BC:B | T84: YA_5300_0083 | V84: 0 | W84: 1500# RF | Y84: 0 | Z84: 0 | AA84: 0 | AB84: 0 | AC84: 0 | AD84: 0 | AE84: 0 | AF84: =ROUNDUP($V84*FX!$G$2*CF!$B$3,0) -> 0 | AG84: =ROUNDUP($V84*FX!$G$10*CF!$B$4,0) -> 0 | AH84: =ROUNDUP($V84*FX!$G$35*CF!$B$5,0) -> 0 | AI84: =ROUNDUP($V84*FX!$G$3*CF!$B$6,0) -> 0 | BO84: 0 | BR84: 0 | BS84: 0 | BU84: 0 | BW84: 0 | BX84: 0 | BY84: 0 | BZ84: 0 | CA84: 0 | CB84: 0 | CC84: 0 | CD84: 0 | CE84: 0 | CF84: 0 | CG84: 0
B85: MOD:Y53 | D85: IO:C,I | E85: BC:C | T85: YA_5300_0084 | V85: 0 | W85: 2500# RF | Y85: 0 | Z85: 0 | AA85: 0 | AB85: 0 | AC85: 0 | AD85: 0 | AE85: 0 | AF85: =ROUNDUP($V85*FX!$G$2*CF!$B$3,0) -> 0 | AG85: =ROUNDUP($V85*FX!$G$10*CF!$B$4,0) -> 0 | AH85: =ROUNDUP($V85*FX!$G$35*CF!$B$5,0) -> 0 | AI85: =ROUNDUP($V85*FX!$G$3*CF!$B$6,0) -> 0 | BO85: 0 | BR85: 0 | BS85: 0 | BU85: 0 | BW85: 0 | BX85: 0 | BY85: 0 | BZ85: 0 | CA85: 0 | CB85: 0 | CC85: 0 | CD85: 0 | CE85: 0 | CF85: 0 | CG85: 0
B86: MOD:Y53 | D86: IO:D,G | E86: BC:D | T86: YA_5300_0085 | V86: 0 | W86: 900# RTJ | Y86: 0 | Z86: 0 | AA86: 0 | AB86: 0 | AC86: 0 | AD86: 0 | AE86: 0 | AF86: =ROUNDUP($V86*FX!$G$2*CF!$B$3,0) -> 0 | AG86: =ROUNDUP($V86*FX!$G$10*CF!$B$4,0) -> 0 | AH86: =ROUNDUP($V86*FX!$G$35*CF!$B$5,0) -> 0 | AI86: =ROUNDUP($V86*FX!$G$3*CF!$B$6,0) -> 0 | BO86: 0 | BR86: 0 | BS86: 0 | BU86: 0 | BW86: 0 | BX86: 0 | BY86: 0 | BZ86: 0 | CA86: 0 | CB86: 0 | CC86: 0 | CD86: 0 | CE86: 0 | CF86: 0 | CG86: 0
B87: MOD:Y53 | D87: IO:E,H | E87: BC:E | T87: YA_5300_0086 | V87: 0 | W87: 1500# RTJ | Y87: 0 | Z87: 0 | AA87: 0 | AB87: 0 | AC87: 0 | AD87: 0 | AE87: 0 | AF87: =ROUNDUP($V87*FX!$G$2*CF!$B$3,0) -> 0 | AG87: =ROUNDUP($V87*FX!$G$10*CF!$B$4,0) -> 0 | AH87: =ROUNDUP($V87*FX!$G$35*CF!$B$5,0) -> 0 | AI87: =ROUNDUP($V87*FX!$G$3*CF!$B$6,0) -> 0 | BO87: 0 | BR87: 0 | BS87: 0 | BU87: 0 | BW87: 0 | BX87: 0 | BY87: 0 | BZ87: 0 | CA87: 0 | CB87: 0 | CC87: 0 | CD87: 0 | CE87: 0 | CF87: 0 | CG87: 0
B88: MOD:Y53 | D88: IO:F,I | E88: BC:F | T88: YA_5300_0087 | V88: 0 | W88: 2500# RTJ | Y88: 0 | Z88: 0 | AA88: 0 | AB88: 0 | AC88: 0 | AD88: 0 | AE88: 0 | AF88: =ROUNDUP($V88*FX!$G$2*CF!$B$3,0) -> 0 | AG88: =ROUNDUP($V88*FX!$G$10*CF!$B$4,0) -> 0 | AH88: =ROUNDUP($V88*FX!$G$35*CF!$B$5,0) -> 0 | AI88: =ROUNDUP($V88*FX!$G$3*CF!$B$6,0) -> 0 | BO88: 0 | BR88: 0 | BS88: 0 | BU88: 0 | BW88: 0 | BX88: 0 | BY88: 0 | BZ88: 0 | CA88: 0 | CB88: 0 | CC88: 0 | CD88: 0 | CE88: 0 | CF88: 0 | CG88: 0
B89: MOD:Y53 | D89: VD:1 | T89: YA_5300_0088 | V89: 0 | W89: Disc 1 | Y89: 0 | Z89: 0 | AA89: 0 | AB89: 0 | AC89: 0 | AD89: 0 | AE89: 0 | AF89: =ROUNDUP($V89*FX!$G$2*CF!$B$3,0) -> 0 | AG89: =ROUNDUP($V89*FX!$G$10*CF!$B$4,0) -> 0 | AH89: =ROUNDUP($V89*FX!$G$35*CF!$B$5,0) -> 0 | AI89: =ROUNDUP($V89*FX!$G$3*CF!$B$6,0) -> 0 | BO89: 0 | BR89: 0 | BS89: 0 | BU89: 0 | BW89: 0 | BX89: 0 | BY89: 0 | BZ89: 0 | CA89: 0 | CB89: 0 | CC89: 0 | CD89: 0 | CE89: 0 | CF89: 0 | CG89: 0
B90: MOD:Y53 | D90: VD:2 | T90: YA_5300_0089 | V90: 0 | W90: Disc 2 | Y90: 0 | Z90: 0 | AA90: 0 | AB90: 0 | AC90: 0 | AD90: 0 | AE90: 0 | AF90: =ROUNDUP($V90*FX!$G$2*CF!$B$3,0) -> 0 | AG90: =ROUNDUP($V90*FX!$G$10*CF!$B$4,0) -> 0 | AH90: =ROUNDUP($V90*FX!$G$35*CF!$B$5,0) -> 0 | AI90: =ROUNDUP($V90*FX!$G$3*CF!$B$6,0) -> 0 | BO90: 0 | BR90: 0 | BS90: 0 | BU90: 0 | BW90: 0 | BX90: 0 | BY90: 0 | BZ90: 0 | CA90: 0 | CB90: 0 | CC90: 0 | CD90: 0 | CE90: 0 | CF90: 0 | CG90: 0
B91: MOD:Y53 | D91: VD:3 | T91: YA_5300_0090 | V91: 0 | W91: Disc 3 | Y91: 0 | Z91: 0 | AA91: 0 | AB91: 0 | AC91: 0 | AD91: 0 | AE91: 0 | AF91: =ROUNDUP($V91*FX!$G$2*CF!$B$3,0) -> 0 | AG91: =ROUNDUP($V91*FX!$G$10*CF!$B$4,0) -> 0 | AH91: =ROUNDUP($V91*FX!$G$35*CF!$B$5,0) -> 0 | AI91: =ROUNDUP($V91*FX!$G$3*CF!$B$6,0) -> 0 | BO91: 0 | BR91: 0 | BS91: 0 | BU91: 0 | BW91: 0 | BX91: 0 | BY91: 0 | BZ91: 0 | CA91: 0 | CB91: 0 | CC91: 0 | CD91: 0 | CE91: 0 | CF91: 0 | CG91: 0
B92: MOD:Y53 | D92: VD:4 | T92: YA_5300_0091 | V92: 0 | W92: Disc 4 | Y92: 0 | Z92: 0 | AA92: 0 | AB92: 0 | AC92: 0 | AD92: 0 | AE92: 0 | AF92: =ROUNDUP($V92*FX!$G$2*CF!$B$3,0) -> 0 | AG92: =ROUNDUP($V92*FX!$G$10*CF!$B$4,0) -> 0 | AH92: =ROUNDUP($V92*FX!$G$35*CF!$B$5,0) -> 0 | AI92: =ROUNDUP($V92*FX!$G$3*CF!$B$6,0) -> 0 | BO92: 0 | BR92: 0 | BS92: 0 | BU92: 0 | BW92: 0 | BX92: 0 | BY92: 0 | BZ92: 0 | CA92: 0 | CB92: 0 | CC92: 0 | CD92: 0 | CE92: 0 | CF92: 0 | CG92: 0
B93: MOD:Y53 | D93: TS:2 | T93: YA_5300_0092 | V93: 0 | W93: 2 Stage | Y93: 0 | Z93: 0 | AA93: 0 | AB93: 0 | AC93: 0 | AD93: 0 | AE93: 0 | AF93: =ROUNDUP($V93*FX!$G$2*CF!$B$3,0) -> 0 | AG93: =ROUNDUP($V93*FX!$G$10*CF!$B$4,0) -> 0 | AH93: =ROUNDUP($V93*FX!$G$35*CF!$B$5,0) -> 0 | AI93: =ROUNDUP($V93*FX!$G$3*CF!$B$6,0) -> 0 | BO93: 0 | BR93: 0 | BS93: 0 | BU93: 0 | BW93: 0 | BX93: 0 | BY93: 0 | BZ93: 0 | CA93: 0 | CB93: 0 | CC93: 0 | CD93: 0 | CE93: 0 | CF93: 0 | CG93: 0
B94: MOD:Y53 | D94: TS:4 | T94: YA_5300_0093 | V94: 0 | W94: 4 Stage | Y94: 0 | Z94: 0 | AA94: 0 | AB94: 0 | AC94: 0 | AD94: 0 | AE94: 0 | AF94: =ROUNDUP($V94*FX!$G$2*CF!$B$3,0) -> 0 | AG94: =ROUNDUP($V94*FX!$G$10*CF!$B$4,0) -> 0 | AH94: =ROUNDUP($V94*FX!$G$35*CF!$B$5,0) -> 0 | AI94: =ROUNDUP($V94*FX!$G$3*CF!$B$6,0) -> 0 | BO94: 0 | BR94: 0 | BS94: 0 | BU94: 0 | BW94: 0 | BX94: 0 | BY94: 0 | BZ94: 0 | CA94: 0 | CB94: 0 | CC94: 0 | CD94: 0 | CE94: 0 | CF94: 0 | CG94: 0
B95: MOD:Y53 | D95: SM:P | E95: VS:B,C,D,E | T95: YA_5300_0094 | V95: 0 | W95: PTFE (Af/Flz)STD | Y95: 0 | Z95: 0 | AA95: 0 | AB95: 0 | AC95: 0 | AD95: 0 | AE95: 0 | AF95: =ROUNDUP($V95*FX!$G$2*CF!$B$3,0) -> 0 | AG95: =ROUNDUP($V95*FX!$G$10*CF!$B$4,0) -> 0 | AH95: =ROUNDUP($V95*FX!$G$35*CF!$B$5,0) -> 0 | AI95: =ROUNDUP($V95*FX!$G$3*CF!$B$6,0) -> 0 | BO95: 0 | BR95: 0 | BS95: 0 | BU95: 0 | BW95: 0 | BX95: 0 | BY95: 0 | BZ95: 0 | CA95: 0 | CB95: 0 | CC95: 0 | CD95: 0 | CE95: 0 | CF95: 0 | CG95: 0
B96: MOD:Y53 | D96: SM:E | E96: VS:B | T96: YA_5300_0095 | V96: 451 | W96: EPDM | Y96: 344 | Z96: 344 | AA96: 334 | AB96: 334 | AC96: 324 | AD96: 315 | AE96: 451 | AF96: =ROUNDUP($V96*FX!$G$2*CF!$B$3,0) -> 451 | AG96: =ROUNDUP($V96*FX!$G$10*CF!$B$4,0) -> 623 | AH96: =ROUNDUP($V96*FX!$G$35*CF!$B$5,0) -> 304 | AI96: =ROUNDUP($V96*FX!$G$3*CF!$B$6,0) -> 628 | BO96: 470 | BR96: 359.49 | BS96: 360 | BU96: 0 | BW96: 344.02 | BX96: 359 | BY96: 359 | BZ96: =BY96+(BY96*$BZ$1) -> 373.36 | CA96: 373.36 | CB96: 374 | CC96: 408.782 | CD96: 408.782 | CE96: 409 | CF96: 432 | CG96: 451
B97: MOD:Y53 | D97: SM:K | E97: VS:B | T97: YA_5300_0096 | V97: 964 | W97: Kalrez | Y97: 737 | Z97: 737 | AA97: 716 | AB97: 716 | AC97: 695 | AD97: 675 | AE97: 964 | AF97: =ROUNDUP($V97*FX!$G$2*CF!$B$3,0) -> 964 | AG97: =ROUNDUP($V97*FX!$G$10*CF!$B$4,0) -> 1330 | AH97: =ROUNDUP($V97*FX!$G$35*CF!$B$5,0) -> 648 | AI97: =ROUNDUP($V97*FX!$G$3*CF!$B$6,0) -> 1341 | BO97: 1005 | BR97: 768.996 | BS97: 769 | BU97: 0 | BW97: 737.48 | BX97: 769 | BY97: 769 | BZ97: 799.76 | CA97: 799.76 | CB97: 800 | CC97: 874.4 | CD97: 874.4 | CE97: 875 | CF97: 924 | CG97: 964
B98: MOD:Y53 | D98: SM:V | E98: VS:B | T98: YA_5300_0097 | V98: 645 | W98: Viton | X98: Soft Goods | Y98: 492 | Z98: 492 | AA98: 478 | AB98: 478 | AC98: 464 | AD98: 450 | AE98: 645 | AF98: =ROUNDUP($V98*FX!$G$2*CF!$B$3,0) -> 645 | AG98: =ROUNDUP($V98*FX!$G$10*CF!$B$4,0) -> 890 | AH98: =ROUNDUP($V98*FX!$G$35*CF!$B$5,0) -> 434 | AI98: =ROUNDUP($V98*FX!$G$3*CF!$B$6,0) -> 897 | BO98: 673 | BR98: 513.706 | BS98: 514 | BU98: 0 | BW98: 492.34 | BX98: 514 | BY98: 514 | BZ98: 534.56 | CA98: 534.56 | CB98: 535 | CC98: 584.755 | CD98: 584.755 | CE98: 585 | CF98: 618 | CG98: 645
B99: MOD:Y53 | D99: VS:B | E99: VD:1 | F99: OR:V | G99: MCV:0085V | T99: YA_5300_0106 | V99: 0 | W99: 85 Main Cv | Y99: 0 | Z99: 0 | AA99: 0 | AB99: 0 | AC99: 0 | AD99: 0 | AE99: 0 | AF99: =ROUNDUP($V99*FX!$G$2*CF!$B$3,0) -> 0 | AG99: =ROUNDUP($V99*FX!$G$10*CF!$B$4,0) -> 0 | AH99: =ROUNDUP($V99*FX!$G$35*CF!$B$5,0) -> 0 | AI99: =ROUNDUP($V99*FX!$G$3*CF!$B$6,0) -> 0 | BO99: 0 | BR99: 0 | BS99: 0 | BU99: 0 | BW99: 0 | BX99: 0 | BY99: 0 | BZ99: 0 | CA99: 0 | CB99: 0 | CC99: 0 | CD99: 0 | CE99: 0 | CF99: 0 | CG99: 0
B100: MOD:Y53 | D100: VS:B | E100: VD:2 | F100: OR:V | G100: MCV:0110V | T100: YA_5300_0107 | V100: 0 | W100: 110 Main Cv Vert | Y100: 0 | Z100: 0 | AA100: 0 | AB100: 0 | AC100: 0 | AD100: 0 | AE100: 0 | AF100: =ROUNDUP($V100*FX!$G$2*CF!$B$3,0) -> 0 | AG100: =ROUNDUP($V100*FX!$G$10*CF!$B$4,0) -> 0 | AH100: =ROUNDUP($V100*FX!$G$35*CF!$B$5,0) -> 0 | AI100: =ROUNDUP($V100*FX!$G$3*CF!$B$6,0) -> 0 | BO100: 0 | BR100: 0 | BS100: 0 | BU100: 0 | BW100: 0 | BX100: 0 | BY100: 0 | BZ100: 0 | CA100: 0 | CB100: 0 | CC100: 0 | CD100: 0 | CE100: 0 | CF100: 0 | CG100: 0
B101: MOD:Y53 | D101: VS:B | E101: VD:3 | F101: OR:V | G101: MCV:0100V | T101: YA_5300_0108 | V101: 0 | W101: 100 Main Cv | Y101: 0 | Z101: 0 | AA101: 0 | AB101: 0 | AC101: 0 | AD101: 0 | AE101: 0 | AF101: =ROUNDUP($V101*FX!$G$2*CF!$B$3,0) -> 0 | AG101: =ROUNDUP($V101*FX!$G$10*CF!$B$4,0) -> 0 | AH101: =ROUNDUP($V101*FX!$G$35*CF!$B$5,0) -> 0 | AI101: =ROUNDUP($V101*FX!$G$3*CF!$B$6,0) -> 0 | BO101: 0 | BR101: 0 | BS101: 0 | BU101: 0 | BW101: 0 | BX101: 0 | BY101: 0 | BZ101: 0 | CA101: 0 | CB101: 0 | CC101: 0 | CD101: 0 | CE101: 0 | CF101: 0 | CG101: 0
B102: MOD:Y53 | D102: VS:B | E102: VD:4 | F102: OR:V | G102: MCV:0120V | T102: YA_5300_0109 | V102: 0 | W102: 120 Main Cv | Y102: 0 | Z102: 0 | AA102: 0 | AB102: 0 | AC102: 0 | AD102: 0 | AE102: 0 | AF102: =ROUNDUP($V102*FX!$G$2*CF!$B$3,0) -> 0 | AG102: =ROUNDUP($V102*FX!$G$10*CF!$B$4,0) -> 0 | AH102: =ROUNDUP($V102*FX!$G$35*CF!$B$5,0) -> 0 | AI102: =ROUNDUP($V102*FX!$G$3*CF!$B$6,0) -> 0 | BO102: 0 | BR102: 0 | BS102: 0 | BU102: 0 | BW102: 0 | BX102: 0 | BY102: 0 | BZ102: 0 | CA102: 0 | CB102: 0 | CC102: 0 | CD102: 0 | CE102: 0 | CF102: 0 | CG102: 0
B103: MOD:Y53 | D103: VS:C | E103: VD:1 | F103: OR:V | G103: MCV:0160V | T103: YA_5300_0110 | V103: 0 | W103: 160 Main Cv | Y103: 0 | Z103: 0 | AA103: 0 | AB103: 0 | AC103: 0 | AD103: 0 | AE103: 0 | AF103: =ROUNDUP($V103*FX!$G$2*CF!$B$3,0) -> 0 | AG103: =ROUNDUP($V103*FX!$G$10*CF!$B$4,0) -> 0 | AH103: =ROUNDUP($V103*FX!$G$35*CF!$B$5,0) -> 0 | AI103: =ROUNDUP($V103*FX!$G$3*CF!$B$6,0) -> 0 | BO103: 0 | BR103: 0 | BS103: 0 | BU103: 0 | BW103: 0 | BX103: 0 | BY103: 0 | BZ103: 0 | CA103: 0 | CB103: 0 | CC103: 0 | CD103: 0 | CE103: 0 | CF103: 0 | CG103: 0
B104: MOD:Y53 | D104: VS:C | E104: VD:2 | F104: OR:V | G104: MCV:0165V | T104: YA_5300_0111 | V104: 0 | W104: 165 Main Cv | Y104: 0 | Z104: 0 | AA104: 0 | AB104: 0 | AC104: 0 | AD104: 0 | AE104: 0 | AF104: =ROUNDUP($V104*FX!$G$2*CF!$B$3,0) -> 0 | AG104: =ROUNDUP($V104*FX!$G$10*CF!$B$4,0) -> 0 | AH104: =ROUNDUP($V104*FX!$G$35*CF!$B$5,0) -> 0 | AI104: =ROUNDUP($V104*FX!$G$3*CF!$B$6,0) -> 0 | BO104: 0 | BR104: 0 | BS104: 0 | BU104: 0 | BW104: 0 | BX104: 0 | BY104: 0 | BZ104: 0 | CA104: 0 | CB104: 0 | CC104: 0 | CD104: 0 | CE104: 0 | CF104: 0 | CG104: 0
B105: MOD:Y53 | D105: VS:C | E105: VD:3 | F105: OR:V | G105: MCV:0215V | T105: YA_5300_0112 | V105: 0 | W105: 215 Main Cv | Y105: 0 | Z105: 0 | AA105: 0 | AB105: 0 | AC105: 0 | AD105: 0 | AE105: 0 | AF105: =ROUNDUP($V105*FX!$G$2*CF!$B$3,0) -> 0 | AG105: =ROUNDUP($V105*FX!$G$10*CF!$B$4,0) -> 0 | AH105: =ROUNDUP($V105*FX!$G$35*CF!$B$5,0) -> 0 | AI105: =ROUNDUP($V105*FX!$G$3*CF!$B$6,0) -> 0 | BO105: 0 | BR105: 0 | BS105: 0 | BU105: 0 | BW105: 0 | BX105: 0 | BY105: 0 | BZ105: 0 | CA105: 0 | CB105: 0 | CC105: 0 | CD105: 0 | CE105: 0 | CF105: 0 | CG105: 0
B106: MOD:Y53 | D106: VS:C | E106: VD:4 | F106: OR:V | G106: MCV:0255V | T106: YA_5300_0113 | V106: 0 | W106: 255 Main Cv | Y106: 0 | Z106: 0 | AA106: 0 | AB106: 0 | AC106: 0 | AD106: 0 | AE106: 0 | AF106: =ROUNDUP($V106*FX!$G$2*CF!$B$3,0) -> 0 | AG106: =ROUNDUP($V106*FX!$G$10*CF!$B$4,0) -> 0 | AH106: =ROUNDUP($V106*FX!$G$35*CF!$B$5,0) -> 0 | AI106: =ROUNDUP($V106*FX!$G$3*CF!$B$6,0) -> 0 | BO106: 0 | BR106: 0 | BS106: 0 | BU106: 0 | BW106: 0 | BX106: 0 | BY106: 0 | BZ106: 0 | CA106: 0 | CB106: 0 | CC106: 0 | CD106: 0 | CE106: 0 | CF106: 0 | CG106: 0
B107: MOD:Y53 | D107: VS:D | E107: VD:1 | F107: OR:V | G107: MCV:0385V | T107: YA_5300_0114 | V107: 0 | W107: 385 Main Cv | Y107: 0 | Z107: 0 | AA107: 0 | AB107: 0 | AC107: 0 | AD107: 0 | AE107: 0 | AF107: =ROUNDUP($V107*FX!$G$2*CF!$B$3,0) -> 0 | AG107: =ROUNDUP($V107*FX!$G$10*CF!$B$4,0) -> 0 | AH107: =ROUNDUP($V107*FX!$G$35*CF!$B$5,0) -> 0 | AI107: =ROUNDUP($V107*FX!$G$3*CF!$B$6,0) -> 0 | BO107: 0 | BR107: 0 | BS107: 0 | BU107: 0 | BW107: 0 | BX107: 0 | BY107: 0 | BZ107: 0 | CA107: 0 | CB107: 0 | CC107: 0 | CD107: 0 | CE107: 0 | CF107: 0 | CG107: 0
B108: MOD:Y53 | D108: VS:D | E108: VD:2 | F108: OR:V | G108: MCV:0405V | T108: YA_5300_0115 | V108: 0 | W108: 405 Main Cv | Y108: 0 | Z108: 0 | AA108: 0 | AB108: 0 | AC108: 0 | AD108: 0 | AE108: 0 | AF108: =ROUNDUP($V108*FX!$G$2*CF!$B$3,0) -> 0 | AG108: =ROUNDUP($V108*FX!$G$10*CF!$B$4,0) -> 0 | AH108: =ROUNDUP($V108*FX!$G$35*CF!$B$5,0) -> 0 | AI108: =ROUNDUP($V108*FX!$G$3*CF!$B$6,0) -> 0 | BO108: 0 | BR108: 0 | BS108: 0 | BU108: 0 | BW108: 0 | BX108: 0 | BY108: 0 | BZ108: 0 | CA108: 0 | CB108: 0 | CC108: 0 | CD108: 0 | CE108: 0 | CF108: 0 | CG108: 0
B109: MOD:Y53 | D109: VS:D | E109: VD:3 | F109: OR:V | G109: MCV:0520V | T109: YA_5300_0116 | V109: 0 | W109: 520 Main Cv | Y109: 0 | Z109: 0 | AA109: 0 | AB109: 0 | AC109: 0 | AD109: 0 | AE109: 0 | AF109: =ROUNDUP($V109*FX!$G$2*CF!$B$3,0) -> 0 | AG109: =ROUNDUP($V109*FX!$G$10*CF!$B$4,0) -> 0 | AH109: =ROUNDUP($V109*FX!$G$35*CF!$B$5,0) -> 0 | AI109: =ROUNDUP($V109*FX!$G$3*CF!$B$6,0) -> 0 | BO109: 0 | BR109: 0 | BS109: 0 | BU109: 0 | BW109: 0 | BX109: 0 | BY109: 0 | BZ109: 0 | CA109: 0 | CB109: 0 | CC109: 0 | CD109: 0 | CE109: 0 | CF109: 0 | CG109: 0
B110: MOD:Y53 | D110: VS:D | E110: VD:4 | F110: OR:V | G110: MCV:0600V | T110: YA_5300_0117 | V110: 0 | W110: 600 Main Cv | Y110: 0 | Z110: 0 | AA110: 0 | AB110: 0 | AC110: 0 | AD110: 0 | AE110: 0 | AF110: =ROUNDUP($V110*FX!$G$2*CF!$B$3,0) -> 0 | AG110: =ROUNDUP($V110*FX!$G$10*CF!$B$4,0) -> 0 | AH110: =ROUNDUP($V110*FX!$G$35*CF!$B$5,0) -> 0 | AI110: =ROUNDUP($V110*FX!$G$3*CF!$B$6,0) -> 0 | BO110: 0 | BR110: 0 | BS110: 0 | BU110: 0 | BW110: 0 | BX110: 0 | BY110: 0 | BZ110: 0 | CA110: 0 | CB110: 0 | CC110: 0 | CD110: 0 | CE110: 0 | CF110: 0 | CG110: 0
B111: MOD:Y53 | D111: VS:E | E111: VD:1 | F111: OR:V | G111: MCV:0635V | T111: YA_5300_0118 | V111: 0 | W111: 635 Main Cv | Y111: 0 | Z111: 0 | AA111: 0 | AB111: 0 | AC111: 0 | AD111: 0 | AE111: 0 | AF111: =ROUNDUP($V111*FX!$G$2*CF!$B$3,0) -> 0 | AG111: =ROUNDUP($V111*FX!$G$10*CF!$B$4,0) -> 0 | AH111: =ROUNDUP($V111*FX!$G$35*CF!$B$5,0) -> 0 | AI111: =ROUNDUP($V111*FX!$G$3*CF!$B$6,0) -> 0 | BO111: 0 | BR111: 0 | BS111: 0 | BU111: 0 | BW111: 0 | BX111: 0 | BY111: 0 | BZ111: 0 | CA111: 0 | CB111: 0 | CC111: 0 | CD111: 0 | CE111: 0 | CF111: 0 | CG111: 0
B112: MOD:Y53 | D112: VS:E | E112: VD:2 | F112: OR:V | G112: MCV:0670V | T112: YA_5300_0119 | V112: 0 | W112: 670 Main Cv | Y112: 0 | Z112: 0 | AA112: 0 | AB112: 0 | AC112: 0 | AD112: 0 | AE112: 0 | AF112: =ROUNDUP($V112*FX!$G$2*CF!$B$3,0) -> 0 | AG112: =ROUNDUP($V112*FX!$G$10*CF!$B$4,0) -> 0 | AH112: =ROUNDUP($V112*FX!$G$35*CF!$B$5,0) -> 0 | AI112: =ROUNDUP($V112*FX!$G$3*CF!$B$6,0) -> 0 | BO112: 0 | BR112: 0 | BS112: 0 | BU112: 0 | BW112: 0 | BX112: 0 | BY112: 0 | BZ112: 0 | CA112: 0 | CB112: 0 | CC112: 0 | CD112: 0 | CE112: 0 | CF112: 0 | CG112: 0
B113: MOD:Y53 | D113: VS:E | E113: VD:3 | F113: OR:V | G113: MCV:0735V | T113: YA_5300_0120 | V113: 0 | W113: 735 Main Cv | Y113: 0 | Z113: 0 | AA113: 0 | AB113: 0 | AC113: 0 | AD113: 0 | AE113: 0 | AF113: =ROUNDUP($V113*FX!$G$2*CF!$B$3,0) -> 0 | AG113: =ROUNDUP($V113*FX!$G$10*CF!$B$4,0) -> 0 | AH113: =ROUNDUP($V113*FX!$G$35*CF!$B$5,0) -> 0 | AI113: =ROUNDUP($V113*FX!$G$3*CF!$B$6,0) -> 0 | BO113: 0 | BR113: 0 | BS113: 0 | BU113: 0 | BW113: 0 | BX113: 0 | BY113: 0 | BZ113: 0 | CA113: 0 | CB113: 0 | CC113: 0 | CD113: 0 | CE113: 0 | CF113: 0 | CG113: 0
B114: MOD:Y53 | D114: VS:E | E114: VD:4 | F114: OR:V | G114: MCV:0980V | T114: YA_5300_0121 | V114: 0 | W114: 980 Main Cv | Y114: 0 | Z114: 0 | AA114: 0 | AB114: 0 | AC114: 0 | AD114: 0 | AE114: 0 | AF114: =ROUNDUP($V114*FX!$G$2*CF!$B$3,0) -> 0 | AG114: =ROUNDUP($V114*FX!$G$10*CF!$B$4,0) -> 0 | AH114: =ROUNDUP($V114*FX!$G$35*CF!$B$5,0) -> 0 | AI114: =ROUNDUP($V114*FX!$G$3*CF!$B$6,0) -> 0 | BO114: 0 | BR114: 0 | BS114: 0 | BU114: 0 | BW114: 0 | BX114: 0 | BY114: 0 | BZ114: 0 | CA114: 0 | CB114: 0 | CC114: 0 | CD114: 0 | CE114: 0 | CF114: 0 | CG114: 0
B115: MOD:Y53 | D115: VS:B | E115: VD:1 | F115: OR:H | G115: MCV:0078H | T115: YA_5300_0122 | V115: 0 | W115: 78 Main Cv | Y115: 0 | Z115: 0 | AA115: 0 | AB115: 0 | AC115: 0 | AD115: 0 | AE115: 0 | AF115: =ROUNDUP($V115*FX!$G$2*CF!$B$3,0) -> 0 | AG115: =ROUNDUP($V115*FX!$G$10*CF!$B$4,0) -> 0 | AH115: =ROUNDUP($V115*FX!$G$35*CF!$B$5,0) -> 0 | AI115: =ROUNDUP($V115*FX!$G$3*CF!$B$6,0) -> 0 | BO115: 0 | BR115: 0 | BS115: 0 | BU115: 0 | BW115: 0 | BX115: 0 | BY115: 0 | BZ115: 0 | CA115: 0 | CB115: 0 | CC115: 0 | CD115: 0 | CE115: 0 | CF115: 0 | CG115: 0
B116: MOD:Y53 | D116: VS:B | E116: VD:2 | F116: OR:H | G116: MCV:0099H | T116: YA_5300_0123 | V116: 0 | W116: 99 Main Cv | Y116: 0 | Z116: 0 | AA116: 0 | AB116: 0 | AC116: 0 | AD116: 0 | AE116: 0 | AF116: =ROUNDUP($V116*FX!$G$2*CF!$B$3,0) -> 0 | AG116: =ROUNDUP($V116*FX!$G$10*CF!$B$4,0) -> 0 | AH116: =ROUNDUP($V116*FX!$G$35*CF!$B$5,0) -> 0 | AI116: =ROUNDUP($V116*FX!$G$3*CF!$B$6,0) -> 0 | BO116: 0 | BR116: 0 | BS116: 0 | BU116: 0 | BW116: 0 | BX116: 0 | BY116: 0 | BZ116: 0 | CA116: 0 | CB116: 0 | CC116: 0 | CD116: 0 | CE116: 0 | CF116: 0 | CG116: 0
B117: MOD:Y53 | D117: VS:B | E117: VD:3 | F117: OR:H | G117: MCV:0092H | T117: YA_5300_0124 | V117: 0 | W117: 92 Main Cv | Y117: 0 | Z117: 0 | AA117: 0 | AB117: 0 | AC117: 0 | AD117: 0 | AE117: 0 | AF117: =ROUNDUP($V117*FX!$G$2*CF!$B$3,0) -> 0 | AG117: =ROUNDUP($V117*FX!$G$10*CF!$B$4,0) -> 0 | AH117: =ROUNDUP($V117*FX!$G$35*CF!$B$5,0) -> 0 | AI117: =ROUNDUP($V117*FX!$G$3*CF!$B$6,0) -> 0 | BO117: 0 | BR117: 0 | BS117: 0 | BU117: 0 | BW117: 0 | BX117: 0 | BY117: 0 | BZ117: 0 | CA117: 0 | CB117: 0 | CC117: 0 | CD117: 0 | CE117: 0 | CF117: 0 | CG117: 0
B118: MOD:Y53 | D118: VS:B | E118: VD:4 | F118: OR:H | G118: MCV:0110H | T118: YA_5300_0125 | V118: 0 | W118: 110 Main Cv Horiz | Y118: 0 | Z118: 0 | AA118: 0 | AB118: 0 | AC118: 0 | AD118: 0 | AE118: 0 | AF118: =ROUNDUP($V118*FX!$G$2*CF!$B$3,0) -> 0 | AG118: =ROUNDUP($V118*FX!$G$10*CF!$B$4,0) -> 0 | AH118: =ROUNDUP($V118*FX!$G$35*CF!$B$5,0) -> 0 | AI118: =ROUNDUP($V118*FX!$G$3*CF!$B$6,0) -> 0 | BO118: 0 | BR118: 0 | BS118: 0 | BU118: 0 | BW118: 0 | BX118: 0 | BY118: 0 | BZ118: 0 | CA118: 0 | CB118: 0 | CC118: 0 | CD118: 0 | CE118: 0 | CF118: 0 | CG118: 0
B119: MOD:Y53 | D119: VS:C | E119: VD:1 | F119: OR:H | G119: MCV:0144H | T119: YA_5300_0126 | V119: 0 | W119: 144 Main Cv | Y119: 0 | Z119: 0 | AA119: 0 | AB119: 0 | AC119: 0 | AD119: 0 | AE119: 0 | AF119: =ROUNDUP($V119*FX!$G$2*CF!$B$3,0) -> 0 | AG119: =ROUNDUP($V119*FX!$G$10*CF!$B$4,0) -> 0 | AH119: =ROUNDUP($V119*FX!$G$35*CF!$B$5,0) -> 0 | AI119: =ROUNDUP($V119*FX!$G$3*CF!$B$6,0) -> 0 | BO119: 0 | BR119: 0 | BS119: 0 | BU119: 0 | BW119: 0 | BX119: 0 | BY119: 0 | BZ119: 0 | CA119: 0 | CB119: 0 | CC119: 0 | CD119: 0 | CE119: 0 | CF119: 0 | CG119: 0
B120: MOD:Y53 | D120: VS:C | E120: VD:2 | F120: OR:H | G120: MCV:0149H | T120: YA_5300_0127 | V120: 0 | W120: 149 Main Cv | Y120: 0 | Z120: 0 | AA120: 0 | AB120: 0 | AC120: 0 | AD120: 0 | AE120: 0 | AF120: =ROUNDUP($V120*FX!$G$2*CF!$B$3,0) -> 0 | AG120: =ROUNDUP($V120*FX!$G$10*CF!$B$4,0) -> 0 | AH120: =ROUNDUP($V120*FX!$G$35*CF!$B$5,0) -> 0 | AI120: =ROUNDUP($V120*FX!$G$3*CF!$B$6,0) -> 0 | BO120: 0 | BR120: 0 | BS120: 0 | BU120: 0 | BW120: 0 | BX120: 0 | BY120: 0 | BZ120: 0 | CA120: 0 | CB120: 0 | CC120: 0 | CD120: 0 | CE120: 0 | CF120: 0 | CG120: 0
B121: MOD:Y53 | D121: VS:C | E121: VD:3 | F121: OR:H | G121: MCV:0196H | T121: YA_5300_0128 | V121: 0 | W121: 196 Main Cv | Y121: 0 | Z121: 0 | AA121: 0 | AB121: 0 | AC121: 0 | AD121: 0 | AE121: 0 | AF121: =ROUNDUP($V121*FX!$G$2*CF!$B$3,0) -> 0 | AG121: =ROUNDUP($V121*FX!$G$10*CF!$B$4,0) -> 0 | AH121: =ROUNDUP($V121*FX!$G$35*CF!$B$5,0) -> 0 | AI121: =ROUNDUP($V121*FX!$G$3*CF!$B$6,0) -> 0 | BO121: 0 | BR121: 0 | BS121: 0 | BU121: 0 | BW121: 0 | BX121: 0 | BY121: 0 | BZ121: 0 | CA121: 0 | CB121: 0 | CC121: 0 | CD121: 0 | CE121: 0 | CF121: 0 | CG121: 0
B122: MOD:Y53 | D122: VS:C | E122: VD:4 | F122: OR:H | G122: MCV:0241H | T122: YA_5300_0129 | V122: 0 | W122: 241 Main Cv | Y122: 0 | Z122: 0 | AA122: 0 | AB122: 0 | AC122: 0 | AD122: 0 | AE122: 0 | AF122: =ROUNDUP($V122*FX!$G$2*CF!$B$3,0) -> 0 | AG122: =ROUNDUP($V122*FX!$G$10*CF!$B$4,0) -> 0 | AH122: =ROUNDUP($V122*FX!$G$35*CF!$B$5,0) -> 0 | AI122: =ROUNDUP($V122*FX!$G$3*CF!$B$6,0) -> 0 | BO122: 0 | BR122: 0 | BS122: 0 | BU122: 0 | BW122: 0 | BX122: 0 | BY122: 0 | BZ122: 0 | CA122: 0 | CB122: 0 | CC122: 0 | CD122: 0 | CE122: 0 | CF122: 0 | CG122: 0
B123: MOD:Y53 | D123: VS:D | E123: VD:1 | F123: OR:H | G123: MCV:0346H | T123: YA_5300_0130 | V123: 0 | W123: 346 Main Cv | Y123: 0 | Z123: 0 | AA123: 0 | AB123: 0 | AC123: 0 | AD123: 0 | AE123: 0 | AF123: =ROUNDUP($V123*FX!$G$2*CF!$B$3,0) -> 0 | AG123: =ROUNDUP($V123*FX!$G$10*CF!$B$4,0) -> 0 | AH123: =ROUNDUP($V123*FX!$G$35*CF!$B$5,0) -> 0 | AI123: =ROUNDUP($V123*FX!$G$3*CF!$B$6,0) -> 0 | BO123: 0 | BR123: 0 | BS123: 0 | BU123: 0 | BW123: 0 | BX123: 0 | BY123: 0 | BZ123: 0 | CA123: 0 | CB123: 0 | CC123: 0 | CD123: 0 | CE123: 0 | CF123: 0 | CG123: 0
B124: MOD:Y53 | D124: VS:D | E124: VD:2 | F124: OR:H | G124: MCV:0369H | T124: YA_5300_0131 | V124: 0 | W124: 369 Main Cv | Y124: 0 | Z124: 0 | AA124: 0 | AB124: 0 | AC124: 0 | AD124: 0 | AE124: 0 | AF124: =ROUNDUP($V124*FX!$G$2*CF!$B$3,0) -> 0 | AG124: =ROUNDUP($V124*FX!$G$10*CF!$B$4,0) -> 0 | AH124: =ROUNDUP($V124*FX!$G$35*CF!$B$5,0) -> 0 | AI124: =ROUNDUP($V124*FX!$G$3*CF!$B$6,0) -> 0 | BO124: 0 | BR124: 0 | BS124: 0 | BU124: 0 | BW124: 0 | BX124: 0 | BY124: 0 | BZ124: 0 | CA124: 0 | CB124: 0 | CC124: 0 | CD124: 0 | CE124: 0 | CF124: 0 | CG124: 0
B125: MOD:Y53 | D125: VS:D | E125: VD:3 | F125: OR:H | G125: MCV:0468H | T125: YA_5300_0132 | V125: 0 | W125: 468 Main Cv | Y125: 0 | Z125: 0 | AA125: 0 | AB125: 0 | AC125: 0 | AD125: 0 | AE125: 0 | AF125: =ROUNDUP($V125*FX!$G$2*CF!$B$3,0) -> 0 | AG125: =ROUNDUP($V125*FX!$G$10*CF!$B$4,0) -> 0 | AH125: =ROUNDUP($V125*FX!$G$35*CF!$B$5,0) -> 0 | AI125: =ROUNDUP($V125*FX!$G$3*CF!$B$6,0) -> 0 | BO125: 0 | BR125: 0 | BS125: 0 | BU125: 0 | BW125: 0 | BX125: 0 | BY125: 0 | BZ125: 0 | CA125: 0 | CB125: 0 | CC125: 0 | CD125: 0 | CE125: 0 | CF125: 0 | CG125: 0
B126: MOD:Y53 | D126: VS:D | E126: VD:4 | F126: OR:H | G126: MCV:0540H | T126: YA_5300_0133 | V126: 0 | W126: 540 Main Cv | Y126: 0 | Z126: 0 | AA126: 0 | AB126: 0 | AC126: 0 | AD126: 0 | AE126: 0 | AF126: =ROUNDUP($V126*FX!$G$2*CF!$B$3,0) -> 0 | AG126: =ROUNDUP($V126*FX!$G$10*CF!$B$4,0) -> 0 | AH126: =ROUNDUP($V126*FX!$G$35*CF!$B$5,0) -> 0 | AI126: =ROUNDUP($V126*FX!$G$3*CF!$B$6,0) -> 0 | BO126: 0 | BR126: 0 | BS126: 0 | BU126: 0 | BW126: 0 | BX126: 0 | BY126: 0 | BZ126: 0 | CA126: 0 | CB126: 0 | CC126: 0 | CD126: 0 | CE126: 0 | CF126: 0 | CG126: 0
B127: MOD:Y53 | D127: VS:E | E127: VD:1 | F127: OR:H | G127: MCV:0566H | T127: YA_5300_0134 | V127: 0 | W127: 566 Main Cv | Y127: 0 | Z127: 0 | AA127: 0 | AB127: 0 | AC127: 0 | AD127: 0 | AE127: 0 | AF127: =ROUNDUP($V127*FX!$G$2*CF!$B$3,0) -> 0 | AG127: =ROUNDUP($V127*FX!$G$10*CF!$B$4,0) -> 0 | AH127: =ROUNDUP($V127*FX!$G$35*CF!$B$5,0) -> 0 | AI127: =ROUNDUP($V127*FX!$G$3*CF!$B$6,0) -> 0 | BO127: 0 | BR127: 0 | BS127: 0 | BU127: 0 | BW127: 0 | BX127: 0 | BY127: 0 | BZ127: 0 | CA127: 0 | CB127: 0 | CC127: 0 | CD127: 0 | CE127: 0 | CF127: 0 | CG127: 0
B128: MOD:Y53 | D128: VS:E | E128: VD:2 | F128: OR:H | G128: MCV:0599H | T128: YA_5300_0135 | V128: 0 | W128: 599 Main Cv | Y128: 0 | Z128: 0 | AA128: 0 | AB128: 0 | AC128: 0 | AD128: 0 | AE128: 0 | AF128: =ROUNDUP($V128*FX!$G$2*CF!$B$3,0) -> 0 | AG128: =ROUNDUP($V128*FX!$G$10*CF!$B$4,0) -> 0 | AH128: =ROUNDUP($V128*FX!$G$35*CF!$B$5,0) -> 0 | AI128: =ROUNDUP($V128*FX!$G$3*CF!$B$6,0) -> 0 | BO128: 0 | BR128: 0 | BS128: 0 | BU128: 0 | BW128: 0 | BX128: 0 | BY128: 0 | BZ128: 0 | CA128: 0 | CB128: 0 | CC128: 0 | CD128: 0 | CE128: 0 | CF128: 0 | CG128: 0
B129: MOD:Y53 | D129: VS:E | E129: VD:3 | F129: OR:H | G129: MCV:0661H | T129: YA_5300_0136 | V129: 0 | W129: 661 Main Cv | Y129: 0 | Z129: 0 | AA129: 0 | AB129: 0 | AC129: 0 | AD129: 0 | AE129: 0 | AF129: =ROUNDUP($V129*FX!$G$2*CF!$B$3,0) -> 0 | AG129: =ROUNDUP($V129*FX!$G$10*CF!$B$4,0) -> 0 | AH129: =ROUNDUP($V129*FX!$G$35*CF!$B$5,0) -> 0 | AI129: =ROUNDUP($V129*FX!$G$3*CF!$B$6,0) -> 0 | BO129: 0 | BR129: 0 | BS129: 0 | BU129: 0 | BW129: 0 | BX129: 0 | BY129: 0 | BZ129: 0 | CA129: 0 | CB129: 0 | CC129: 0 | CD129: 0 | CE129: 0 | CF129: 0 | CG129: 0
B130: MOD:Y53 | D130: VS:E | E130: VD:4 | F130: OR:H | G130: MCV:0882H | T130: YA_5300_0137 | V130: =AE130 -> 0 | W130: 882 Main Cv | Y130: 0 | Z130: 0 | AA130: 0 | AB130: 0 | AC130: 0 | AD130: 0 | AE130: 0 | AF130: =ROUNDUP($V130*FX!$G$2*CF!$B$3,0) -> 0 | AG130: =ROUNDUP($V130*FX!$G$10*CF!$B$4,0) -> 0 | AH130: =ROUNDUP($V130*FX!$G$35*CF!$B$5,0) -> 0 | AI130: =ROUNDUP($V130*FX!$G$3*CF!$B$6,0) -> 0 | BO130: 0 | BR130: 0 | BS130: 0 | BU130: 0 | BW130: 0 | BX130: 0 | BY130: =ROUNDUP(BX130,0) -> 0 | BZ130: 0 | CA130: 0 | CB130: 0 | CC130: 0 | CD130: 0 | CE130: 0 | CF130: =IF(CE130="POA","POA", ROUNDUP(CE130*1.055,0)) -> 0 | CG130: 0
B131: MOD:Y53 | D131: VS:B | E131: TS:4 | F131: BM:0 | G131: BCV:0018 | T131: YA_5300_0138 | V131: 0 | W131: 0.4 - 1.8 BCv Rg | Y131: =IFERROR(Z131*1,"POA") -> 0 | Z131: 0 | AA131: 0 | AB131: 0 | AC131: 0 | AD131: 0 | AE131: =CG131 -> 0 | AF131: =ROUNDUP($V131*FX!$G$2*CF!$B$3,0) -> 0 | AG131: =ROUNDUP($V131*FX!$G$10*CF!$B$4,0) -> 0 | AH131: =ROUNDUP($V131*FX!$G$35*CF!$B$5,0) -> 0 | AI131: =ROUNDUP($V131*FX!$G$3*CF!$B$6,0) -> 0 | BO131: =ROUNDUP(($AE131+($AE131*$BO$1)),0) -> 0 | BR131: 0 | BS131: 0 | BU131: =ROUNDUP(BT131,0) -> 0 | BW131: 0 | BX131: 0 | BY131: 0 | BZ131: 0 | CA131: 0 | CB131: =ROUNDUP(CA131,0) -> 0 | CC131: =CB131+(CB131*$CC$1) -> 0 | CD131: 0 | CE131: 0 | CF131: 0 | CG131: =IF(CF131="POA","POA", ROUNDUP(CF131*1.043,0)) -> 0
B132: MOD:Y53 | D132: VS:B | E132: TS:2 | F132: BCV:0032 | T132: YA_5300_0139 | V132: 0 | W132: 0.6 - 3.2 BCv Rg | Y132: 0 | Z132: 0 | AA132: 0 | AB132: 0 | AC132: 0 | AD132: 0 | AE132: 0 | AF132: =ROUNDUP($V132*FX!$G$2*CF!$B$3,0) -> 0 | AG132: =ROUNDUP($V132*FX!$G$10*CF!$B$4,0) -> 0 | AH132: =ROUNDUP($V132*FX!$G$35*CF!$B$5,0) -> 0 | AI132: =ROUNDUP($V132*FX!$G$3*CF!$B$6,0) -> 0 | BO132: 0 | BR132: 0 | BS132: 0 | BU132: 0 | BW132: 0 | BX132: 0 | BY132: 0 | BZ132: 0 | CA132: 0 | CB132: 0 | CC132: 0 | CD132: 0 | CE132: 0 | CF132: 0 | CG132: 0
B133: MOD:Y53 | D133: VS:C | E133: TS:4 | F133: BCV:0044 | T133: YA_5300_0140 | V133: 0 | W133: 0.85 - 4.4 BCv Rg | Y133: 0 | Z133: 0 | AA133: 0 | AB133: 0 | AC133: 0 | AD133: 0 | AE133: 0 | AF133: =ROUNDUP($V133*FX!$G$2*CF!$B$3,0) -> 0 | AG133: =ROUNDUP($V133*FX!$G$10*CF!$B$4,0) -> 0 | AH133: =ROUNDUP($V133*FX!$G$35*CF!$B$5,0) -> 0 | AI133: =ROUNDUP($V133*FX!$G$3*CF!$B$6,0) -> 0 | BO133: 0 | BR133: 0 | BS133: 0 | BU133: 0 | BW133: 0 | BX133: 0 | BY133: 0 | BZ133: 0 | CA133: 0 | CB133: 0 | CC133: 0 | CD133: 0 | CE133: 0 | CF133: 0 | CG133: 0
B134: MOD:Y53 | D134: VS:C | E134: TS:2 | F134: BCV:0058 | T134: YA_5300_0141 | V134: 0 | W134: 1.3 - 5.8 BCv Rg | Y134: 0 | Z134: 0 | AA134: 0 | AB134: 0 | AC134: 0 | AD134: 0 | AE134: 0 | AF134: =ROUNDUP($V134*FX!$G$2*CF!$B$3,0) -> 0 | AG134: =ROUNDUP($V134*FX!$G$10*CF!$B$4,0) -> 0 | AH134: =ROUNDUP($V134*FX!$G$35*CF!$B$5,0) -> 0 | AI134: =ROUNDUP($V134*FX!$G$3*CF!$B$6,0) -> 0 | BO134: 0 | BR134: 0 | BS134: 0 | BU134: 0 | BW134: 0 | BX134: 0 | BY134: 0 | BZ134: 0 | CA134: 0 | CB134: 0 | CC134: 0 | CD134: 0 | CE134: 0 | CF134: 0 | CG134: 0
B135: MOD:Y53 | D135: VS:D | E135: TS:4 | F135: BCV:0090 | T135: YA_5300_0142 | V135: 0 | W135: 1.75 - 9 BCv Rg | Y135: 0 | Z135: 0 | AA135: 0 | AB135: 0 | AC135: 0 | AD135: 0 | AE135: 0 | AF135: =ROUNDUP($V135*FX!$G$2*CF!$B$3,0) -> 0 | AG135: =ROUNDUP($V135*FX!$G$10*CF!$B$4,0) -> 0 | AH135: =ROUNDUP($V135*FX!$G$35*CF!$B$5,0) -> 0 | AI135: =ROUNDUP($V135*FX!$G$3*CF!$B$6,0) -> 0 | BO135: 0 | BR135: 0 | BS135: 0 | BU135: 0 | BW135: 0 | BX135: 0 | BY135: 0 | BZ135: 0 | CA135: 0 | CB135: 0 | CC135: 0 | CD135: 0 | CE135: 0 | CF135: 0 | CG135: 0
B136: MOD:Y53 | D136: VS:D | E136: TS:2 | F136: BM:0 | G136: BCV:0150 | T136: YA_5300_0143 | V136: 0 | W136: 3 - 15 BCv Rg | Y136: 0 | Z136: 0 | AA136: 0 | AB136: 0 | AC136: 0 | AD136: 0 | AE136: 0 | AF136: =ROUNDUP($V136*FX!$G$2*CF!$B$3,0) -> 0 | AG136: =ROUNDUP($V136*FX!$G$10*CF!$B$4,0) -> 0 | AH136: =ROUNDUP($V136*FX!$G$35*CF!$B$5,0) -> 0 | AI136: =ROUNDUP($V136*FX!$G$3*CF!$B$6,0) -> 0 | BO136: 0 | BR136: 0 | BS136: 0 | BU136: 0 | BW136: 0 | BX136: 0 | BY136: 0 | BZ136: 0 | CA136: 0 | CB136: 0 | CC136: 0 | CD136: 0 | CE136: 0 | CF136: 0 | CG136: 0
B137: MOD:Y53 | D137: VS:E | E137: TS:4 | F137: BM:0 | G137: BCV:0188 | T137: YA_5300_0144 | V137: 0 | W137: 3.7 - 18.8 BCv Rg | Y137: 0 | Z137: 0 | AA137: 0 | AB137: 0 | AC137: 0 | AD137: 0 | AE137: 0 | AF137: =ROUNDUP($V137*FX!$G$2*CF!$B$3,0) -> 0 | AG137: =ROUNDUP($V137*FX!$G$10*CF!$B$4,0) -> 0 | AH137: =ROUNDUP($V137*FX!$G$35*CF!$B$5,0) -> 0 | AI137: =ROUNDUP($V137*FX!$G$3*CF!$B$6,0) -> 0 | BO137: 0 | BR137: 0 | BS137: 0 | BU137: 0 | BW137: 0 | BX137: 0 | BY137: 0 | BZ137: 0 | CA137: 0 | CB137: 0 | CC137: 0 | CD137: 0 | CE137: 0 | CF137: 0 | CG137: 0
B138: MOD:Y53 | D138: VS:E | E138: BCV:0248 | T138: YA_5300_0145 | V138: 0 | W138: 5 - 24.8 BCv Rg | Y138: 0 | Z138: =ROUND(IFERROR(AA138*1.03,"POA"),0) -> 0 | AA138: 0 | AB138: 0 | AC138: 0 | AD138: 0 | AE138: 0 | AF138: =ROUNDUP($V138*FX!$G$2*CF!$B$3,0) -> 0 | AG138: =ROUNDUP($V138*FX!$G$10*CF!$B$4,0) -> 0 | AH138: =ROUNDUP($V138*FX!$G$35*CF!$B$5,0) -> 0 | AI138: =ROUNDUP($V138*FX!$G$3*CF!$B$6,0) -> 0 | BO138: 0 | BR138: 0 | BS138: =ROUNDUP(BR138,0) -> 0 | BU138: 0 | BW138: 0 | BX138: =ROUNDUP(($BW138+($BX$1*$BW138)),0) -> 0 | BY138: 0 | BZ138: 0 | CA138: 0 | CB138: 0 | CC138: 0 | CD138: 0 | CE138: =ROUNDUP(CD138,0) -> 0 | CF138: 0 | CG138: 0
B139: MOD:Y53 | D139: NC:N | T139: YA_5300_0146 | V139: 0 | W139: NACE not req(STD) | Y139: 0 | Z139: 0 | AA139: 0 | AB139: 0 | AC139: 0 | AD139: 0 | AE139: 0 | AF139: =ROUNDUP($V139*FX!$G$2*CF!$B$3,0) -> 0 | AG139: =ROUNDUP($V139*FX!$G$10*CF!$B$4,0) -> 0 | AH139: =ROUNDUP($V139*FX!$G$35*CF!$B$5,0) -> 0 | AI139: =ROUNDUP($V139*FX!$G$3*CF!$B$6,0) -> 0 | BO139: 0 | BR139: 0 | BS139: 0 | BU139: 0 | BW139: 0 | BX139: 0 | BY139: 0 | BZ139: 0 | CA139: 0 | CB139: 0 | CC139: 0 | CD139: 0 | CE139: 0 | CF139: 0 | CG139: 0
B140: MOD:Y53 | D140: VS:B | E140: NC:Y | T140: YA_5300_0147 | V140: 645 | W140: NACE | Y140: 492 | Z140: 492 | AA140: 478 | AB140: 478 | AC140: 464 | AD140: 450 | AE140: 645 | AF140: =ROUNDUP($V140*FX!$G$2*CF!$B$3,0) -> 645 | AG140: =ROUNDUP($V140*FX!$G$10*CF!$B$4,0) -> 890 | AH140: =ROUNDUP($V140*FX!$G$35*CF!$B$5,0) -> 434 | AI140: =ROUNDUP($V140*FX!$G$3*CF!$B$6,0) -> 897 | BO140: 673 | BR140: 513.706 | BS140: 514 | BU140: 0 | BW140: 492.34 | BX140: 514 | BY140: 514 | BZ140: =BY140+(BY140*$BZ$1) -> 534.56 | CA140: 534.56 | CB140: 535 | CC140: 584.755 | CD140: 584.755 | CE140: 585 | CF140: 618 | CG140: 645
B141: MOD:Y53 | D141: VS:C | E141: NC:Y | T141: YA_5300_0148 | V141: 645 | W141: NACE | Y141: 492 | Z141: 492 | AA141: 478 | AB141: 478 | AC141: 464 | AD141: 450 | AE141: 645 | AF141: =ROUNDUP($V141*FX!$G$2*CF!$B$3,0) -> 645 | AG141: =ROUNDUP($V141*FX!$G$10*CF!$B$4,0) -> 890 | AH141: =ROUNDUP($V141*FX!$G$35*CF!$B$5,0) -> 434 | AI141: =ROUNDUP($V141*FX!$G$3*CF!$B$6,0) -> 897 | BO141: 673 | BR141: 513.706 | BS141: 514 | BU141: 0 | BW141: 492.34 | BX141: 514 | BY141: 514 | BZ141: 534.56 | CA141: 534.56 | CB141: 535 | CC141: 584.755 | CD141: 584.755 | CE141: 585 | CF141: 618 | CG141: 645
B142: MOD:Y53 | D142: VS:D | E142: NC:Y | T142: YA_5300_0149 | V142: 962 | W142: NACE | Y142: 735 | Z142: 735 | AA142: 714 | AB142: 714 | AC142: 693 | AD142: 673 | AE142: 962 | AF142: =ROUNDUP($V142*FX!$G$2*CF!$B$3,0) -> 962 | AG142: =ROUNDUP($V142*FX!$G$10*CF!$B$4,0) -> 1328 | AH142: =ROUNDUP($V142*FX!$G$35*CF!$B$5,0) -> 647 | AI142: =ROUNDUP($V142*FX!$G$3*CF!$B$6,0) -> 1338 | BO142: 1003 | BR142: 766.912 | BS142: 767 | BU142: 0 | BW142: 735.42 | BX142: 767 | BY142: 767 | BZ142: 797.68 | CA142: 797.68 | CB142: 798 | CC142: 872.214 | CD142: 872.214 | CE142: 873 | CF142: 922 | CG142: 962
B143: MOD:Y53 | D143: VS:E | E143: NC:Y | T143: YA_5300_0150 | V143: 962 | W143: NACE | Y143: 735 | Z143: 735 | AA143: 714 | AB143: 714 | AC143: 693 | AD143: 673 | AE143: 962 | AF143: =ROUNDUP($V143*FX!$G$2*CF!$B$3,0) -> 962 | AG143: =ROUNDUP($V143*FX!$G$10*CF!$B$4,0) -> 1328 | AH143: =ROUNDUP($V143*FX!$G$35*CF!$B$5,0) -> 647 | AI143: =ROUNDUP($V143*FX!$G$3*CF!$B$6,0) -> 1338 | BO143: 1003 | BR143: 766.912 | BS143: 767 | BU143: 0 | BW143: 735.42 | BX143: 767 | BY143: 767 | BZ143: 797.68 | CA143: 797.68 | CB143: 798 | CC143: 872.214 | CD143: 872.214 | CE143: 873 | CF143: 922 | CG143: 962
B144: MOD:Y53 | D144: OR:H | T144: YA_5300_0151 | V144: 0 | W144: Horizontal | Y144: 0 | Z144: 0 | AA144: 0 | AB144: 0 | AC144: 0 | AD144: 0 | AE144: 0 | AF144: =ROUNDUP($V144*FX!$G$2*CF!$B$3,0) -> 0 | AG144: =ROUNDUP($V144*FX!$G$10*CF!$B$4,0) -> 0 | AH144: =ROUNDUP($V144*FX!$G$35*CF!$B$5,0) -> 0 | AI144: =ROUNDUP($V144*FX!$G$3*CF!$B$6,0) -> 0 | BO144: 0 | BR144: 0 | BS144: 0 | BU144: 0 | BW144: 0 | BX144: 0 | BY144: 0 | BZ144: 0 | CA144: 0 | CB144: 0 | CC144: 0 | CD144: 0 | CE144: 0 | CF144: 0 | CG144: 0
B145: MOD:Y53 | D145: OR:V | T145: YA_5300_0152 | V145: 0 | W145: Vertical | X145: Do Not Use | Y145: 0 | Z145: 0 | AA145: 0 | AB145: 0 | AC145: 0 | AD145: 0 | AE145: 0 | AF145: =ROUNDUP($V145*FX!$G$2*CF!$B$3,0) -> 0 | AG145: =ROUNDUP($V145*FX!$G$10*CF!$B$4,0) -> 0 | AH145: =ROUNDUP($V145*FX!$G$35*CF!$B$5,0) -> 0 | AI145: =ROUNDUP($V145*FX!$G$3*CF!$B$6,0) -> 0 | BO145: 0 | BR145: 0 | BS145: 0 | BU145: 0 | BW145: 0 | BX145: 0 | BY145: 0 | BZ145: 0 | CA145: 0 | CB145: 0 | CC145: 0 | CD145: 0 | CE145: 0 | CF145: 0 | CG145: 0
B146: MOD:Y53 | D146: VS:C | E146: ORF:1 | T146: YA_5300_0153 | V146: 0 | W146: OCv Rg = 1 / 1.5 | Y146: 0 | Z146: 0 | AA146: 0 | AB146: 0 | AC146: 0 | AD146: 0 | AE146: 0 | AF146: =ROUNDUP($V146*FX!$G$2*CF!$B$3,0) -> 0 | AG146: =ROUNDUP($V146*FX!$G$10*CF!$B$4,0) -> 0 | AH146: =ROUNDUP($V146*FX!$G$35*CF!$B$5,0) -> 0 | AI146: =ROUNDUP($V146*FX!$G$3*CF!$B$6,0) -> 0 | BO146: 0 | BR146: 0 | BS146: 0 | BU146: 0 | BW146: 0 | BX146: 0 | BY146: 0 | BZ146: 0 | CA146: 0 | CB146: 0 | CC146: 0 | CD146: 0 | CE146: 0 | CF146: 0 | CG146: 0
B147: MOD:Y53 | D147: VS:C | E147: ORF:2 | T147: YA_5300_0154 | V147: 0 | W147: OCv Rg = 1.5 / 2 | Y147: 0 | Z147: 0 | AA147: 0 | AB147: 0 | AC147: 0 | AD147: 0 | AE147: 0 | AF147: =ROUNDUP($V147*FX!$G$2*CF!$B$3,0) -> 0 | AG147: =ROUNDUP($V147*FX!$G$10*CF!$B$4,0) -> 0 | AH147: =ROUNDUP($V147*FX!$G$35*CF!$B$5,0) -> 0 | AI147: =ROUNDUP($V147*FX!$G$3*CF!$B$6,0) -> 0 | BO147: 0 | BR147: 0 | BS147: 0 | BU147: 0 | BW147: 0 | BX147: 0 | BY147: 0 | BZ147: 0 | CA147: 0 | CB147: 0 | CC147: 0 | CD147: 0 | CE147: 0 | CF147: 0 | CG147: 0
B148: MOD:Y53 | D148: VS:B,C | E148: ORF:3 | T148: YA_5300_0155 | V148: 0 | W148: OCv Rg = 2 / 2.5 | Y148: 0 | Z148: 0 | AA148: 0 | AB148: 0 | AC148: 0 | AD148: 0 | AE148: 0 | AF148: =ROUNDUP($V148*FX!$G$2*CF!$B$3,0) -> 0 | AG148: =ROUNDUP($V148*FX!$G$10*CF!$B$4,0) -> 0 | AH148: =ROUNDUP($V148*FX!$G$35*CF!$B$5,0) -> 0 | AI148: =ROUNDUP($V148*FX!$G$3*CF!$B$6,0) -> 0 | BO148: 0 | BR148: 0 | BS148: 0 | BU148: 0 | BW148: 0 | BX148: 0 | BY148: 0 | BZ148: 0 | CA148: 0 | CB148: 0 | CC148: 0 | CD148: 0 | CE148: 0 | CF148: 0 | CG148: 0
B149: MOD:Y53 | D149: VS:B,C | E149: ORF:4 | T149: YA_5300_0156 | V149: 0 | W149: OCv Rg = 2.5 / 3 | Y149: 0 | Z149: 0 | AA149: 0 | AB149: 0 | AC149: 0 | AD149: 0 | AE149: 0 | AF149: =ROUNDUP($V149*FX!$G$2*CF!$B$3,0) -> 0 | AG149: =ROUNDUP($V149*FX!$G$10*CF!$B$4,0) -> 0 | AH149: =ROUNDUP($V149*FX!$G$35*CF!$B$5,0) -> 0 | AI149: =ROUNDUP($V149*FX!$G$3*CF!$B$6,0) -> 0 | BO149: 0 | BR149: 0 | BS149: 0 | BU149: 0 | BW149: 0 | BX149: 0 | BY149: 0 | BZ149: 0 | CA149: 0 | CB149: 0 | CC149: 0 | CD149: 0 | CE149: 0 | CF149: 0 | CG149: 0
B150: MOD:Y53 | D150: VS:B,C | E150: ORF:5 | T150: YA_5300_0157 | V150: 0 | W150: OCv Rg = 3 / 4 | Y150: 0 | Z150: 0 | AA150: 0 | AB150: 0 | AC150: 0 | AD150: 0 | AE150: 0 | AF150: =ROUNDUP($V150*FX!$G$2*CF!$B$3,0) -> 0 | AG150: =ROUNDUP($V150*FX!$G$10*CF!$B$4,0) -> 0 | AH150: =ROUNDUP($V150*FX!$G$35*CF!$B$5,0) -> 0 | AI150: =ROUNDUP($V150*FX!$G$3*CF!$B$6,0) -> 0 | BO150: 0 | BR150: 0 | BS150: 0 | BU150: 0 | BW150: 0 | BX150: 0 | BY150: 0 | BZ150: 0 | CA150: 0 | CB150: 0 | CC150: 0 | CD150: 0 | CE150: 0 | CF150: 0 | CG150: 0
B151: MOD:Y53 | D151: VS:B,C | E151: ORF:6 | T151: YA_5300_0158 | V151: 0 | W151: OCv Rg = 4 / 5 | Y151: 0 | Z151: 0 | AA151: 0 | AB151: 0 | AC151: 0 | AD151: 0 | AE151: 0 | AF151: =ROUNDUP($V151*FX!$G$2*CF!$B$3,0) -> 0 | AG151: =ROUNDUP($V151*FX!$G$10*CF!$B$4,0) -> 0 | AH151: =ROUNDUP($V151*FX!$G$35*CF!$B$5,0) -> 0 | AI151: =ROUNDUP($V151*FX!$G$3*CF!$B$6,0) -> 0 | BO151: 0 | BR151: 0 | BS151: 0 | BU151: 0 | BW151: 0 | BX151: 0 | BY151: 0 | BZ151: 0 | CA151: 0 | CB151: 0 | CC151: 0 | CD151: 0 | CE151: 0 | CF151: 0 | CG151: 0
B152: MOD:Y53 | D152: VS:B,C | E152: ORF:7 | T152: YA_5300_0159 | V152: 0 | W152: OCv Rg = 5 / 7 | Y152: 0 | Z152: 0 | AA152: 0 | AB152: 0 | AC152: 0 | AD152: 0 | AE152: 0 | AF152: =ROUNDUP($V152*FX!$G$2*CF!$B$3,0) -> 0 | AG152: =ROUNDUP($V152*FX!$G$10*CF!$B$4,0) -> 0 | AH152: =ROUNDUP($V152*FX!$G$35*CF!$B$5,0) -> 0 | AI152: =ROUNDUP($V152*FX!$G$3*CF!$B$6,0) -> 0 | BO152: 0 | BR152: 0 | BS152: 0 | BU152: 0 | BW152: 0 | BX152: 0 | BY152: 0 | BZ152: 0 | CA152: 0 | CB152: 0 | CC152: 0 | CD152: 0 | CE152: 0 | CF152: 0 | CG152: 0
B153: MOD:Y53 | D153: VS:B,C | E153: ORF:8 | T153: YA_5300_0160 | V153: 0 | W153: OCv Rg = 7 / 9 | Y153: 0 | Z153: 0 | AA153: 0 | AB153: 0 | AC153: 0 | AD153: 0 | AE153: 0 | AF153: =ROUNDUP($V153*FX!$G$2*CF!$B$3,0) -> 0 | AG153: =ROUNDUP($V153*FX!$G$10*CF!$B$4,0) -> 0 | AH153: =ROUNDUP($V153*FX!$G$35*CF!$B$5,0) -> 0 | AI153: =ROUNDUP($V153*FX!$G$3*CF!$B$6,0) -> 0 | BO153: 0 | BR153: 0 | BS153: 0 | BU153: 0 | BW153: 0 | BX153: 0 | BY153: 0 | BZ153: 0 | CA153: 0 | CB153: 0 | CC153: 0 | CD153: 0 | CE153: 0 | CF153: 0 | CG153: 0
B154: MOD:Y53 | D154: ORF:9 | T154: YA_5300_0161 | V154: 0 | W154: OCv Rg = 8 / 11 | Y154: 0 | Z154: 0 | AA154: 0 | AB154: 0 | AC154: 0 | AD154: 0 | AE154: 0 | AF154: =ROUNDUP($V154*FX!$G$2*CF!$B$3,0) -> 0 | AG154: =ROUNDUP($V154*FX!$G$10*CF!$B$4,0) -> 0 | AH154: =ROUNDUP($V154*FX!$G$35*CF!$B$5,0) -> 0 | AI154: =ROUNDUP($V154*FX!$G$3*CF!$B$6,0) -> 0 | BO154: 0 | BR154: 0 | BS154: 0 | BU154: 0 | BW154: 0 | BX154: 0 | BY154: 0 | BZ154: 0 | CA154: 0 | CB154: 0 | CC154: 0 | CD154: 0 | CE154: 0 | CF154: 0 | CG154: 0
B155: MOD:Y53 | D155: VS:C | E155: ORF:10 | T155: YA_5300_0162 | V155: 0 | W155: OCv Rg = 10 / 13 | Y155: 0 | Z155: 0 | AA155: 0 | AB155: 0 | AC155: 0 | AD155: 0 | AE155: 0 | AF155: =ROUNDUP($V155*FX!$G$2*CF!$B$3,0) -> 0 | AG155: =ROUNDUP($V155*FX!$G$10*CF!$B$4,0) -> 0 | AH155: =ROUNDUP($V155*FX!$G$35*CF!$B$5,0) -> 0 | AI155: =ROUNDUP($V155*FX!$G$3*CF!$B$6,0) -> 0 | BO155: 0 | BR155: 0 | BS155: 0 | BU155: 0 | BW155: 0 | BX155: 0 | BY155: 0 | BZ155: 0 | CA155: 0 | CB155: 0 | CC155: 0 | CD155: 0 | CE155: 0 | CF155: 0 | CG155: 0
B156: MOD:Y53 | D156: VS:D,E | E156: ORF:11 | T156: YA_5300_0163 | V156: 0 | W156: OCv Rg = 11 / 15 | Y156: 0 | Z156: 0 | AA156: 0 | AB156: 0 | AC156: 0 | AD156: 0 | AE156: 0 | AF156: =ROUNDUP($V156*FX!$G$2*CF!$B$3,0) -> 0 | AG156: =ROUNDUP($V156*FX!$G$10*CF!$B$4,0) -> 0 | AH156: =ROUNDUP($V156*FX!$G$35*CF!$B$5,0) -> 0 | AI156: =ROUNDUP($V156*FX!$G$3*CF!$B$6,0) -> 0 | BO156: 0 | BR156: 0 | BS156: 0 | BU156: 0 | BW156: 0 | BX156: 0 | BY156: 0 | BZ156: 0 | CA156: 0 | CB156: 0 | CC156: 0 | CD156: 0 | CE156: 0 | CF156: 0 | CG156: 0
B157: MOD:Y53 | D157: VS:C | E157: ORF:12 | T157: YA_5300_0164 | V157: 0 | W157: OCv Rg = 13 / 16 | Y157: 0 | Z157: 0 | AA157: 0 | AB157: 0 | AC157: 0 | AD157: 0 | AE157: 0 | AF157: =ROUNDUP($V157*FX!$G$2*CF!$B$3,0) -> 0 | AG157: =ROUNDUP($V157*FX!$G$10*CF!$B$4,0) -> 0 | AH157: =ROUNDUP($V157*FX!$G$35*CF!$B$5,0) -> 0 | AI157: =ROUNDUP($V157*FX!$G$3*CF!$B$6,0) -> 0 | BO157: 0 | BR157: 0 | BS157: 0 | BU157: 0 | BW157: 0 | BX157: 0 | BY157: 0 | BZ157: 0 | CA157: 0 | CB157: 0 | CC157: 0 | CD157: 0 | CE157: 0 | CF157: 0 | CG157: 0
B158: MOD:Y53 | D158: VS:C,D,E | E158: ORF:13 | T158: YA_5300_0165 | V158: 0 | W158: OCv Rg = 15 / 21 | Y158: 0 | Z158: 0 | AA158: 0 | AB158: 0 | AC158: 0 | AD158: 0 | AE158: 0 | AF158: =ROUNDUP($V158*FX!$G$2*CF!$B$3,0) -> 0 | AG158: =ROUNDUP($V158*FX!$G$10*CF!$B$4,0) -> 0 | AH158: =ROUNDUP($V158*FX!$G$35*CF!$B$5,0) -> 0 | AI158: =ROUNDUP($V158*FX!$G$3*CF!$B$6,0) -> 0 | BO158: 0 | BR158: 0 | BS158: 0 | BU158: 0 | BW158: 0 | BX158: 0 | BY158: 0 | BZ158: 0 | CA158: 0 | CB158: 0 | CC158: 0 | CD158: 0 | CE158: 0 | CF158: 0 | CG158: 0
B159: MOD:Y53 | D159: VS:D,E | E159: ORF:14 | T159: YA_5300_0166 | V159: 0 | W159: OCv Rg = 21 / 28 | Y159: 0 | Z159: 0 | AA159: 0 | AB159: 0 | AC159: 0 | AD159: 0 | AE159: 0 | AF159: =ROUNDUP($V159*FX!$G$2*CF!$B$3,0) -> 0 | AG159: =ROUNDUP($V159*FX!$G$10*CF!$B$4,0) -> 0 | AH159: =ROUNDUP($V159*FX!$G$35*CF!$B$5,0) -> 0 | AI159: =ROUNDUP($V159*FX!$G$3*CF!$B$6,0) -> 0 | BO159: 0 | BR159: 0 | BS159: 0 | BU159: 0 | BW159: 0 | BX159: 0 | BY159: 0 | BZ159: 0 | CA159: 0 | CB159: 0 | CC159: 0 | CD159: 0 | CE159: 0 | CF159: 0 | CG159: 0
B160: MOD:Y53 | D160: VS:D,E | E160: ORF:15 | T160: YA_5300_0167 | V160: 0 | W160: OCv Rg = 27 / 34 | Y160: 0 | Z160: 0 | AA160: 0 | AB160: 0 | AC160: 0 | AD160: 0 | AE160: 0 | AF160: =ROUNDUP($V160*FX!$G$2*CF!$B$3,0) -> 0 | AG160: =ROUNDUP($V160*FX!$G$10*CF!$B$4,0) -> 0 | AH160: =ROUNDUP($V160*FX!$G$35*CF!$B$5,0) -> 0 | AI160: =ROUNDUP($V160*FX!$G$3*CF!$B$6,0) -> 0 | BO160: 0 | BR160: 0 | BS160: 0 | BU160: 0 | BW160: 0 | BX160: 0 | BY160: 0 | BZ160: 0 | CA160: 0 | CB160: 0 | CC160: 0 | CD160: 0 | CE160: 0 | CF160: 0 | CG160: 0
B161: MOD:Y53 | D161: VS:D,E | E161: ORF:16 | T161: YA_5300_0168 | V161: 0 | W161: OCv Rg = 34 / 42 | Y161: 0 | Z161: 0 | AA161: 0 | AB161: 0 | AC161: 0 | AD161: 0 | AE161: 0 | AF161: =ROUNDUP($V161*FX!$G$2*CF!$B$3,0) -> 0 | AG161: =ROUNDUP($V161*FX!$G$10*CF!$B$4,0) -> 0 | AH161: =ROUNDUP($V161*FX!$G$35*CF!$B$5,0) -> 0 | AI161: =ROUNDUP($V161*FX!$G$3*CF!$B$6,0) -> 0 | BO161: 0 | BR161: 0 | BS161: 0 | BU161: 0 | BW161: 0 | BX161: 0 | BY161: 0 | BZ161: 0 | CA161: 0 | CB161: 0 | CC161: 0 | CD161: 0 | CE161: 0 | CF161: 0 | CG161: 0
B162: MOD:Y53 | D162: VS:E | E162: ORF:17 | T162: YA_5300_0169 | V162: 0 | W162: OCv Rg = 42 / 49 | Y162: 0 | Z162: 0 | AA162: 0 | AB162: 0 | AC162: 0 | AD162: 0 | AE162: 0 | AF162: =ROUNDUP($V162*FX!$G$2*CF!$B$3,0) -> 0 | AG162: =ROUNDUP($V162*FX!$G$10*CF!$B$4,0) -> 0 | AH162: =ROUNDUP($V162*FX!$G$35*CF!$B$5,0) -> 0 | AI162: =ROUNDUP($V162*FX!$G$3*CF!$B$6,0) -> 0 | BO162: 0 | BR162: 0 | BS162: 0 | BU162: 0 | BW162: 0 | BX162: 0 | BY162: 0 | BZ162: 0 | CA162: 0 | CB162: 0 | CC162: 0 | CD162: 0 | CE162: 0 | CF162: 0 | CG162: 0
B163: MOD:Y53 | D163: VS:E | E163: ORF:18 | T163: YA_5300_0170 | V163: 0 | W163: OCv Rg = 49 / 58 | Y163: 0 | Z163: 0 | AA163: 0 | AB163: 0 | AC163: 0 | AD163: 0 | AE163: 0 | AF163: =ROUNDUP($V163*FX!$G$2*CF!$B$3,0) -> 0 | AG163: =ROUNDUP($V163*FX!$G$10*CF!$B$4,0) -> 0 | AH163: =ROUNDUP($V163*FX!$G$35*CF!$B$5,0) -> 0 | AI163: =ROUNDUP($V163*FX!$G$3*CF!$B$6,0) -> 0 | BO163: 0 | BR163: 0 | BS163: 0 | BU163: 0 | BW163: 0 | BX163: 0 | BY163: 0 | BZ163: 0 | CA163: 0 | CB163: 0 | CC163: 0 | CD163: 0 | CE163: 0 | CF163: 0 | CG163: 0
B164: MOD:Y53 | D164: VS:E | E164: ORF:19 | T164: YA_5300_0171 | V164: 0 | W164: OCv Rg = 58 / 67 | Y164: 0 | Z164: 0 | AA164: 0 | AB164: 0 | AC164: 0 | AD164: 0 | AE164: 0 | AF164: =ROUNDUP($V164*FX!$G$2*CF!$B$3,0) -> 0 | AG164: =ROUNDUP($V164*FX!$G$10*CF!$B$4,0) -> 0 | AH164: =ROUNDUP($V164*FX!$G$35*CF!$B$5,0) -> 0 | AI164: =ROUNDUP($V164*FX!$G$3*CF!$B$6,0) -> 0 | BO164: 0 | BR164: 0 | BS164: 0 | BU164: 0 | BW164: 0 | BX164: 0 | BY164: 0 | BZ164: 0 | CA164: 0 | CB164: 0 | CC164: 0 | CD164: 0 | CE164: 0 | CF164: 0 | CG164: 0
B165: MOD:Y53 | D165: ORF:SLEEVE | T165: YA_5300_0172 | V165: 0 | W165: Sleeve | X165: Do Not Use | Y165: 0 | Z165: 0 | AA165: 0 | AB165: 0 | AC165: 0 | AD165: 0 | AE165: 0 | AF165: =ROUNDUP($V165*FX!$G$2*CF!$B$3,0) -> 0 | AG165: =ROUNDUP($V165*FX!$G$10*CF!$B$4,0) -> 0 | AH165: =ROUNDUP($V165*FX!$G$35*CF!$B$5,0) -> 0 | AI165: =ROUNDUP($V165*FX!$G$3*CF!$B$6,0) -> 0 | BO165: 0 | BR165: 0 | BS165: 0 | BU165: 0 | BW165: 0 | BX165: 0 | BY165: 0 | BZ165: 0 | CA165: 0 | CB165: 0 | CC165: 0 | CD165: 0 | CE165: 0 | CF165: 0 | CG165: 0
B166: MOD:Y53 | D166: IO:A,B,C | E166: FF:RF | T166: YA_5300_0173 | V166: 0 | W166: Raised Face | Y166: 0 | Z166: 0 | AA166: 0 | AB166: 0 | AC166: 0 | AD166: 0 | AE166: 0 | AF166: =ROUNDUP($V166*FX!$G$2*CF!$B$3,0) -> 0 | AG166: =ROUNDUP($V166*FX!$G$10*CF!$B$4,0) -> 0 | AH166: =ROUNDUP($V166*FX!$G$35*CF!$B$5,0) -> 0 | AI166: =ROUNDUP($V166*FX!$G$3*CF!$B$6,0) -> 0 | BO166: 0 | BR166: 0 | BS166: 0 | BU166: 0 | BW166: 0 | BX166: 0 | BY166: =ROUNDUP(BX166,0) -> 0 | BZ166: 0 | CA166: 0 | CB166: 0 | CC166: 0 | CD166: 0 | CE166: 0 | CF166: 0 | CG166: 0
B167: MOD:Y53 | D167: IO:D,E,F | E167: FF:RJ | F167: VS:B | T167: YA_5300_0174 | V167: 2876 | W167: Ring Type Joint | Y167: 2205 | Z167: 2205 | AA167: 2141 | AB167: 2141 | AC167: 2079 | AD167: 2018 | AE167: 2876 | AF167: =ROUNDUP($V167*FX!$G$2*CF!$B$3,0) -> 2876 | AG167: =ROUNDUP($V167*FX!$G$10*CF!$B$4,0) -> 3968 | AH167: =ROUNDUP($V167*FX!$G$35*CF!$B$5,0) -> 1933 | AI167: =ROUNDUP($V167*FX!$G$3*CF!$B$6,0) -> 4000 | BO167: 2997 | BR167: 2298.652 | BS167: 2299 | BU167: 0 | BW167: 2205.23 | BX167: 2298 | BY167: 2298 | BZ167: 2389.92 | CA167: 2389.92 | CB167: 2390 | CC167: 2612.27 | CD167: 2612.27 | CE167: 2613 | CF167: 2757 | CG167: 2876
B168: MOD:Y53 | D168: IO:D,E,F | E168: FF:RJ | F168: VS:C | T168: YA_5300_0175 | V168: 3196 | W168: Ring Type Joint | Y168: 2449 | Z168: 2449 | AA168: 2378 | AB168: 2378 | AC168: 2309 | AD168: 2242 | AE168: 3196 | AF168: =ROUNDUP($V168*FX!$G$2*CF!$B$3,0) -> 3196 | AG168: =ROUNDUP($V168*FX!$G$10*CF!$B$4,0) -> 4409 | AH168: =ROUNDUP($V168*FX!$G$35*CF!$B$5,0) -> 2148 | AI168: =ROUNDUP($V168*FX!$G$3*CF!$B$6,0) -> 4445 | BO168: 3331 | BR168: 2552.9 | BS168: 2553 | BU168: 0 | BW168: 2449.34 | BX168: 2553 | BY168: 2553 | BZ168: 2655.12 | CA168: 2655.12 | CB168: 2656 | CC168: 2903.008 | CD168: 2903.008 | CE168: 2904 | CF168: 3064 | CG168: 3196
B169: MOD:Y53 | D169: IO:D,E,F | E169: FF:RJ | F169: VS:D | T169: YA_5300_0176 | V169: 3835 | W169: Ring Type Joint | Y169: 2940 | Z169: 2940 | AA169: 2854 | AB169: 2854 | AC169: 2771 | AD169: 2690 | AE169: 3835 | AF169: =ROUNDUP($V169*FX!$G$2*CF!$B$3,0) -> 3835 | AG169: =ROUNDUP($V169*FX!$G$10*CF!$B$4,0) -> 5291 | AH169: =ROUNDUP($V169*FX!$G$35*CF!$B$5,0) -> 2578 | AI169: =ROUNDUP($V169*FX!$G$3*CF!$B$6,0) -> 5333 | BO169: 3997 | BR169: 3063.48 | BS169: 3064 | BU169: 0 | BW169: 2939.62 | BX169: 3064 | BY169: 3064 | BZ169: 3186.56 | CA169: 3186.56 | CB169: 3187 | CC169: 3483.391 | CD169: 3483.391 | CE169: 3484 | CF169: 3676 | CG169: 3835
B170: MOD:Y53 | D170: IO:D,E,F | E170: FF:RJ | F170: VS:E | T170: YA_5300_0177 | V170: 4472 | W170: Ring Type Joint | Y170: 3430 | Z170: 3430 | AA170: 3330 | AB170: 3330 | AC170: 3233 | AD170: 3139 | AE170: 4472 | AF170: =ROUNDUP($V170*FX!$G$2*CF!$B$3,0) -> 4472 | AG170: =ROUNDUP($V170*FX!$G$10*CF!$B$4,0) -> 6170 | AH170: =ROUNDUP($V170*FX!$G$35*CF!$B$5,0) -> 3006 | AI170: =ROUNDUP($V170*FX!$G$3*CF!$B$6,0) -> 6219 | BO170: 4660 | BR170: 3574.06 | BS170: 3575 | BU170: 0 | BW170: 3429.9 | BX170: 3574 | BY170: 3574 | BZ170: 3716.96 | CA170: 3716.96 | CB170: 3717 | CC170: 4062.681 | CD170: 4062.681 | CE170: 4063 | CF170: 4287 | CG170: 4472
B171: MOD:Y53 | D171: IO:G,H,I | E171: FF:BW | F171: VS:B | T171: YA_5300_0178 | V171: 1919 | W171: Butt Weld | Y171: 1470 | Z171: 1470 | AA171: 1427 | AB171: 1427 | AC171: 1385 | AD171: 1345 | AE171: 1919 | AF171: =ROUNDUP($V171*FX!$G$2*CF!$B$3,0) -> 1919 | AG171: =ROUNDUP($V171*FX!$G$10*CF!$B$4,0) -> 2648 | AH171: =ROUNDUP($V171*FX!$G$35*CF!$B$5,0) -> 1290 | AI171: =ROUNDUP($V171*FX!$G$3*CF!$B$6,0) -> 2669 | BO171: 2000 | BR171: 1531.74 | BS171: 1532 | BU171: 0 | BW171: 1469.81 | BX171: 1532 | BY171: 1532 | BZ171: 1593.28 | CA171: 1593.28 | CB171: 1594 | CC171: 1742.242 | CD171: 1742.242 | CE171: 1743 | CF171: 1839 | CG171: 1919
B172: MOD:Y53 | D172: IO:G,H,I | E172: FF:BW | F172: VS:C | T172: YA_5300_0179 | V172: 2240 | W172: Butt Weld | Y172: 1716 | Z172: 1716 | AA172: 1666 | AB172: 1666 | AC172: 1617 | AD172: 1570 | AE172: 2240 | AF172: =ROUNDUP($V172*FX!$G$2*CF!$B$3,0) -> 2240 | AG172: =ROUNDUP($V172*FX!$G$10*CF!$B$4,0) -> 3091 | AH172: =ROUNDUP($V172*FX!$G$35*CF!$B$5,0) -> 1506 | AI172: =ROUNDUP($V172*FX!$G$3*CF!$B$6,0) -> 3115 | BO172: 2335 | BR172: 1788.072 | BS172: 1789 | BU172: 0 | BW172: 1715.98 | BX172: 1789 | BY172: 1789 | BZ172: 1860.56 | CA172: 1860.56 | CB172: 1861 | CC172: 2034.073 | CD172: 2034.073 | CE172: 2035 | CF172: 2147 | CG172: 2240
B173: MOD:Y53 | D173: IO:G,H,I | E173: FF:BW | F173: VS:D | T173: YA_5300_0180 | V173: 2558 | W173: Butt Weld | Y173: 1961 | Z173: 1961 | AA173: 1904 | AB173: 1904 | AC173: 1849 | AD173: 1795 | AE173: 2558 | AF173: =ROUNDUP($V173*FX!$G$2*CF!$B$3,0) -> 2558 | AG173: =ROUNDUP($V173*FX!$G$10*CF!$B$4,0) -> 3529 | AH173: =ROUNDUP($V173*FX!$G$35*CF!$B$5,0) -> 1720 | AI173: =ROUNDUP($V173*FX!$G$3*CF!$B$6,0) -> 3557 | BO173: 2666 | BR173: 2044.404 | BS173: 2045 | BU173: 0 | BW173: 1961.12 | BX173: 2044 | BY173: 2044 | BZ173: 2125.76 | CA173: 2125.76 | CB173: 2126 | CC173: 2323.718 | CD173: 2323.718 | CE173: 2324 | CF173: 2452 | CG173: 2558
B174: MOD:Y53 | D174: IO:G,H,I | E174: FF:BW | F174: VS:E | T174: YA_5300_0181 | V174: 3196 | W174: Butt Weld | Y174: 2449 | Z174: 2449 | AA174: 2378 | AB174: 2378 | AC174: 2309 | AD174: 2242 | AE174: 3196 | AF174: =ROUNDUP($V174*FX!$G$2*CF!$B$3,0) -> 3196 | AG174: =ROUNDUP($V174*FX!$G$10*CF!$B$4,0) -> 4409 | AH174: =ROUNDUP($V174*FX!$G$35*CF!$B$5,0) -> 2148 | AI174: =ROUNDUP($V174*FX!$G$3*CF!$B$6,0) -> 4445 | BO174: 3331 | BR174: 2552.9 | BS174: 2553 | BU174: 0 | BW174: 2449.34 | BX174: 2553 | BY174: 2553 | BZ174: 2655.12 | CA174: 2655.12 | CB174: 2656 | CC174: 2903.008 | CD174: 2903.008 | CE174: 2904 | CF174: 3064 | CG174: 3196
B175: MOD:Y53 | D175: SM:E | E175: VS:C | T175: YA_5300_0182 | V175: 502 | W175: EPDM | Y175: 383 | Z175: 383 | AA175: 372 | AB175: 372 | AC175: 361 | AD175: 350 | AE175: 502 | AF175: =ROUNDUP($V175*FX!$G$2*CF!$B$3,0) -> 502 | AG175: =ROUNDUP($V175*FX!$G$10*CF!$B$4,0) -> 693 | AH175: =ROUNDUP($V175*FX!$G$35*CF!$B$5,0) -> 338 | AI175: =ROUNDUP($V175*FX!$G$3*CF!$B$6,0) -> 699 | BO175: 524 | BR175: 400.128 | BS175: 401 | BU175: 0 | BW175: 383.16 | BX175: 400 | BY175: 400 | BZ175: 416 | CA175: 416 | CB175: 416 | CC175: 454.688 | CD175: 454.688 | CE175: 455 | CF175: 481 | CG175: 502
B176: MOD:Y53 | D176: SM:E | E176: VS:D | T176: YA_5300_0183 | V176: 538 | W176: EPDM | Y176: 410 | Z176: 410 | AA176: 398 | AB176: 398 | AC176: 386 | AD176: 375 | AE176: 538 | AF176: =ROUNDUP($V176*FX!$G$2*CF!$B$3,0) -> 538 | AG176: =ROUNDUP($V176*FX!$G$10*CF!$B$4,0) -> 743 | AH176: =ROUNDUP($V176*FX!$G$35*CF!$B$5,0) -> 362 | AI176: =ROUNDUP($V176*FX!$G$3*CF!$B$6,0) -> 749 | BO176: 561 | BR176: 427.22 | BS176: 428 | BU176: 0 | BW176: 409.94 | BX176: 428 | BY176: 428 | BZ176: 445.12 | CA176: 445.12 | CB176: 446 | CC176: 487.478 | CD176: 487.478 | CE176: 488 | CF176: 515 | CG176: 538
B177: MOD:Y53 | D177: SM:E | E177: VS:E | T177: YA_5300_0184 | V177: 573 | W177: EPDM | Y177: 437 | Z177: 437 | AA177: 424 | AB177: 424 | AC177: 412 | AD177: 400 | AE177: 573 | AF177: =ROUNDUP($V177*FX!$G$2*CF!$B$3,0) -> 573 | AG177: =ROUNDUP($V177*FX!$G$10*CF!$B$4,0) -> 791 | AH177: =ROUNDUP($V177*FX!$G$35*CF!$B$5,0) -> 386 | AI177: =ROUNDUP($V177*FX!$G$3*CF!$B$6,0) -> 797 | BO177: 598 | BR177: 455.354 | BS177: 456 | BU177: 0 | BW177: 436.72 | BX177: 456 | BY177: 456 | BZ177: 474.24 | CA177: 474.24 | CB177: 475 | CC177: 519.175 | CD177: 519.175 | CE177: 520 | CF177: 549 | CG177: 573
B178: MOD:Y53 | D178: SM:K | E178: VS:C | T178: YA_5300_0185 | V178: 1000 | W178: Kalrez | Y178: 765 | Z178: 765 | AA178: 743 | AB178: 743 | AC178: 721 | AD178: 700 | AE178: 1000 | AF178: =ROUNDUP($V178*FX!$G$2*CF!$B$3,0) -> 1000 | AG178: =ROUNDUP($V178*FX!$G$10*CF!$B$4,0) -> 1380 | AH178: =ROUNDUP($V178*FX!$G$35*CF!$B$5,0) -> 673 | AI178: =ROUNDUP($V178*FX!$G$3*CF!$B$6,0) -> 1391 | BO178: 1042 | BR178: 798.172 | BS178: 799 | BU178: 0 | BW178: 765.29 | BX178: 798 | BY178: 798 | BZ178: 829.92 | CA178: 829.92 | CB178: 830 | CC178: 907.19 | CD178: 907.19 | CE178: 908 | CF178: 958 | CG178: 1000
B179: MOD:Y53 | D179: SM:K | E179: VS:D | T179: YA_5300_0186 | V179: 1035 | W179: Kalrez | Y179: 792 | Z179: 792 | AA179: 769 | AB179: 769 | AC179: 747 | AD179: 725 | AE179: 1035 | AF179: =ROUNDUP($V179*FX!$G$2*CF!$B$3,0) -> 1035 | AG179: =ROUNDUP($V179*FX!$G$10*CF!$B$4,0) -> 1428 | AH179: =ROUNDUP($V179*FX!$G$35*CF!$B$5,0) -> 696 | AI179: =ROUNDUP($V179*FX!$G$3*CF!$B$6,0) -> 1440 | BO179: 1079 | BR179: 826.306 | BS179: 827 | BU179: 0 | BW179: 792.07 | BX179: 826 | BY179: 826 | BZ179: 859.04 | CA179: 859.04 | CB179: 860 | CC179: 939.98 | CD179: 939.98 | CE179: 940 | CF179: 992 | CG179: 1035
B180: MOD:Y53 | D180: SM:K | E180: VS:E | T180: YA_5300_0187 | V180: 1072 | W180: Kalrez | Y180: 820 | Z180: 820 | AA180: 796 | AB180: 796 | AC180: 773 | AD180: 750 | AE180: 1072 | AF180: =ROUNDUP($V180*FX!$G$2*CF!$B$3,0) -> 1072 | AG180: =ROUNDUP($V180*FX!$G$10*CF!$B$4,0) -> 1479 | AH180: =ROUNDUP($V180*FX!$G$35*CF!$B$5,0) -> 721 | AI180: =ROUNDUP($V180*FX!$G$3*CF!$B$6,0) -> 1491 | BO180: 1118 | BR180: 854.44 | BS180: 855 | BU180: 0 | BW180: 819.88 | BX180: 855 | BY180: 855 | BZ180: 889.2 | CA180: 889.2 | CB180: 890 | CC180: 972.77 | CD180: 972.77 | CE180: 973 | CF180: 1027 | CG180: 1072
B181: MOD:Y53 | D181: SM:V | E181: VS:C | T181: YA_5300_0188 | V181: 678 | W181: Viton | X181: Soft Goods | Y181: 519 | Z181: 519 | AA181: 504 | AB181: 504 | AC181: 489 | AD181: 475 | AE181: 678 | AF181: =ROUNDUP($V181*FX!$G$2*CF!$B$3,0) -> 678 | AG181: =ROUNDUP($V181*FX!$G$10*CF!$B$4,0) -> 936 | AH181: =ROUNDUP($V181*FX!$G$35*CF!$B$5,0) -> 456 | AI181: =ROUNDUP($V181*FX!$G$3*CF!$B$6,0) -> 943 | BO181: 707 | BR181: 541.84 | BS181: 542 | BU181: 0 | BW181: 519.12 | BX181: 541 | BY181: 541 | BZ181: 562.64 | CA181: 562.64 | CB181: 563 | CC181: 615.359 | CD181: 615.359 | CE181: 616 | CF181: 650 | CG181: 678
B182: MOD:Y53 | D182: SM:V | E182: VS:D | T182: YA_5300_0189 | V182: 714 | W182: Viton | X182: Soft Goods | Y182: 546 | Z182: 546 | AA182: 530 | AB182: 530 | AC182: 515 | AD182: 500 | AE182: 714 | AF182: =ROUNDUP($V182*FX!$G$2*CF!$B$3,0) -> 714 | AG182: =ROUNDUP($V182*FX!$G$10*CF!$B$4,0) -> 985 | AH182: =ROUNDUP($V182*FX!$G$35*CF!$B$5,0) -> 480 | AI182: =ROUNDUP($V182*FX!$G$3*CF!$B$6,0) -> 993 | BO182: 744 | BR182: 568.932 | BS182: 569 | BU182: 0 | BW182: 545.9 | BX182: 569 | BY182: 569 | BZ182: 591.76 | CA182: 591.76 | CB182: 592 | CC182: 647.056 | CD182: 647.056 | CE182: 648 | CF182: =IF(CE182="POA","POA", ROUNDUP(CE182*1.055,0)) -> 684 | CG182: 714
B183: MOD:Y53 | D183: SM:V | E183: VS:E | T183: YA_5300_0190 | V183: 749 | W183: Viton | X183: Soft Goods | Y183: 574 | Z183: 574 | AA183: 557 | AB183: 557 | AC183: 541 | AD183: 525 | AE183: 749 | AF183: =ROUNDUP($V183*FX!$G$2*CF!$B$3,0) -> 749 | AG183: =ROUNDUP($V183*FX!$G$10*CF!$B$4,0) -> 1034 | AH183: =ROUNDUP($V183*FX!$G$35*CF!$B$5,0) -> 504 | AI183: =ROUNDUP($V183*FX!$G$3*CF!$B$6,0) -> 1042 | BO183: 781 | BR183: 598.108 | BS183: 599 | BU183: 0 | BW183: 573.71 | BX183: 598 | BY183: 598 | BZ183: 621.92 | CA183: 621.92 | CB183: 622 | CC183: 679.846 | CD183: 679.846 | CE183: 680 | CF183: 718 | CG183: 749
B184: MOD:Y53 | D184: BM:X | T184: YA_5300_0191 | V184: POA | W184: Cust Body Matl | Y184: POA | Z184: =IFERROR(AA184*1.03,"POA") -> POA | AA184: POA | AB184: POA | AC184: POA | AD184: POA | AE184: POA | AF184: =ROUNDUP($V184*FX!$G$2*CF!$B$3,0) ->  | AG184: =ROUNDUP($V184*FX!$G$10*CF!$B$4,0) ->  | AH184: =ROUNDUP($V184*FX!$G$35*CF!$B$5,0) ->  | AI184: =ROUNDUP($V184*FX!$G$3*CF!$B$6,0) ->  | BS184: =AE184 -> POA | BU184: 0 | BW184: POA | BX184: POA | BY184: POA | BZ184: POA | CA184: POA | CB184: POA | CC184: POA | CD184: POA | CE184: POA | CF184: POA | CG184: POA
B185: MOD:Y53 | D185: IO:X | T185: YA_5300_0192 | V185: POA | W185: Cust In/Out Flg | Y185: POA | Z185: POA | AA185: POA | AB185: POA | AC185: POA | AD185: POA | AE185: POA | AF185: =ROUNDUP($V185*FX!$G$2*CF!$B$3,0) ->  | AG185: =ROUNDUP($V185*FX!$G$10*CF!$B$4,0) ->  | AH185: =ROUNDUP($V185*FX!$G$35*CF!$B$5,0) ->  | AI185: =ROUNDUP($V185*FX!$G$3*CF!$B$6,0) ->  | BS185: POA | BU185: 0 | BW185: POA | BX185: POA | BY185: POA | BZ185: POA | CA185: POA | CB185: POA | CC185: POA | CD185: POA | CE185: POA | CF185: POA | CG185: POA
B186: MOD:Y53 | D186: BC:X | T186: YA_5300_0193 | V186: POA | W186: Cust Bypass Flg | Y186: POA | Z186: POA | AA186: POA | AB186: POA | AC186: POA | AD186: POA | AE186: POA | AF186: =ROUNDUP($V186*FX!$G$2*CF!$B$3,0) ->  | AG186: =ROUNDUP($V186*FX!$G$10*CF!$B$4,0) ->  | AH186: =ROUNDUP($V186*FX!$G$35*CF!$B$5,0) ->  | AI186: =ROUNDUP($V186*FX!$G$3*CF!$B$6,0) ->  | BS186: POA | BU186: 0 | BW186: POA | BX186: POA | BY186: POA | BZ186: POA | CA186: POA | CB186: POA | CC186: POA | CD186: POA | CE186: POA | CF186: POA | CG186: POA
B187: MOD:Y53 | D187: FF:X | T187: YA_5300_0194 | V187: POA | W187: Cust Flange Face | Y187: POA | Z187: POA | AA187: POA | AB187: POA | AC187: POA | AD187: POA | AE187: POA | AF187: =ROUNDUP($V187*FX!$G$2*CF!$B$3,0) ->  | AG187: =ROUNDUP($V187*FX!$G$10*CF!$B$4,0) ->  | AH187: =ROUNDUP($V187*FX!$G$35*CF!$B$5,0) ->  | AI187: =ROUNDUP($V187*FX!$G$3*CF!$B$6,0) ->  | BS187: POA | BU187: 0 | BW187: POA | BX187: POA | BY187: POA | BZ187: POA | CA187: POA | CB187: POA | CC187: POA | CD187: POA | CE187: POA | CF187: POA | CG187: POA
B188: MOD:Y53 | D188: VD:X | T188: YA_5300_0195 | V188: POA | W188: Cust Valve Disc | Y188: POA | Z188: POA | AA188: POA | AB188: POA | AC188: POA | AD188: POA | AE188: POA | AF188: =ROUNDUP($V188*FX!$G$2*CF!$B$3,0) ->  | AG188: =ROUNDUP($V188*FX!$G$10*CF!$B$4,0) ->  | AH188: =ROUNDUP($V188*FX!$G$35*CF!$B$5,0) ->  | AI188: =ROUNDUP($V188*FX!$G$3*CF!$B$6,0) ->  | BS188: POA | BU188: 0 | BW188: POA | BX188: POA | BY188: POA | BZ188: POA | CA188: POA | CB188: POA | CC188: POA | CD188: POA | CE188: POA | CF188: POA | CG188: POA
B189: MOD:Y53 | D189: MCV:X | T189: YA_5300_0196 | V189: POA | W189: Cust Main Cv | Y189: POA | Z189: POA | AA189: POA | AB189: POA | AC189: POA | AD189: POA | AE189: POA | AF189: =ROUNDUP($V189*FX!$G$2*CF!$B$3,0) ->  | AG189: =ROUNDUP($V189*FX!$G$10*CF!$B$4,0) ->  | AH189: =ROUNDUP($V189*FX!$G$35*CF!$B$5,0) ->  | AI189: =ROUNDUP($V189*FX!$G$3*CF!$B$6,0) ->  | BS189: POA | BU189: 0 | BW189: POA | BX189: POA | BY189: POA | BZ189: POA | CA189: POA | CB189: POA | CC189: POA | CD189: POA | CE189: POA | CF189: POA | CG189: POA
B190: MOD:Y53 | D190: SM:X | T190: YA_5300_0197 | V190: POA | W190: Cust Seal Matl | Y190: POA | Z190: POA | AA190: POA | AB190: POA | AC190: POA | AD190: POA | AE190: POA | AF190: =ROUNDUP($V190*FX!$G$2*CF!$B$3,0) ->  | AG190: =ROUNDUP($V190*FX!$G$10*CF!$B$4,0) ->  | AH190: =ROUNDUP($V190*FX!$G$35*CF!$B$5,0) ->  | AI190: =ROUNDUP($V190*FX!$G$3*CF!$B$6,0) ->  | BS190: POA | BU190: 0 | BW190: POA | BX190: POA | BY190: POA | BZ190: POA | CA190: POA | CB190: POA | CC190: POA | CD190: POA | CE190: POA | CF190: POA | CG190: POA
B191: MOD:Y53 | D191: ORF:X | T191: YA_5300_0198 | V191: POA | W191: Cust Orifice | Y191: POA | Z191: POA | AA191: POA | AB191: POA | AC191: POA | AD191: POA | AE191: POA | AF191: =ROUNDUP($V191*FX!$G$2*CF!$B$3,0) ->  | AG191: =ROUNDUP($V191*FX!$G$10*CF!$B$4,0) ->  | AH191: =ROUNDUP($V191*FX!$G$35*CF!$B$5,0) ->  | AI191: =ROUNDUP($V191*FX!$G$3*CF!$B$6,0) ->  | BS191: POA | BU191: 0 | BW191: POA | BX191: POA | BY191: POA | BZ191: POA | CA191: POA | CB191: POA | CC191: POA | CD191: POA | CE191: POA | CF191: POA | CG191: POA
B192: MOD:Y53 | D192: VS:X | T192: YA_5300_0199 | V192: POA | W192: Cust Valve Size | Y192: POA | Z192: POA | AA192: POA | AB192: POA | AC192: POA | AD192: POA | AE192: POA | AF192: =ROUNDUP($V192*FX!$G$2*CF!$B$3,0) ->  | AG192: =ROUNDUP($V192*FX!$G$10*CF!$B$4,0) ->  | AH192: =ROUNDUP($V192*FX!$G$35*CF!$B$5,0) ->  | AI192: =ROUNDUP($V192*FX!$G$3*CF!$B$6,0) ->  | BS192: POA | BU192: 0 | BW192: POA | BX192: POA | BY192: POA | BZ192: POA | CA192: POA | CB192: POA | CC192: POA | CD192: POA | CE192: POA | CF192: =IF(CE192="POA","POA", ROUNDUP(CE192*1.055,0)) -> POA | CG192: POA
A193: YA9100 | B193: MOD:Y91 | D193: VS:C | E193: PC:1 | F193: BM:0 | G193: NC:N | T193: YA_9100_0001 | V193: 57114 | W193: CS (WCB) | X193: Base Valve Price | Y193: =IFERROR(Z193*1.02,"POA") -> 43612.14 | Z193: =ROUND(IFERROR(AA193*1.03,"POA"),0) -> 42757 | AA193: 41512 | AB193: 40129 | AC193: 38960 | AD193: 37825 | AE193: 57114 | AF193: =ROUNDUP($V193*FX!$G$2*CF!$B$3,0) -> 57114 | AG193: =ROUNDUP($V193*FX!$G$10*CF!$B$4,0) -> 78789 | AH193: =ROUNDUP($V193*FX!$G$35*CF!$B$5,0) -> 38384 | AI193: =ROUNDUP($V193*FX!$G$3*CF!$B$6,0) -> 79418 | BO193: 59513 | BR193: 45444.746 | BS193: =ROUNDUP(BR193,0) -> 45445 | BU193: 0 | BW193: 43612.5072 | BX193: =ROUNDUP(($BW193+($BX$1*$BW193)),0) -> 45445 | BY193: 45445 | BZ193: =BY193+(BY193*$BZ$1) -> 47262.8 | CA193: 47262.8 | CB193: 47263 | CC193: 51658.459 | CD193: 51658.459 | CE193: =ROUNDUP(CD193,0) -> 51659 | CF193: =IF(CE193="POA","POA", ROUNDUP(CE193*1.06,0)) -> 54759 | CG193: 57114
A194: YA9100 | B194: MOD:Y91 | D194: VS:D | E194: PC:1 | F194: BM:0 | G194: NC:N | T194: YA_9100_0002 | V194: =AE194 -> 65305 | W194: CS (WCB) | X194: Base Valve Price | Y194: 49866.78 | Z194: 48889 | AA194: 47465 | AB194: 45884 | AC194: 44548 | AD194: 43250 | AE194: 65305 | AF194: =ROUNDUP($V194*FX!$G$2*CF!$B$3,0) -> 65305 | AG194: =ROUNDUP($V194*FX!$G$10*CF!$B$4,0) -> 90089 | AH194: =ROUNDUP($V194*FX!$G$35*CF!$B$5,0) -> 43888 | AI194: =ROUNDUP($V194*FX!$G$3*CF!$B$6,0) -> 90807 | BO194: 68048 | BR194: 51961.414 | BS194: 51962 | BU194: 0 | BW194: 49866.729 | BX194: 51962 | BY194: 51962 | BZ194: 54040.48 | CA194: 54040.48 | CB194: 54041 | CC194: 59066.813 | CD194: 59066.813 | CE194: 59067 | CF194: =IF(CE194="POA","POA", ROUNDUP(CE194*1.06,0)) -> 62612 | CG194: 65305
A195: YA9100 | B195: MOD:Y91 | D195: VS:E | E195: PC:1 | F195: BM:0 | G195: NC:N | T195: YA_9100_0003 | V195: 71520 | W195: CS (WCB) | X195: Base Valve Price | Y195: =IFERROR(Z195*1.02,"POA") -> 54611.82 | Z195: 53541 | AA195: 51982 | AB195: 50250 | AC195: 48786 | AD195: 47365 | AE195: =CG195 -> 71520 | AF195: =ROUNDUP($V195*FX!$G$2*CF!$B$3,0) -> 71520 | AG195: =ROUNDUP($V195*FX!$G$10*CF!$B$4,0) -> 98662 | AH195: =ROUNDUP($V195*FX!$G$35*CF!$B$5,0) -> 48065 | AI195: =ROUNDUP($V195*FX!$G$3*CF!$B$6,0) -> 99449 | BO195: =ROUNDUP(($AE195+($AE195*$BO$1)),0) -> 74524 | BR195: 56906.746 | BS195: 56907 | BU195: =ROUNDUP(BT195,0) -> 0 | BW195: 54612.2892 | BX195: 56907 | BY195: 56907 | BZ195: 59183.28 | CA195: 59183.28 | CB195: =ROUNDUP(CA195,0) -> 59184 | CC195: =CB195+(CB195*$CC$1) -> 64688.112 | CD195: 64688.112 | CE195: 64689 | CF195: 68571 | CG195: =IF(CF195="POA","POA", ROUNDUP(CF195*1.043,0)) -> 71520
A196: YA9100 | B196: MOD:Y91 | D196: VS:F | E196: PC:1 | F196: BM:0 | G196: NC:N | T196: YA_9100_0004 | V196: 74177 | W196: CS (WCB) | X196: Base Valve Price | Y196: 56641.62 | Z196: 55531 | AA196: 53914 | AB196: 52117 | AC196: 50599 | AD196: 49125 | AE196: 74177 | AF196: =ROUNDUP($V196*FX!$G$2*CF!$B$3,0) -> 74177 | AG196: =ROUNDUP($V196*FX!$G$10*CF!$B$4,0) -> 102328 | AH196: =ROUNDUP($V196*FX!$G$35*CF!$B$5,0) -> 49851 | AI196: =ROUNDUP($V196*FX!$G$3*CF!$B$6,0) -> 103144 | BO196: 77293 | BR196: 59022.006 | BS196: 59023 | BU196: 0 | BW196: 56642.0484 | BX196: 59022 | BY196: 59022 | BZ196: 61382.88 | CA196: 61382.88 | CB196: 61383 | CC196: 67091.619 | CD196: 67091.619 | CE196: 67092 | CF196: 71118 | CG196: 74177
A197: YA9100 | B197: MOD:Y91 | D197: VS:G | E197: PC:1 | F197: BM:0 | G197: NC:N | T197: YA_9100_0005 | V197: 126562 | W197: CS (WCB) | X197: Base Valve Price | Y197: 96646.02 | Z197: 94751 | AA197: 91991 | AB197: 89827 | AC197: 87211 | AD197: 84671 | AE197: 126562 | AF197: =ROUNDUP($V197*FX!$G$2*CF!$B$3,0) -> 126562 | AG197: =ROUNDUP($V197*FX!$G$10*CF!$B$4,0) -> 174593 | AH197: =ROUNDUP($V197*FX!$G$35*CF!$B$5,0) -> 85056 | AI197: =ROUNDUP($V197*FX!$G$3*CF!$B$6,0) -> 175985 | BO197: 131878 | BR197: 100705.132 | BS197: 100706 | BU197: 0 | BW197: 96645.7446 | BX197: 100705 | BY197: 100705 | BZ197: 104733.2 | CA197: 104733.2 | CB197: 104734 | CC197: 114474.262 | CD197: 114474.262 | CE197: 114475 | CF197: 121344 | CG197: 126562
A198: YA9100 | B198: MOD:Y91 | D198: VS:C | E198: PC:2 | F198: BM:0 | G198: NC:N | T198: YA_9100_0006 | V198: 54830 | W198: CS (WCB) | X198: Base Valve Price | Y198: 43612.14 | Z198: 42757 | AA198: 41512 | AB198: 41512 | AC198: 40303 | AD198: 39129 | AE198: 54830 | AF198: =ROUNDUP($V198*FX!$G$2*CF!$B$3,0) -> 54830 | AG198: =ROUNDUP($V198*FX!$G$10*CF!$B$4,0) -> 75639 | AH198: =ROUNDUP($V198*FX!$G$35*CF!$B$5,0) -> 36849 | AI198: =ROUNDUP($V198*FX!$G$3*CF!$B$6,0) -> 76242 | BO198: 57133 | BR198: 45444.746 | BS198: 45445 | BU198: 0 | BW198: 43612.5072 | BX198: 45445 | BY198: 45445 | BZ198: 47262.8 | CA198: 47262.8 | CB198: 47263 | CC198: 51658.459 | CD198: 49592.12064 | CE198: 49593 | CF198: 52569 | CG198: 54830
A199: YA9100 | B199: MOD:Y91 | D199: VS:D | E199: PC:2 | F199: BM:0 | G199: NC:N | T199: YA_9100_0007 | V199: 62693 | W199: CS (WCB) | X199: Base Valve Price | Y199: 49866.78 | Z199: 48889 | AA199: 47465 | AB199: 47465 | AC199: 46083 | AD199: 44741 | AE199: 62693 | AF199: =ROUNDUP($V199*FX!$G$2*CF!$B$3,0) -> 62693 | AG199: =ROUNDUP($V199*FX!$G$10*CF!$B$4,0) -> 86486 | AH199: =ROUNDUP($V199*FX!$G$35*CF!$B$5,0) -> 42133 | AI199: =ROUNDUP($V199*FX!$G$3*CF!$B$6,0) -> 87175 | BO199: 65327 | BR199: 51961.414 | BS199: 51962 | BU199: 0 | BW199: 49866.729 | BX199: 51962 | BY199: 51962 | BZ199: 54040.48 | CA199: 54040.48 | CB199: 54041 | CC199: 59066.813 | CD199: 56704.14048 | CE199: 56705 | CF199: 60108 | CG199: 62693
A200: YA9100 | B200: MOD:Y91 | D200: VS:E | E200: PC:2 | F200: BM:0 | G200: NC:N | T200: YA_9100_0008 | V200: 68659 | W200: CS (WCB) | X200: Base Valve Price | Y200: 54611.82 | Z200: 53541 | AA200: 51982 | AB200: 51982 | AC200: 50468 | AD200: 48998 | AE200: 68659 | AF200: =ROUNDUP($V200*FX!$G$2*CF!$B$3,0) -> 68659 | AG200: =ROUNDUP($V200*FX!$G$10*CF!$B$4,0) -> 94716 | AH200: =ROUNDUP($V200*FX!$G$35*CF!$B$5,0) -> 46142 | AI200: =ROUNDUP($V200*FX!$G$3*CF!$B$6,0) -> 95471 | BO200: 71543 | BR200: 56906.746 | BS200: 56907 | BU200: 0 | BW200: 54612.2892 | BX200: 56907 | BY200: 56907 | BZ200: 59183.28 | CA200: 59183.28 | CB200: 59184 | CC200: 64688.112 | CD200: 62100.58752 | CE200: 62101 | CF200: 65828 | CG200: 68659
... 641 more rows

Sheet Cover
A1: Bulletin(Rev): VCTDS-00817-EN 17/05 Effective: 04/11/2025 Supercedes Bulletin: VCTDS-00817-EN 17/05 Old Effective Date: 10/01/2024
A8: PRICE LIST
AV10: Currency
M11: Local Price: | W11: USA | AV11: USA
AV12: AUS
AV13: UK
AV14: CAN
A15: CONFIDENTIAL AND PROPRIETARY INFORMATION NOT FOR GENERAL DISTRIBUTION
A24: Yarway
A26: 5300, 9100, 9200, BPR
A27: Centrifugal Pump Protection
A29: Applying to Catalog No's:
A30: YAW-ARC-0817-US-1508
A32: All Prices F.O.B. Shipping Point, No Freight Allowed
A34: The prices shown in this price book are list price and are exclusive of any discounts or surcharges (including but not limited to any surcharges that Emerson may impose due to increased costs associated with the imposition of tariffs, duties and similar taxes) that Emerson may impose on the sale of the products or services listed herein. Any purchase orders issued for products listed herein to which a surcharge applies will not be accepted by Emerson until reissued with the inclusion of the applicable surcharge in place at the time of issuance of the purchase order.
A40: All Prices are Subject to Change Without Notice. Errors are Subject to Correction
A41: Terms: Net 30 Days
A54: Stafford Plant 3950 Greenbriar Dr Stafford, TX USA 77477 281-274-4400
A58: www.emerson.com

Sheet Blank
O29: This page left intentionally blank

Sheet TOC
A8: Table of Contents
H14: Section | P14: Description | AG14: Page
H16: Valve and BPR List Prices | P16: 5300
P19: 9100
P22: 9200
P25: BPR

Sheet ROC
A8: Record of Change
F12: Date | J12: Bulletin | N12: Rev# | Q12: Pricebook Changes
F13: 2014-01-01 | J13: YARARC | N13: B.0 | Q13: All Models - Price Changes
F14: 2015-01-01 | J14: YARARC | N14: C.0 | Q14: All Models - Price Changes
F15: 2015-01-05 | J15: YARARC | N15: D.0 | Q15: All Models - Price Changes
F16: 2016-07-20 | J16: YARARC | N16: E.0 | Q16: 7100 Removed from pricebook - Discontinued
F17: 2016-07-20 | J17: YARARC | N17: E.0 | Q17: Currency Selection added to Cover
F18: 2017-10-01 | J18: YARARC | N18: F.0 | Q18: Price revsions in accordance with PMG 2017 notification letter
F19: 2018-03-07 | J19: YARARC | N19: G.0 | Q19: Price revsions in accordance with PMG 2018 notification letter
F20: 2018-07-27 | J20: YARARC | N20: H.0 | Q20: Price revsions in accordance with PMG 2019 notification letter
F21: 2019-07-10 | J21: YARARC | N21: I.0 | Q21: Price revsions in accordance with PMG 2020 notification letter
F22: 2020-08-01 | J22: YARARC | N22: K.0 | Q22: Price revsions in accordance with PMG 2021 notification letter
F23: 2021-10-01 | J23: YARARC | N23: L.0 | Q23: 2022 price increase
F24: 2022-02-01 | J24: YARARC | N24: M.0 | Q24: 2022 mid-year price increase
F25: 2022-10-01 | J25: YARARC | N25: N.0 | Q25: 2023 price increase
F26: 2023-10-01 | J26: YARARC | N26: O.0 | Q26: FY24 price increase
F27: 2024-10-01 | J27: YARARC | N27: P.0 | Q27: FY25 price increase
F28: 2024-04-11 | J28: YARARC | N28: P.1 | Q28: Cover page terms

Sheet Instructions
A8: Pricebook Breakdown
N15: Required | T15: Optional | AA15: Optional | AH15: Optional
F16: Total Valve List Price* | N16: Body List Price | T16: Soft Goods List Price | AA16: Flange List Price | AH16: NACE List Price
M17: = | S17: + | Z17: + | AG17: +
F21: Example 1:
F22: 5304-06 | N22: WCB | T22: Viton | AA22: RTJ Flange
F23: =SUM(N23,T23,AA23) -> 124440 | N23: 121186 | T23: 510 | AA23: 2744
F29: Example 2:
F30: 9212-02 | N30: CF8M | T30: Graphite Std | AA30: Pressure Port
F31: =SUM(N31,T31,AA31) -> 30417 | N31: 29967 | T31: 0 | AA31: 450
F36: Example 3:
F37: 9160-02-R300 | N37: WCB | T37: EPDM | AA37: NACE
F38: =SUM(N38,T38,AA38) -> 14022 | N38: 13340 | T38: 227 | AA38: 455

Sheet Calculator (hidden)
B1: List Price Calculator(1)
AZ3: Table Lists & Inclusions | BU3: Pricing ERP Codes
BU6: Base Price ERP: | CC6: =CONCATENATE(U14,U15,U16,U17,U20) -> 920011508
BA7: Series | BD7: Pressure Class | BH7: Body Material | BK7: Orientation | BO7: Size | BR7: Options | BU7: Soft Goods ERP: | CC7: =CONCATENATE(U14,U17,U18) -> 92008Virgin TFE/Turcon 1
BA8: 5300 | BD8: 150 | BH8: 0 | BK8: Horizontal | BO8: 0.75 | BP8: 0.75 | BR8: None | BU8: Flange Face ERP: | CC8: =CONCATENATE(U14,U17,U19) -> 92008RF (Std)
BA9: 7100 | BD9: 300 | BH9: 1 | BK9: Vertical | BO9: 1 | BR9: NACE | BU9: Option 1: | CC9: =CONCATENATE(U14,U17,U26) -> 92008NACE
BA10: 9100 | BD10: 600 | BH10: 5 | BO10: 1.5 | BR10: Pressure Port | BU10: Option 2: | CC10: =CONCATENATE(U14,U17,U27) -> 92008Pressure Port
B11: Line Data | H11: Input | M11: Valve Data | U11: Selection | AC11: Price Item | AJ11: Unit Price | AO11: Total Price | BA11: 9200 | BD11: 900 | BH11: 6 | BK11: Soft Goods | BO11: 2 | BU11: Option 3:
BA12: BPR | BD12: 1500 | BK12: Graphite/Turcon 10 (Std) | BO12: 3 | BU12: Option 4:
BD13: 2500 | BK13: TFEP/Turcon 10 (Std) | BO13: 4 | BU13: Option 5:
B14: Line Item*: | H14: 1 | M14: Series*: | U14: 9200 | AC14: Base Price | AJ14: =VLOOKUP(CC6,'SAP VC'!V:V,2,FALSE) ->  | AO14: =$H$16*AJ14 ->  | BK14: PTFE (Flouraz) (Std) | BO14: 6
B15: Customer Tag(s): | M15: Body Material: | U15: 1 | AC15: Soft Goods | AJ15: =IF(COUNTIF(SGSTD,U18)=1,0,VLOOKUP(CC7,'SAP VC'!V:V,2,FALSE)) ->  | AO15: =$H$16*AJ15 ->  | BK15: TFEP/Turcon 1 | BO15: 8
B16: Quantity*: | H16: 1 | M16: Pressure Class | U16: 150 | AC16: Flange Face | AJ16: =IF(COUNTIF(BA17:BC18,U19)=1,0,VLOOKUP(CC8,'SAP VC'!V:V,2,FALSE)) -> 0 | AO16: 0 | BA16: Flange Face | BK16: Viton/Turcon 10 | BO16: 10
B17: Enter Model #: | M17: Valve Size: | U17: 8 | AC17: =U26 -> NACE | AJ17: =IF(AC17="None",0,VLOOKUP(CC9,'SAP VC'!V:V,2,FALSE)) ->  | BA17: RF (Std) | BK17: Viton/Turcon 1 | BO17: 12
B18: Discount %: | H18: 0.5 | M18: Soft Goods: | U18: Virgin TFE/Turcon 1 | AC18: =U27 -> Pressure Port | AJ18: =IF(AC18="None",0,VLOOKUP(CC10,'SAP VC'!V:V,2,FALSE)) ->  | BA18: Wafer BPR (Std) | BK18: EPDM/Turcon 10 | BO18: 14
M19: Flange Face: | U19: RF (Std) | AC19: None | AJ19: =IF(AC19="None",0,VLOOKUP(CC11,'SAP VC'!V:V,2,FALSE)) -> 0 | AO19: 0 | BA19: BWE | BK19: EPDM/Turcon 1
M20: Back Pressure (BPR) | AC20: None | AJ20: =IF(AC20="None",0,VLOOKUP(CC12,'SAP VC'!V:V,2,FALSE)) -> 0 | AO20: 0 | BA20: RTJ | BK20: Graphite/Turcon 1
M21: Main Cv | AC21: Custom Option: | AJ21: 0 | AO21: 0 | BK21: Virgin TFE/Turcon 1
M22: Bypass Cv | AC22: TOTAL | AJ22: =SUM(AJ14:AJ21) ->  | AO22: =SUM(AO14:AO20) ->  | BA22: Back Pressure | BK22: Viton
M23: Orientation | BK23: EPDM
B24: * | C24: Required Fields | M24: Process Fluid | BA24: R100 | BK24: Kalrez
M25: Pipe Schedule (BWE) | BA25: R200 | BK25: Variseal (Turcite)
M26: Option 1: | U26: NACE | BA26: R300
M27: Option 2: | U27: Pressure Port | BA27: R400
M28: Option 3: | U28: None | BA28: R500
M29: Option 4: | U29: None
M30: Option 5: | U30: None
M31: Custom Option: | U31: None | BA31: Pressure Class - C/I Table
BA32: 150 | BB32: 300 | BC32: 600 | BD32: 900 | BE32: 1500 | BF32: 2500 | BH32: Soft Goods - C/I Table
BA33: 9200 | BB33: 9200 | BK33: 5300 | BL33: 7100 | BM33: 9100 | BN33: 9200 | BO33: BPR
BB34: 9100 | BC34: 9100 | BH34: Graphite/Turcon 10 (Std) | BN34: 9200
BD35: 5300 | BE35: 5300 | BF35: 5300 | BH35: TFEP/Turcon 10 (Std) | BN35: 9200
BD36: 7100 | BE36: 7100 | BH36: PTFE (Flouraz) (Std) | BK36: 5300 | BL36: 7100 | BM36: 9100 | BO36: BPR
BE37: BPR | BH37: TFEP/Turcon 1 | BN37: 9200
BH38: Viton/Turcon 10 | BN38: 9200
BA39: Flange Face | BH39: Viton/Turcon 1 | BN39: 9200
BC40: 5300 | BD40: 7100 | BE40: 9100 | BF40: 9200 | BG40: BPR | BH40: EPDM/Turcon 10 | BN40: 9200
BA41: RF (Std) | BC41: 5300 | BD41: 7100 | BE41: 9100 | BF41: 9200 | BH41: EPDM/Turcon 1 | BN41: 9200
BA42: Wafer BPR (Std) | BG42: BPR | BH42: Graphite/Turcon 1 | BN42: 9200
BA43: FF | BC43: 5300 | BD43: 7000 | BE43: 9100 | BF43: 9200 | BH43: Virgin TFE/Turcon 1 | BN43: 9200
BA44: BWE | BC44: 5300 | BD44: 7100 | BH44: Viton | BK44: 5300 | BL44: 7100 | BM44: 9100 | BO44: BPR
BA45: RTJ | BC45: 5300 | BD45: 7100 | BH45: EPDM | BK45: 5300 | BL45: 7100 | BM45: 9100 | BO45: BPR
BH46: Kalrez | BK46: 5300 | BM46: 9100
BH47: Variseal (Turcite) | BM47: 9100
A86: (1) | B86: This list price calculator is to be used for pricing only.
B87: This tool is neither a sizing program nor configuration engine.
B88: All valves should be properly sized and configured before using this tool.
B89: Invalid selections are possible. Consult factory for all Priced on Application (POA) pricing.

Sheet Quote (hidden)
E2: Customer: | M2: Salesperson:
E3: Project: | M3: Sales Office:
E4: Quote: | J4: Rev:
E5: Date:
A7: LINE ITEM DATA | E7: VALVE DATA & LIST PRICES | AA7: OPTIONS & LIST PRICES | AM7: PRICING
A9: Line | B9: Customer Tag(s) | C9: QTY | D9: Model # | E9: UOM Pressure | F9: Set Pressure | G9: Constant SP BP | H9: UOM Temp | I9: Relieving Temp | J9: Service | K9: Model | L9: Inlet x Outlet | M9: Base Model | O9: Seat | Q9: Cap | S9: Material | U9: NACE | W9: Inlet Connection | Y9: Outlet Connection | AA9: Option 1 | AC9: Option 2 | AE9: Option 3 | AG9: Option 4 | AI9: Option 5 | AK9: Custom Option | AM9: Unit List Price | AN9: Discount % | AO9: Unit Net Price | AP9: Net Adder(s) | AQ9: TOTAL NET PRICE
M12: Model | N12: Price | O12: Seat | P12: Price | Q12: Cap Type | R12: Price | S12: Material | T12: Price | U12: NACE | V12: Price | W12: Type | X12: Price | Y12: Type | Z12: Price | AA12: Option | AB12: Price | AC12: Option | AD12: Price | AE12: Option | AF12: Price | AG12: Option | AH12: Price | AI12: Option | AJ12: Price | AK12: Option | AL12: Price
A13: 0 | B13: 1 | C13: 0 | D13: 1 | E13: 0 | F13: 5300 | G13: 0 | H13: 1500 | I13: 6 | J13: TFEP/Turcon 1 | K13: 0 | L13: x | M13: 0 | N13: 0 | O13: 0 | P13: 192902 | Q13: None | S13: 0 | T13: 0 | U13: 0 | W13: None | Y13: None | Z13: 0 | AA13: None | AB13: 0 | AC13: Custom Option: | AD13: 0 | AE13: TOTAL | AG13: 0 | AH13: 0 | AI13: 0 | AJ13: 0 | AK13: 0 | AL13: 0 | AM13: =SUM(N13,P13,R13,T13,V13,X13,Z13,AB13,AD13,AF13,AH13,AJ13,AL13) ->  | AN13: 0 | AO13: =AM13*(1-AN13) ->  | AQ13: =(AO13+AP13)*C13 -> 

Sheet Page 1
A1: ARC Series 5300
AG9: TOC
D11: Valve Size (in.) | G11: Bypass Outlet Size (in.) | I11: Valve Assembly List Price (53) | Y11: Soft Goods Adders | AG11: Flange Adders & Options
Y14: Seal Material | AG14: Raised Face (RF) (STD) | AI14: RTJ (RJ) | AK14: BWE (BW) | AM14: NACE (N) | AO14: Pressure Gauge Port (Ea)
I15: ANSI CLASS | Y15: PTFE (P) (STD) | AA15: Viton (V) | AC15: EPDM (E) | AE15: Kalrez (K)
I16: 900 # (4) | Q16: 1500 # (5)
I17: WCB (0) | M17: CF8M (1) | Q17: WCB (0) | U17: CF8M (1)
D19: 3 (-03) | G19: 1 | I19: ='SAP VC'!AE2 -> 139862 | M19: ='SAP VC'!AE6 -> POA | Q19: ='SAP VC'!AE10 -> 144524 | U19: ='SAP VC'!AE14 -> POA | Y19: ='SAP VC'!$V$433 -> 0 | AA19: ='SAP VC'!$V$98 -> 645 | AC19: ='SAP VC'!$V$96 -> 451 | AE19: ='SAP VC'!$V$97 -> 964 | AG19: ='SAP VC'!$V$166 -> 0 | AI19: ='SAP VC'!AE167 -> 2876 | AK19: ='SAP VC'!AE171 -> 1919 | AM19: ='SAP VC'!$V$140 -> 645 | AO19: ='SAP VC'!AE834 -> 612
D20: 4 (-04) | G20: 1.5 | I20: ='SAP VC'!AE3 -> 146106 | M20: ='SAP VC'!AE7 -> POA | Q20: ='SAP VC'!AE11 -> 151144 | U20: ='SAP VC'!AE15 -> POA | Y20: ='SAP VC'!$V$433 -> 0 | AA20: ='SAP VC'!$V$181 -> 678 | AC20: ='SAP VC'!$V$175 -> 502 | AE20: ='SAP VC'!$V$178 -> 1000 | AG20: ='SAP VC'!$V$166 -> 0 | AI20: ='SAP VC'!AE168 -> 3196 | AK20: ='SAP VC'!AE172 -> 2240 | AM20: ='SAP VC'!$V$141 -> 645 | AO20: ='SAP VC'!AE835 -> 612
D21: 6 (-06) | G21: 2 | I21: ='SAP VC'!AE4 -> 169212 | M21: ='SAP VC'!AE8 -> POA | Q21: ='SAP VC'!AE12 -> 175045 | U21: ='SAP VC'!AE16 -> POA | Y21: ='SAP VC'!$V$433 -> 0 | AA21: ='SAP VC'!$V$182 -> 714 | AC21: ='SAP VC'!$V$176 -> 538 | AE21: ='SAP VC'!$V$179 -> 1035 | AG21: ='SAP VC'!$V$166 -> 0 | AI21: ='SAP VC'!AE169 -> 3835 | AK21: ='SAP VC'!AE173 -> 2558 | AM21: ='SAP VC'!$V$142 -> 962 | AO21: ='SAP VC'!AE836 -> 781
D22: 8 (-08) | G22: 2.5 | I22: ='SAP VC'!AE5 -> 203799 | M22: ='SAP VC'!AE9 -> POA | Q22: ='SAP VC'!AE13 -> 210827 | U22: ='SAP VC'!AE17 -> POA | Y22: ='SAP VC'!$V$433 -> 0 | AA22: ='SAP VC'!$V$183 -> 749 | AC22: ='SAP VC'!$V$177 -> 573 | AE22: ='SAP VC'!$V$180 -> 1072 | AG22: ='SAP VC'!$V$166 -> 0 | AI22: ='SAP VC'!AE170 -> 4472 | AK22: ='SAP VC'!AE174 -> 3196 | AM22: ='SAP VC'!$V$143 -> 962 | AO22: ='SAP VC'!AE837 -> 781
D24: Valve Size (in.) | G24: Bypass Outlet Size (in.) | I24: Valve Assembly List Price (53) | Y24: Soft Goods Adders | AG24: Flange Adders & Options
Y27: Seal Material | AG27: Raised Face (RF) (STD) | AI27: RTJ (RJ) | AK27: BWE (BW) | AM27: NACE (N) | AO27: Pressure Gauge Port (Ea)
I28: ANSI CLASS | Y28: PTFE (P) (STD) | AA28: Viton (V) | AC28: EPDM (E) | AE28: Kalrez (K)
I29: 2500 # (6) | Q29: --
I30: WCB (0) | M30: CF8M (1) | Q30: -- | U30: --
D32: 3 (-03) | G32: 1 | I32: ='SAP VC'!AE18 -> 146975 | M32: ='SAP VC'!AE46 -> POA | Q32: -- | U32: -- | Y32: ='SAP VC'!$V$433 -> 0 | AA32: ='SAP VC'!$V$98 -> 645 | AC32: ='SAP VC'!$V$96 -> 451 | AE32: ='SAP VC'!$V$97 -> 964 | AG32: =AG19 -> 0 | AI32: =AI19 -> 2876 | AK32: =AK19 -> 1919 | AM32: =AM19 -> 645 | AO32: =AO19 -> 612
D33: 4 (-04) | G33: 1.5 | I33: ='SAP VC'!AE19 -> 153796 | M33: ='SAP VC'!AE47 -> POA | Q33: -- | U33: -- | Y33: ='SAP VC'!$V$433 -> 0 | AA33: ='SAP VC'!$V$181 -> 678 | AC33: ='SAP VC'!$V$175 -> 502 | AE33: ='SAP VC'!$V$178 -> 1000 | AG33: =AG20 -> 0 | AI33: =AI20 -> 3196 | AK33: =AK20 -> 2240 | AM33: =AM20 -> 645 | AO33: =AO20 -> 612
D34: 6 (-06) | G34: 2 | I34: ='SAP VC'!AE20 -> 178116 | M34: ='SAP VC'!AE48 -> POA | Q34: -- | U34: -- | Y34: ='SAP VC'!$V$433 -> 0 | AA34: ='SAP VC'!$V$182 -> 714 | AC34: ='SAP VC'!$V$176 -> 538 | AE34: ='SAP VC'!$V$179 -> 1035 | AG34: =AG21 -> 0 | AI34: =AI21 -> 3835 | AK34: =AK21 -> 2558 | AM34: 962 | AO34: =AO21 -> 781
D35: 8 (-08) | G35: 2.5 | I35: ='SAP VC'!AE21 -> 214525 | M35: ='SAP VC'!AE49 -> POA | Q35: -- | U35: -- | Y35: ='SAP VC'!$V$433 -> 0 | AA35: ='SAP VC'!$V$183 -> 749 | AC35: ='SAP VC'!$V$177 -> 573 | AE35: ='SAP VC'!$V$180 -> 1072 | AG35: =AG22 -> 0 | AI35: =AI22 -> 4472 | AK35: =AK22 -> 3196 | AM35: 962 | AO35: =AO22 -> 781

Sheet Page 2
A1: ARC Series 9100
E11: Valve Size (in.) | H11: Bypass Outlet Size (in.) | J11: Valve Assembly List Price (91) | Z11: Soft Goods Adders | AJ11: Options
Z14: Seals/Snubber Material | AJ14: Raised Face (RF) (STD) | AL14: NACE (N) | AN14: Pressure Gauge Port (Ea)
J15: ANSI CLASS | Z15: PTFE (P) (STD) | AB15: Viton (V) | AD15: EPDM (E) | AF15: Kalrez (K) | AH15: Variseal (T)
J16: 300 # (2)
J17: WCB (0) | N17: CF8M (1) | R17: Super Duplex (5) | V17: 6Mo (6)
E19: 1 (-01) | H19: .75 | J19: -- | N19: ='SAP VC'!AE215 -> 65526 | R19: ='SAP VC'!$V$229 -> POA | V19: ='SAP VC'!$V$234 -> POA | Z19: ='SAP VC'!$AE$287 -> 0 | AB19: ='SAP VC'!AE288 -> 491 | AD19: ='SAP VC'!AE289 -> 266 | AF19: ='SAP VC'!AE290 -> 550 | AH19: ='SAP VC'!AE291 -> 491 | AJ19: ='SAP VC'!$AE$286 -> 0 | AL19: ='SAP VC'!V829 -> 660 | AN19: ='SAP VC'!AE831 -> 612
E20: 1.5 (-15) | H20: .75 | J20: -- | N20: ='SAP VC'!AE216 -> 68784 | R20: ='SAP VC'!$V$229 -> POA | V20: ='SAP VC'!$V$234 -> POA | Z20: ='SAP VC'!$AE$287 -> 0 | AB20: ='SAP VC'!AE434 -> 491 | AD20: ='SAP VC'!AE440 -> 266 | AF20: ='SAP VC'!AE446 -> 550 | AH20: ='SAP VC'!AE452 -> 491 | AJ20: ='SAP VC'!$AE$286 -> 0 | AL20: 500 | AN20: ='SAP VC'!AE832 -> 612
E21: 2 (-02) | H21: 1.5 | J21: ='SAP VC'!AE198 -> 54830 | N21: ='SAP VC'!AE217 -> 70975 | R21: ='SAP VC'!$V$229 -> POA | V21: ='SAP VC'!$V$234 -> POA | Z21: ='SAP VC'!$AE$287 -> 0 | AB21: ='SAP VC'!AE435 -> 515 | AD21: ='SAP VC'!AE441 -> 295 | AF21: ='SAP VC'!AE447 -> 587 | AH21: ='SAP VC'!AE453 -> 515 | AJ21: ='SAP VC'!$AE$286 -> 0 | AL21: ='SAP VC'!AE303 -> 660 | AN21: ='SAP VC'!AE833 -> 612
E22: 3 (-03) | H22: 2 | J22: ='SAP VC'!AE199 -> 62693 | N22: ='SAP VC'!AE218 -> 74139 | R22: ='SAP VC'!$V$229 -> POA | V22: ='SAP VC'!$V$234 -> POA | Z22: ='SAP VC'!$AE$287 -> 0 | AB22: ='SAP VC'!AE436 -> 515 | AD22: ='SAP VC'!AE442 -> 295 | AF22: ='SAP VC'!AE448 -> 587 | AH22: ='SAP VC'!AE454 -> 515 | AJ22: ='SAP VC'!$AE$286 -> 0 | AL22: ='SAP VC'!AE304 -> 660 | AN22: ='SAP VC'!AE834 -> 612
E23: 4 (-04) | H23: 3 | J23: ='SAP VC'!AE200 -> 68659 | N23: ='SAP VC'!AE219 -> 86896 | R23: ='SAP VC'!$V$229 -> POA | V23: ='SAP VC'!$V$234 -> POA | Z23: ='SAP VC'!$AE$287 -> 0 | AB23: ='SAP VC'!AE437 -> 550 | AD23: ='SAP VC'!AE443 -> 331 | AF23: ='SAP VC'!AE449 -> 622 | AH23: ='SAP VC'!AE455 -> 550 | AJ23: ='SAP VC'!$AE$286 -> 0 | AL23: ='SAP VC'!AE305 -> 1646 | AN23: ='SAP VC'!AE835 -> 612
E24: 6 (-06) | H24: 4 | J24: ='SAP VC'!AE201 -> 74177 | N24: ='SAP VC'!AE220 -> 90446 | R24: ='SAP VC'!$V$229 -> POA | V24: ='SAP VC'!$V$234 -> POA | Z24: ='SAP VC'!$AE$287 -> 0 | AB24: ='SAP VC'!AE438 -> 587 | AD24: ='SAP VC'!AE444 -> 369 | AF24: ='SAP VC'!AE450 -> 660 | AH24: ='SAP VC'!AE456 -> 587 | AJ24: ='SAP VC'!$AE$286 -> 0 | AL24: ='SAP VC'!AE306 -> 2630 | AN24: ='SAP VC'!AE836 -> 781
E25: 8 (-08) | H25: 6 | J25: ='SAP VC'!AE202 -> 126562 | N25: ='SAP VC'!AE221 -> 158105 | R25: ='SAP VC'!$V$229 -> POA | V25: ='SAP VC'!$V$234 -> POA | Z25: ='SAP VC'!$AE$287 -> 0 | AB25: ='SAP VC'!AE439 -> 587 | AD25: ='SAP VC'!AE445 -> 369 | AF25: ='SAP VC'!AE451 -> 660 | AH25: ='SAP VC'!AE457 -> 587 | AJ25: ='SAP VC'!$AE$286 -> 0 | AL25: ='SAP VC'!AE307 -> 4623 | AN25: ='SAP VC'!AE837 -> 781
E28: Valve Size (in.) | H28: Bypass Outlet Size (in.) | J28: Valve Assembly List Price (91) | Z28: Soft Goods Adders | AJ28: Options
Z31: Seals/Snubber Material | AJ31: Raised Face (RF) (STD) | AL31: NACE (N) | AN31: Pressure Gauge Port (Ea)
J32: ANSI CLASS | Z32: PTFE (P) (STD) | AB32: Viton (V) | AD32: EPDM (E) | AF32: Kalrez (K) | AH32: Variseal (T)
J33: 600 # (3)
J34: WCB (0) | N34: CF8M (1) | R34: Super Duplex (5) | V34: 6Mo (6)
E36: 1 (-01) | H36: .75 | J36: -- | N36: ='SAP VC'!AE222 -> 66324 | R36: ='SAP VC'!$V$229 -> POA | V36: ='SAP VC'!$V$234 -> POA | Z36: =Z19 -> 0 | AB36: =AB19 -> 491 | AD36: =AD19 -> 266 | AF36: =AF19 -> 550 | AH36: =AH19 -> 491 | AJ36: =AJ19 -> 0 | AL36: =AL19 -> 660 | AN36: =AN19 -> 612
E37: 1.5 (-15) | H37: .75 | J37: -- | N37: ='SAP VC'!AE223 -> 70249 | R37: ='SAP VC'!$V$229 -> POA | V37: ='SAP VC'!$V$234 -> POA | Z37: ='SAP VC'!$V$287 -> 0 | AB37: =AB20 -> 491 | AD37: =AD20 -> 266 | AF37: =AF20 -> 550 | AH37: =AH20 -> 491 | AJ37: =AJ20 -> 0 | AL37: =AL20 -> 500 | AN37: 612
E38: 2 (-02) | H38: 1.5 | J38: ='SAP VC'!AE203 -> 55791 | N38: ='SAP VC'!AE224 -> 72486 | R38: ='SAP VC'!$V$229 -> POA | V38: ='SAP VC'!$V$234 -> POA | Z38: ='SAP VC'!$V$287 -> 0 | AB38: 515 | AD38: 295 | AF38: 587 | AH38: 515 | AJ38: 0 | AL38: 660 | AN38: 612
E39: 3 (-03) | H39: 2 | J39: ='SAP VC'!AE204 -> 63792 | N39: ='SAP VC'!AE225 -> 75440 | R39: ='SAP VC'!$V$229 -> POA | V39: ='SAP VC'!$V$234 -> POA | Z39: ='SAP VC'!$V$287 -> 0 | AB39: 515 | AD39: 295 | AF39: 587 | AH39: 515 | AJ39: 0 | AL39: 660 | AN39: 612
E40: 4 (-04) | H40: 3 | J40: ='SAP VC'!AE205 -> 69864 | N40: ='SAP VC'!AE226 -> 88421 | R40: ='SAP VC'!$V$229 -> POA | V40: ='SAP VC'!$V$234 -> POA | Z40: ='SAP VC'!$V$287 -> 0 | AB40: 550 | AD40: 331 | AF40: 622 | AH40: 550 | AJ40: 0 | AL40: 1646 | AN40: 612
E41: 6 (-06) | H41: 4 | J41: ='SAP VC'!AE206 -> 75478 | N41: ='SAP VC'!AE227 -> 92033 | R41: ='SAP VC'!$V$229 -> POA | V41: ='SAP VC'!$V$234 -> POA | Z41: ='SAP VC'!$V$287 -> 0 | AB41: 587 | AD41: 369 | AF41: 660 | AH41: 587 | AJ41: 0 | AL41: 2630 | AN41: 781
E42: 8 (-08) | H42: 6 | J42: ='SAP VC'!AE207 -> 129689 | N42: ='SAP VC'!AE228 -> 202484 | R42: ='SAP VC'!$V$229 -> POA | V42: ='SAP VC'!$V$234 -> POA | Z42: ='SAP VC'!$V$287 -> 0 | AB42: 587 | AD42: 369 | AF42: 660 | AH42: 587 | AJ42: 0 | AL42: 4623 | AN42: 781

Sheet Page 3
A1: ARC Series 9200
E11: Valve Size (in.) | H11: Bypass Outlet Size (in.) | J11: Valve Assembly List Price (92) | Z11: Soft Goods Adders | AJ11: Options
Z14: Gasket/Snubber Material | AJ14: Raised Face (STD) (-RF) | AL14: NACE (N) | AN14: Pressure Gauge Port (Ea)
Z15: Graphite / Turcon (STD) (-A) | AB15: TFEP / Turcon (STD) (-H) | AD15: Viton / Turcon (-D) | AF15: EPDM / Turcon (-F) | AH15: Virgin TFE / Turcon (-C)
J16: ANSI Class
J18: 150 # (1)
J19: WCB (0) | N19: CF8M (1) | R19: Super Duplex (5) | V19: 6Mo (6)
E21: 2 (-02) | H21: 1.5 | J21: ='SAP VC'!AE465 -> 36005 | N21: ='SAP VC'!AE481 -> 41856 | R21: ='SAP VC'!AE497 -> POA | V21: ='SAP VC'!AE497 -> POA | Z21: ='SAP VC'!$AE$594 -> 0 | AB21: -- | AD21: -- | AF21: -- | AH21: ='SAP VC'!AE602 -> 987 | AJ21: ='SAP VC'!$A$124 -> 0 | AL21: ='SAP VC'!AE605 -> 660 | AN21: ='SAP VC'!AE833 -> 612
E22: 3 (-03) | H22: 2 | J22: ='SAP VC'!AE466 -> 38580 | N22: ='SAP VC'!AE482 -> 51016 | R22: ='SAP VC'!AE498 -> POA | V22: ='SAP VC'!AE498 -> POA | Z22: ='SAP VC'!$AE$594 -> 0 | AB22: -- | AD22: -- | AF22: -- | AH22: ='SAP VC'!AE726 -> 987 | AJ22: ='SAP VC'!$A$124 -> 0 | AL22: ='SAP VC'!AE606 -> 660 | AN22: ='SAP VC'!AE834 -> 612
E23: 4 (-04) | H23: 3 | J23: ='SAP VC'!AE467 -> 42883 | N23: ='SAP VC'!AE483 -> 59802 | R23: ='SAP VC'!AE499 -> POA | V23: ='SAP VC'!AE499 -> POA | Z23: ='SAP VC'!$AE$594 -> 0 | AB23: -- | AD23: -- | AF23: -- | AH23: ='SAP VC'!AE727 -> 1313 | AJ23: ='SAP VC'!$A$124 -> 0 | AL23: ='SAP VC'!AE607 -> 1646 | AN23: ='SAP VC'!AE835 -> 612
E24: 6 (-06) | H24: 4 | J24: ='SAP VC'!AE468 -> 52913 | N24: ='SAP VC'!AE484 -> 70208 | R24: ='SAP VC'!AE500 -> POA | V24: ='SAP VC'!AE500 -> POA | Z24: ='SAP VC'!$AE$594 -> 0 | AB24: -- | AD24: -- | AF24: -- | AH24: ='SAP VC'!AE728 -> 1639 | AJ24: ='SAP VC'!$A$124 -> 0 | AL24: ='SAP VC'!AE608 -> 2630 | AN24: ='SAP VC'!AE836 -> 781
E25: 8 (-08) | H25: 6 | J25: ='SAP VC'!AE469 -> 75331 | N25: ='SAP VC'!AE485 -> 104060 | R25: ='SAP VC'!AE501 -> POA | V25: ='SAP VC'!AE501 -> POA | Z25: ='SAP VC'!$AE$594 -> 0 | AB25: -- | AD25: -- | AF25: -- | AH25: ='SAP VC'!AE729 -> 1639 | AJ25: ='SAP VC'!$A$124 -> 0 | AL25: ='SAP VC'!AE609 -> 4623 | AN25: ='SAP VC'!AE837 -> 781
E26: 10 (-10) | H26: 8 | J26: ='SAP VC'!AE470 -> POA | N26: ='SAP VC'!AE486 -> POA | R26: ='SAP VC'!AE502 -> POA | V26: ='SAP VC'!AE502 -> POA | Z26: -- | AB26: ='SAP VC'!$AE$595 -> 0 | AD26: ='SAP VC'!AE598 -> 2628 | AF26: ='SAP VC'!AE600 -> 1974 | AH26: -- | AJ26: ='SAP VC'!$A$124 -> 0 | AL26: ='SAP VC'!AE610 -> 6936 | AN26: ='SAP VC'!AE838 -> 1207
E27: 12 (-12) | H27: 10 | J27: ='SAP VC'!AE471 -> POA | N27: ='SAP VC'!AE487 -> POA | R27: ='SAP VC'!AE503 -> POA | V27: ='SAP VC'!AE503 -> POA | Z27: -- | AB27: ='SAP VC'!$AE$595 -> 0 | AD27: ='SAP VC'!AE718 -> 2702 | AF27: ='SAP VC'!AE734 -> 2046 | AH27: -- | AJ27: ='SAP VC'!$A$124 -> 0 | AL27: ='SAP VC'!AE611 -> 6936 | AN27: ='SAP VC'!AE839 -> 1207
E28: 14 (-14) | H28: 10 | J28: ='SAP VC'!AE472 -> POA | N28: ='SAP VC'!AE488 -> POA | R28: ='SAP VC'!AE504 -> POA | V28: ='SAP VC'!AE504 -> POA | Z28: -- | AB28: ='SAP VC'!$AE$595 -> 0 | AD28: ='SAP VC'!AE719 -> 2812 | AF28: ='SAP VC'!AE735 -> 2155 | AH28: -- | AJ28: ='SAP VC'!$A$124 -> 0 | AL28: ='SAP VC'!AE612 -> 7491 | AN28: ='SAP VC'!AE840 -> 1207
E30: Valve Size (in.) | H30: Bypass Outlet Size (in.) | J30: Valve Assembly List Price (92) | Z30: Soft Goods Adders | AJ30: Options
Z33: Gasket/Snubber Material | AJ33: Raised Face (STD) (-RF) | AL33: NACE (N) | AN33: Pressure Gauge Port (Ea)
Z34: Graphite / Turcon (STD) (-A) | AB34: TFEP / Turcon (STD) (-H) | AD34: Viton / Turcon (-D) | AF34: EPDM / Turcon (-F) | AH34: Virgin TFE / Turcon (-C)
J35: ANSI Class
J37: 300 # (2)
J38: WCB (0) | N38: CF8M (1) | R38: Super Duplex (5) | V38: 6Mo (6)
E40: 2 (-02) | H40: 1.5 | J40: ='SAP VC'!AE473 -> 37123 | N40: ='SAP VC'!AE489 -> 42883 | R40: ='SAP VC'!AE42 -> POA | V40: ='SAP VC'!AE58 -> POA | Z40: =Z21 -> 0 | AB40: -- | AD40: -- | AF40: -- | AH40: =AH21 -> 987 | AJ40: =AJ21 -> 0 | AL40: =AL21 -> 660 | AN40: =AN21 -> 612
E41: 3 (-03) | H41: 2 | J41: ='SAP VC'!AE474 -> 40031 | N41: ='SAP VC'!AE490 -> 51225 | R41: ='SAP VC'!AE43 -> POA | V41: ='SAP VC'!AE59 -> POA | Z41: =Z22 -> 0 | AB41: -- | AD41: -- | AF41: -- | AH41: =AH22 -> 987 | AJ41: 0 | AL41: =AL22 -> 660 | AN41: =AN22 -> 612
E42: 4 (-04) | H42: 3 | J42: ='SAP VC'!AE475 -> 44604 | N42: ='SAP VC'!AE491 -> 60906 | R42: ='SAP VC'!AE44 -> POA | V42: ='SAP VC'!AE60 -> POA | Z42: =Z23 -> 0 | AB42: -- | AD42: -- | AF42: -- | AH42: =AH23 -> 1313 | AJ42: 0 | AL42: 1646 | AN42: 612
E43: 6 (-06) | H43: 4 | J43: ='SAP VC'!AE476 -> 54081 | N43: ='SAP VC'!AE492 -> 72135 | R43: ='SAP VC'!AE45 -> POA | V43: ='SAP VC'!AE61 -> POA | Z43: =Z24 -> 0 | AB43: -- | AD43: -- | AF43: -- | AH43: =AH24 -> 1639 | AJ43: 0 | AL43: 2630 | AN43: 781
E44: 8 (-08) | H44: 6 | J44: ='SAP VC'!AE477 -> 79722 | N44: ='SAP VC'!AE493 -> 106098 | R44: ='SAP VC'!AE46 -> POA | V44: ='SAP VC'!AE62 -> POA | Z44: =Z25 -> 0 | AB44: -- | AD44: -- | AF44: -- | AH44: =AH25 -> 1639 | AJ44: 0 | AL44: 4623 | AN44: 781
E45: 10 (-10) | H45: 8 | J45: ='SAP VC'!AE478 -> POA | N45: ='SAP VC'!AE494 -> POA | R45: ='SAP VC'!AE47 -> POA | V45: ='SAP VC'!AE63 -> POA | Z45: -- | AB45: =AB26 -> 0 | AD45: =AD26 -> 2628 | AF45: =AF26 -> 1974 | AH45: -- | AJ45: 0 | AL45: 6936 | AN45: 1207
E46: 12 (-12) | H46: 10 | J46: ='SAP VC'!AE479 -> POA | N46: ='SAP VC'!AE495 -> POA | R46: ='SAP VC'!AE48 -> POA | V46: ='SAP VC'!AE64 -> POA | Z46: -- | AB46: =AB27 -> 0 | AD46: =AD27 -> 2702 | AF46: =AF27 -> 2046 | AH46: -- | AJ46: 0 | AL46: 6936 | AN46: 1207
E47: 14 (-14) | H47: 10 | J47: ='SAP VC'!AE480 -> POA | N47: ='SAP VC'!AE496 -> POA | R47: ='SAP VC'!AE49 -> POA | V47: ='SAP VC'!AE65 -> POA | Z47: -- | AB47: =AB28 -> 0 | AD47: =AD28 -> 2812 | AF47: =AF28 -> 2155 | AH47: -- | AJ47: 0 | AL47: 7491 | AN47: 1207

Sheet Page 4
A1: BPR
G11: Valve Size (in.) | K11: BPR (Back Pressure Regulator) List Price (91) | AE11: Soft Goods Adders & Options
AE15: PTFE (P) (STD) | AG15: Viton (V) | AI15: EPDM (E) | AK15: NACE (N)
K16: Wafer* - ANSI 1500
K17: WCB (60)
K18: R100 | O18: R200 | S18: R300 | W18: R400 | AA18: R500
G19: .75 (-075) | K19: -- | O19: -- | S19: -- | W19: -- | AA19: -- | AE19: -- | AG19: -- | AI19: -- | AK19: --
G20: 1.5 (-150) | K20: ='SAP VC'!AE741 -> 17777 | O20: ='SAP VC'!AE752 -> 18310 | S20: ='SAP VC'!AE763 -> 18676 | W20: ='SAP VC'!AE774 -> 18863 | AA20: ='SAP VC'!AE785 -> 19052 | AE20: ='SAP VC'!$AE$797 -> 0 | AG20: ='SAP VC'!AE799 -> 334 | AI20: ='SAP VC'!AE805 -> 268 | AK20: ='SAP VC'!AE812 -> 663
G21: 2 (-200) | K21: ='SAP VC'!AE742 -> 18403 | O21: ='SAP VC'!AE753 -> 18957 | S21: ='SAP VC'!AE764 -> 19338 | W21: ='SAP VC'!AE775 -> 19530 | AA21: ='SAP VC'!AE786 -> 19724 | AE21: ='SAP VC'!$AE$797 -> 0 | AG21: ='SAP VC'!AE800 -> 496 | AI21: ='SAP VC'!AE806 -> 334 | AK21: ='SAP VC'!AE813 -> 663
G22: 3 (-300) | K22: ='SAP VC'!AE743 -> 20498 | O22: ='SAP VC'!AE754 -> 21112 | S22: ='SAP VC'!AE765 -> 21534 | W22: ='SAP VC'!AE776 -> 21749 | AA22: ='SAP VC'!AE787 -> 21967 | AE22: ='SAP VC'!$AE$797 -> 0 | AG22: ='SAP VC'!AE801 -> 496 | AI22: ='SAP VC'!AE807 -> 334 | AK22: ='SAP VC'!AE814 -> 663
G23: 4 (-400) | K23: ='SAP VC'!AE744 -> 26586 | O23: ='SAP VC'!AE755 -> 27386 | S23: ='SAP VC'!AE766 -> 27932 | W23: ='SAP VC'!AE777 -> 28209 | AA23: ='SAP VC'!AE788 -> 28492 | AE23: ='SAP VC'!$AE$797 -> 0 | AG23: ='SAP VC'!AE802 -> 663 | AI23: ='SAP VC'!AE808 -> 450 | AK23: ='SAP VC'!AE815 -> 663
G24: 6 (-600) | K24: ='SAP VC'!AE745 -> 62634 | O24: ='SAP VC'!AE756 -> 64510 | S24: ='SAP VC'!AE767 -> 65802 | W24: ='SAP VC'!AE778 -> 66459 | AA24: ='SAP VC'!AE789 -> 67123 | AE24: ='SAP VC'!$AE$797 -> 0 | AG24: ='SAP VC'!AE803 -> 663 | AI24: ='SAP VC'!AE809 -> 450 | AK24: ='SAP VC'!AE816 -> 843
G26: Valve Size (in.) | K26: BPR (Back Pressure Regulator) List Price (91) | AE26: Soft Goods Adders & Options
AE30: PTFE (P) (STD) | AG30: Viton (V) | AI30: EPDM (E) | AK30: NACE (N)
K31: Wafer *- ANSI 1500
K32: CF8M (70)
K33: R100 | O33: R200 | S33: R300 | W33: R400 | AA33: R500
G34: .75 (-075) | K34: ='SAP VC'!AE746 -> 21489 | O34: ='SAP VC'!AE757 -> 22134 | S34: ='SAP VC'!AE768 -> 22577 | W34: ='SAP VC'!AE779 -> 22803 | AA34: ='SAP VC'!AE790 -> 23030 | AE34: ='SAP VC'!$AE$797 -> 0 | AG34: ='SAP VC'!AE798 -> 334 | AI34: ='SAP VC'!AE804 -> 268 | AK34: ='SAP VC'!AE811 -> 663
G35: 1.5 (-150) | K35: ='SAP VC'!AE747 -> 21594 | O35: ='SAP VC'!AE758 -> 22239 | S35: ='SAP VC'!AE769 -> 22686 | W35: ='SAP VC'!AE780 -> 22915 | AA35: ='SAP VC'!AE791 -> 23140 | AE35: ='SAP VC'!$AE$797 -> 0 | AG35: ='SAP VC'!AE799 -> 334 | AI35: ='SAP VC'!AE805 -> 268 | AK35: ='SAP VC'!AE812 -> 663
G36: 2 (-200) | K36: ='SAP VC'!AE748 -> 22875 | O36: ='SAP VC'!AE759 -> 23561 | S36: ='SAP VC'!AE770 -> 24032 | W36: ='SAP VC'!AE781 -> 24272 | AA36: ='SAP VC'!AE792 -> 24514 | AE36: ='SAP VC'!$AE$797 -> 0 | AG36: ='SAP VC'!AE800 -> 496 | AI36: ='SAP VC'!AE806 -> 334 | AK36: ='SAP VC'!AE813 -> 663
G37: 3 (-300) | K37: ='SAP VC'!AE749 -> 26308 | O37: ='SAP VC'!AE760 -> 27099 | S37: ='SAP VC'!AE771 -> 27639 | W37: ='SAP VC'!AE782 -> 27916 | AA37: ='SAP VC'!AE793 -> 28196 | AE37: ='SAP VC'!$AE$797 -> 0 | AG37: ='SAP VC'!AE801 -> 496 | AI37: ='SAP VC'!AE807 -> 334 | AK37: ='SAP VC'!AE814 -> 663
G38: 4 (-400) | K38: ='SAP VC'!AE750 -> 34193 | O38: ='SAP VC'!AE761 -> 35218 | S38: ='SAP VC'!AE772 -> 35922 | W38: ='SAP VC'!AE783 -> 36283 | AA38: ='SAP VC'!AE794 -> 36644 | AE38: ='SAP VC'!$AE$797 -> 0 | AG38: ='SAP VC'!AE802 -> 663 | AI38: ='SAP VC'!AE808 -> 450 | AK38: ='SAP VC'!AE815 -> 663
G39: 6 (-600) | K39: ='SAP VC'!AE751 -> 68380 | O39: ='SAP VC'!AE762 -> 70433 | S39: ='SAP VC'!AE773 -> 71841 | W39: ='SAP VC'!AE784 -> 72561 | AA39: ='SAP VC'!AE795 -> 73287 | AE39: ='SAP VC'!$AE$797 -> 0 | AG39: ='SAP VC'!AE803 -> 663 | AI39: ='SAP VC'!AE809 -> 450 | AK39: ='SAP VC'!AE816 -> 843
G43: * | H43: Consult factory for Flanged Body configuration.

Sheet 7100 (hidden)
A1: ARC Series 7100
E11: Valve Size (in.) | H11: Bypass Outlet Size (in.) | J11: Valve Assembly List Price (71) | Z11: Soft Goods Adders | AF11: Flange Adders & Options
Z14: Seal Material | AF14: Raised Face (STD) (-RF) | AH14: RTJ (-RJ) | AJ14: BWE (-BW) | AL14: NACE* (N) | AN14: Pressure Gauge Port (Ea)
J15: ANSI CLASS | Z15: PTFE (-P) (STD) | AB15: Viton (-V) | AD15: EPDM (-E)
J16: 900 # (4) | R16: 1500 # (5)
J17: WCB (0) | N17: CF8M (1) | R17: WCB (0) | V17: CF8M (1)
E19: 3 (-03) | H19: 1.5 | J19: ='SAP VC'!#REF! ->  | N19: ='SAP VC'!#REF! ->  | R19: ='SAP VC'!#REF! ->  | V19: ='SAP VC'!#REF! ->  | Z19: ='SAP VC'!#REF! ->  | AB19: ='SAP VC'!#REF! ->  | AD19: ='SAP VC'!#REF! ->  | AF19: ='SAP VC'!#REF! ->  | AH19: ='SAP VC'!#REF! ->  | AJ19: ='SAP VC'!#REF! ->  | AL19: ='SAP VC'!#REF! ->  | AN19: 450
E20: 4 (-04) | H20: 2 | J20: ='SAP VC'!#REF! ->  | N20: ='SAP VC'!#REF! ->  | R20: ='SAP VC'!#REF! ->  | V20: ='SAP VC'!#REF! ->  | Z20: ='SAP VC'!#REF! ->  | AB20: ='SAP VC'!#REF! ->  | AD20: ='SAP VC'!#REF! ->  | AF20: ='SAP VC'!#REF! ->  | AH20: ='SAP VC'!#REF! ->  | AJ20: ='SAP VC'!#REF! ->  | AL20: ='SAP VC'!#REF! ->  | AN20: 450
E21: 6 (-06) | H21: 2.5 | J21: ='SAP VC'!#REF! ->  | N21: ='SAP VC'!#REF! ->  | R21: ='SAP VC'!#REF! ->  | V21: ='SAP VC'!#REF! ->  | Z21: ='SAP VC'!#REF! ->  | AB21: ='SAP VC'!#REF! ->  | AD21: ='SAP VC'!#REF! ->  | AF21: ='SAP VC'!#REF! ->  | AH21: ='SAP VC'!#REF! ->  | AJ21: ='SAP VC'!#REF! ->  | AL21: ='SAP VC'!#REF! ->  | AN21: 450
E22: 8 (-08) | H22: 3 | J22: ='SAP VC'!#REF! ->  | N22: ='SAP VC'!#REF! ->  | R22: ='SAP VC'!#REF! ->  | V22: ='SAP VC'!#REF! ->  | Z22: ='SAP VC'!#REF! ->  | AB22: ='SAP VC'!#REF! ->  | AD22: ='SAP VC'!#REF! ->  | AF22: ='SAP VC'!#REF! ->  | AH22: ='SAP VC'!#REF! ->  | AJ22: ='SAP VC'!#REF! ->  | AL22: ='SAP VC'!#REF! ->  | AN22: 890
F28: * | G28: Not fully NACE compliant - Pressure boundry and main flow trim only.
